{"text_format":"1","workbook":"xlsx","n_sheets":4,"sheets":["Notice Data (Enter Data Here)","Nuclide Totals","Example Data","DOE-STD-1027-92 Data"],"not_rendered":{"charts":0,"images":0,"macros":1,"external_links":0,"defined_names":6,"comments":2,"pivot_tables":1},"unopened":[],"bounds":{"document_bytes":16777216,"sheet_cells":100000,"rows_first":2000,"rows_last":500,"rows_between":2000,"halvings":0,"cell_chars":16384,"cell_head_chars":4096},"cells_cut":0,"cells_raw":0,"read":"whole","date_system":"1900"}

{"sheet":"Notice Data (Enter Data Here)","index":0,"n_rows":781,"n_cols":33,"rows_kept":781,"cut":false,"hidden":false,"merged":[]}
["Parameter","Value"]
["Last Name","Boland"]
["First Name","Kevin"]
["Facility Name","LANL"]
["Address Line 1","30 Bikini Atoll Rd"]
["Address Line 2","TA-48 RC-1"]
["City","Los Alamos"]
["State","NM"]
["Zip Code",87545]
["Country","U.S."]
["Telephone",2177411285]
["Proposal Number","3480, 3326, "]
["Date of Notice","2011-05-13"]
["Beam Line","BL 11-2","*Enter data with a leading apostrophe (e.g., '3-1)"]
["Run Date",null,"*Required for 1 Day Notice"]
["End Run Date",null,"*Required for 1 Day Notice"]
["RMA Number",null,"*Required for 1 Day Notice"]
["Number of Packages",null,"*Required for 1 Day Notice"]
["Number of Holders",null,"*Required for 1 Day Notice"]
[]
["Mouse over column headers for context sensitive help."]
[]
["Sample Number","Nuclide","Mass (g)","Activity (Bq)","Physical State","Chemical State","Notice Type","Cont Cat No","Shipping Package Number","Activity (Ci)",null,null,null,null,null,null,null,null,null,null,null,null,null,null,null,null,null,null,null,"Nuclides","Physical","Chemical","Holder"]
["LANLU1","U-234",0.01,{"$f":"IF(Table5[[#This Row],[Mass (g)]]=\"\",\"\",Table5[[#This Row],[Mass (g)]]*VLOOKUP(Table5[[#This Row],[Nuclide]],Doedata,4)*37000000000)","v":2312500},"Solid","Compound",30,"1b","LANLU1",{"$f":"IF(Table5[[#This Row],[Activity (Bq)]]=\"\",\"\",Table5[[#This Row],[Activity (Bq)]]/37000000000)","v":6.2500000000000001E-5},null,null,null,null,null,null,null,null,null,null,null,null,null,null,null,null,null,null,null,"Ac-224","Solid","Elemental","1a"]
[null,"U-235",0.03,{"$f":"IF(Table5[[#This Row],[Mass (g)]]=\"\",\"\",Table5[[#This Row],[Mass (g)]]*VLOOKUP(Table5[[#This Row],[Nuclide]],Doedata,4)*37000000000)","v":2397.6},"Solid","Compound",30,"1b","LANLU1",{"$f":"IF(Table5[[#This Row],[Activity (Bq)]]=\"\",\"\",Table5[[#This Row],[Activity (Bq)]]/37000000000)","v":6.4799999999999998E-8},null,null,null,null,null,null,null,null,null,null,null,null,null,null,null,null,null,null,null,"Ac-225","Liquid","Compound","1b"]
[null,"U-236",0.2,{"$f":"IF(Table5[[#This Row],[Mass (g)]]=\"\",\"\",Table5[[#This Row],[Mass (g)]]*VLOOKUP(Table5[[#This Row],[Nuclide]],Doedata,4)*37000000000)","v":478780.00000000006},"Solid","Compound",30,"1b","LANLU1",{"$f":"IF(Table5[[#This Row],[Activity (Bq)]]=\"\",\"\",Table5[[#This Row],[Activity (Bq)]]/37000000000)","v":1.2940000000000001E-5},null,null,null,null,null,null,null,null,null,null,null,null,null,null,null,null,null,null,null,"Ac-226","Gas","Alloy","1c"]
[null,null,null,{"$f":"IF(Table5[[#This Row],[Mass (g)]]=\"\",\"\",Table5[[#This Row],[Mass (g)]]*VLOOKUP(Table5[[#This Row],[Nuclide]],Doedata,4)*37000000000)","v":""},null,null,null,null,null,{"$f":"IF(Table5[[#This Row],[Activity (Bq)]]=\"\",\"\",Table5[[#This Row],[Activity (Bq)]]/37000000000)","v":""},null,null,null,null,null,null,null,null,null,null,null,null,null,null,null,null,null,null,null,"Ac-227","Powder","Oxide","1d"]
[null,null,null,{"$f":"IF(Table5[[#This Row],[Mass (g)]]=\"\",\"\",Table5[[#This Row],[Mass (g)]]*VLOOKUP(Table5[[#This Row],[Nuclide]],Doedata,4)*37000000000)","v":""},null,null,null,null,null,{"$f":"IF(Table5[[#This Row],[Activity (Bq)]]=\"\",\"\",Table5[[#This Row],[Activity (Bq)]]/37000000000)","v":""},null,null,null,null,null,null,null,null,null,null,null,null,null,null,null,null,null,null,null,"Ac-228","Glass","Other","1h"]
[null,null,null,{"$f":"IF(Table5[[#This Row],[Mass (g)]]=\"\",\"\",Table5[[#This Row],[Mass (g)]]*VLOOKUP(Table5[[#This Row],[Nuclide]],Doedata,4)*37000000000)","v":""},null,null,null,null,null,{"$f":"IF(Table5[[#This Row],[Activity (Bq)]]=\"\",\"\",Table5[[#This Row],[Activity (Bq)]]/37000000000)","v":""},null,null,null,null,null,null,null,null,null,null,null,null,null,null,null,null,null,null,null,"Ag-102","Metal",null,"2a"]
[null,null,null,{"$f":"IF(Table5[[#This Row],[Mass (g)]]=\"\",\"\",Table5[[#This Row],[Mass (g)]]*VLOOKUP(Table5[[#This Row],[Nuclide]],Doedata,4)*37000000000)","v":""},null,null,null,null,null,{"$f":"IF(Table5[[#This Row],[Activity (Bq)]]=\"\",\"\",Table5[[#This Row],[Activity (Bq)]]/37000000000)","v":""},null,null,null,null,null,null,null,null,null,null,null,null,null,null,null,null,null,null,null,"Ag-103","Slurry/Paste",null,"2b"]
[null,null,null,{"$f":"IF(Table5[[#This Row],[Mass (g)]]=\"\",\"\",Table5[[#This Row],[Mass (g)]]*VLOOKUP(Table5[[#This Row],[Nuclide]],Doedata,4)*37000000000)","v":""},null,null,null,null,null,{"$f":"IF(Table5[[#This Row],[Activity (Bq)]]=\"\",\"\",Table5[[#This Row],[Activity (Bq)]]/37000000000)","v":""},null,null,null,null,null,null,null,null,null,null,null,null,null,null,null,null,null,null,null,"Ag-104","Other",null,"2c"]
[null,null,null,{"$f":"IF(Table5[[#This Row],[Mass (g)]]=\"\",\"\",Table5[[#This Row],[Mass (g)]]*VLOOKUP(Table5[[#This Row],[Nuclide]],Doedata,4)*37000000000)","v":""},null,null,null,null,null,{"$f":"IF(Table5[[#This Row],[Activity (Bq)]]=\"\",\"\",Table5[[#This Row],[Activity (Bq)]]/37000000000)","v":""},null,null,null,null,null,null,null,null,null,null,null,null,null,null,null,null,null,null,null,"Ag-104m",null,null,"2d"]
[null,null,null,{"$f":"IF(Table5[[#This Row],[Mass (g)]]=\"\",\"\",Table5[[#This Row],[Mass (g)]]*VLOOKUP(Table5[[#This Row],[Nuclide]],Doedata,4)*37000000000)","v":""},null,null,null,null,null,{"$f":"IF(Table5[[#This Row],[Activity (Bq)]]=\"\",\"\",Table5[[#This Row],[Activity (Bq)]]/37000000000)","v":""},null,null,null,null,null,null,null,null,null,null,null,null,null,null,null,null,null,null,null,"Ag-105",null,null,"3a"]
[null,null,null,{"$f":"IF(Table5[[#This Row],[Mass (g)]]=\"\",\"\",Table5[[#This Row],[Mass (g)]]*VLOOKUP(Table5[[#This Row],[Nuclide]],Doedata,4)*37000000000)","v":""},null,null,null,null,null,{"$f":"IF(Table5[[#This Row],[Activity (Bq)]]=\"\",\"\",Table5[[#This Row],[Activity (Bq)]]/37000000000)","v":""},null,null,null,null,null,null,null,null,null,null,null,null,null,null,null,null,null,null,null,"Ag-106",null,null,"3b"]
[null,null,null,{"$f":"IF(Table5[[#This Row],[Mass (g)]]=\"\",\"\",Table5[[#This Row],[Mass (g)]]*VLOOKUP(Table5[[#This Row],[Nuclide]],Doedata,4)*37000000000)","v":""},null,null,null,null,null,{"$f":"IF(Table5[[#This Row],[Activity (Bq)]]=\"\",\"\",Table5[[#This Row],[Activity (Bq)]]/37000000000)","v":""},null,null,null,null,null,null,null,null,null,null,null,null,null,null,null,null,null,null,null,"Ag-106m",null,null,"3c"]
[null,null,null,{"$f":"IF(Table5[[#This Row],[Mass (g)]]=\"\",\"\",Table5[[#This Row],[Mass (g)]]*VLOOKUP(Table5[[#This Row],[Nuclide]],Doedata,4)*37000000000)","v":""},null,null,null,null,null,{"$f":"IF(Table5[[#This Row],[Activity (Bq)]]=\"\",\"\",Table5[[#This Row],[Activity (Bq)]]/37000000000)","v":""},null,null,null,null,null,null,null,null,null,null,null,null,null,null,null,null,null,null,null,"Ag-108m",null,null,"3d"]
[null,null,null,{"$f":"IF(Table5[[#This Row],[Mass (g)]]=\"\",\"\",Table5[[#This Row],[Mass (g)]]*VLOOKUP(Table5[[#This Row],[Nuclide]],Doedata,4)*37000000000)","v":""},null,null,null,null,null,{"$f":"IF(Table5[[#This Row],[Activity (Bq)]]=\"\",\"\",Table5[[#This Row],[Activity (Bq)]]/37000000000)","v":""},null,null,null,null,null,null,null,null,null,null,null,null,null,null,null,null,null,null,null,"Ag-110m",null,null,"4a"]
[null,null,null,{"$f":"IF(Table5[[#This Row],[Mass (g)]]=\"\",\"\",Table5[[#This Row],[Mass (g)]]*VLOOKUP(Table5[[#This Row],[Nuclide]],Doedata,4)*37000000000)","v":""},null,null,null,null,null,{"$f":"IF(Table5[[#This Row],[Activity (Bq)]]=\"\",\"\",Table5[[#This Row],[Activity (Bq)]]/37000000000)","v":""},null,null,null,null,null,null,null,null,null,null,null,null,null,null,null,null,null,null,null,"Ag-111",null,null,"4b"]
[null,null,null,{"$f":"IF(Table5[[#This Row],[Mass (g)]]=\"\",\"\",Table5[[#This Row],[Mass (g)]]*VLOOKUP(Table5[[#This Row],[Nuclide]],Doedata,4)*37000000000)","v":""},null,null,null,null,null,{"$f":"IF(Table5[[#This Row],[Activity (Bq)]]=\"\",\"\",Table5[[#This Row],[Activity (Bq)]]/37000000000)","v":""},null,null,null,null,null,null,null,null,null,null,null,null,null,null,null,null,null,null,null,"Ag-112",null,null,"4c"]
[null,null,null,{"$f":"IF(Table5[[#This Row],[Mass (g)]]=\"\",\"\",Table5[[#This Row],[Mass (g)]]*VLOOKUP(Table5[[#This Row],[Nuclide]],Doedata,4)*37000000000)","v":""},null,null,null,null,null,{"$f":"IF(Table5[[#This Row],[Activity (Bq)]]=\"\",\"\",Table5[[#This Row],[Activity (Bq)]]/37000000000)","v":""},null,null,null,null,null,null,null,null,null,null,null,null,null,null,null,null,null,null,null,"Ag-115",null,null,"4d"]
[null,null,null,{"$f":"IF(Table5[[#This Row],[Mass (g)]]=\"\",\"\",Table5[[#This Row],[Mass (g)]]*VLOOKUP(Table5[[#This Row],[Nuclide]],Doedata,4)*37000000000)","v":""},null,null,null,null,null,{"$f":"IF(Table5[[#This Row],[Activity (Bq)]]=\"\",\"\",Table5[[#This Row],[Activity (Bq)]]/37000000000)","v":""},null,null,null,null,null,null,null,null,null,null,null,null,null,null,null,null,null,null,null,"Al-26",null,null,"4h"]
[null,null,null,{"$f":"IF(Table5[[#This Row],[Mass (g)]]=\"\",\"\",Table5[[#This Row],[Mass (g)]]*VLOOKUP(Table5[[#This Row],[Nuclide]],Doedata,4)*37000000000)","v":""},null,null,null,null,null,{"$f":"IF(Table5[[#This Row],[Activity (Bq)]]=\"\",\"\",Table5[[#This Row],[Activity (Bq)]]/37000000000)","v":""},null,null,null,null,null,null,null,null,null,null,null,null,null,null,null,null,null,null,null,"Am-237",null,null,"4q"]
[null,null,null,{"$f":"IF(Table5[[#This Row],[Mass (g)]]=\"\",\"\",Table5[[#This Row],[Mass (g)]]*VLOOKUP(Table5[[#This Row],[Nuclide]],Doedata,4)*37000000000)","v":""},null,null,null,null,null,{"$f":"IF(Table5[[#This Row],[Activity (Bq)]]=\"\",\"\",Table5[[#This Row],[Activity (Bq)]]/37000000000)","v":""},null,null,null,null,null,null,null,null,null,null,null,null,null,null,null,null,null,null,null,"Am-238"]
[null,null,null,{"$f":"IF(Table5[[#This Row],[Mass (g)]]=\"\",\"\",Table5[[#This Row],[Mass (g)]]*VLOOKUP(Table5[[#This Row],[Nuclide]],Doedata,4)*37000000000)","v":""},null,null,null,null,null,{"$f":"IF(Table5[[#This Row],[Activity (Bq)]]=\"\",\"\",Table5[[#This Row],[Activity (Bq)]]/37000000000)","v":""},null,null,null,null,null,null,null,null,null,null,null,null,null,null,null,null,null,null,null,"Am-239"]
[null,null,null,{"$f":"IF(Table5[[#This Row],[Mass (g)]]=\"\",\"\",Table5[[#This Row],[Mass (g)]]*VLOOKUP(Table5[[#This Row],[Nuclide]],Doedata,4)*37000000000)","v":""},null,null,null,null,null,{"$f":"IF(Table5[[#This Row],[Activity (Bq)]]=\"\",\"\",Table5[[#This Row],[Activity (Bq)]]/37000000000)","v":""},null,null,null,null,null,null,null,null,null,null,null,null,null,null,null,null,null,null,null,"Am-240"]
[null,null,null,{"$f":"IF(Table5[[#This Row],[Mass (g)]]=\"\",\"\",Table5[[#This Row],[Mass (g)]]*VLOOKUP(Table5[[#This Row],[Nuclide]],Doedata,4)*37000000000)","v":""},null,null,null,null,null,{"$f":"IF(Table5[[#This Row],[Activity (Bq)]]=\"\",\"\",Table5[[#This Row],[Activity (Bq)]]/37000000000)","v":""},null,null,null,null,null,null,null,null,null,null,null,null,null,null,null,null,null,null,null,"Am-241"]
[null,null,null,{"$f":"IF(Table5[[#This Row],[Mass (g)]]=\"\",\"\",Table5[[#This Row],[Mass (g)]]*VLOOKUP(Table5[[#This Row],[Nuclide]],Doedata,4)*37000000000)","v":""},null,null,null,null,null,{"$f":"IF(Table5[[#This Row],[Activity (Bq)]]=\"\",\"\",Table5[[#This Row],[Activity (Bq)]]/37000000000)","v":""},null,null,null,null,null,null,null,null,null,null,null,null,null,null,null,null,null,null,null,"Am-242"]
[null,null,null,{"$f":"IF(Table5[[#This Row],[Mass (g)]]=\"\",\"\",Table5[[#This Row],[Mass (g)]]*VLOOKUP(Table5[[#This Row],[Nuclide]],Doedata,4)*37000000000)","v":""},null,null,null,null,null,{"$f":"IF(Table5[[#This Row],[Activity (Bq)]]=\"\",\"\",Table5[[#This Row],[Activity (Bq)]]/37000000000)","v":""},null,null,null,null,null,null,null,null,null,null,null,null,null,null,null,null,null,null,null,"Am-242m"]
[null,null,null,{"$f":"IF(Table5[[#This Row],[Mass (g)]]=\"\",\"\",Table5[[#This Row],[Mass (g)]]*VLOOKUP(Table5[[#This Row],[Nuclide]],Doedata,4)*37000000000)","v":""},null,null,null,null,null,{"$f":"IF(Table5[[#This Row],[Activity (Bq)]]=\"\",\"\",Table5[[#This Row],[Activity (Bq)]]/37000000000)","v":""},null,null,null,null,null,null,null,null,null,null,null,null,null,null,null,null,null,null,null,"Am-243"]
[null,null,null,{"$f":"IF(Table5[[#This Row],[Mass (g)]]=\"\",\"\",Table5[[#This Row],[Mass (g)]]*VLOOKUP(Table5[[#This Row],[Nuclide]],Doedata,4)*37000000000)","v":""},null,null,null,null,null,{"$f":"IF(Table5[[#This Row],[Activity (Bq)]]=\"\",\"\",Table5[[#This Row],[Activity (Bq)]]/37000000000)","v":""},null,null,null,null,null,null,null,null,null,null,null,null,null,null,null,null,null,null,null,"Am-244"]
[null,null,null,{"$f":"IF(Table5[[#This Row],[Mass (g)]]=\"\",\"\",Table5[[#This Row],[Mass (g)]]*VLOOKUP(Table5[[#This Row],[Nuclide]],Doedata,4)*37000000000)","v":""},null,null,null,null,null,{"$f":"IF(Table5[[#This Row],[Activity (Bq)]]=\"\",\"\",Table5[[#This Row],[Activity (Bq)]]/37000000000)","v":""},null,null,null,null,null,null,null,null,null,null,null,null,null,null,null,null,null,null,null,"Am-244m"]
[null,null,null,{"$f":"IF(Table5[[#This Row],[Mass (g)]]=\"\",\"\",Table5[[#This Row],[Mass (g)]]*VLOOKUP(Table5[[#This Row],[Nuclide]],Doedata,4)*37000000000)","v":""},null,null,null,null,null,{"$f":"IF(Table5[[#This Row],[Activity (Bq)]]=\"\",\"\",Table5[[#This Row],[Activity (Bq)]]/37000000000)","v":""},null,null,null,null,null,null,null,null,null,null,null,null,null,null,null,null,null,null,null,"Am-245"]
[null,null,null,{"$f":"IF(Table5[[#This Row],[Mass (g)]]=\"\",\"\",Table5[[#This Row],[Mass (g)]]*VLOOKUP(Table5[[#This Row],[Nuclide]],Doedata,4)*37000000000)","v":""},null,null,null,null,null,{"$f":"IF(Table5[[#This Row],[Activity (Bq)]]=\"\",\"\",Table5[[#This Row],[Activity (Bq)]]/37000000000)","v":""},null,null,null,null,null,null,null,null,null,null,null,null,null,null,null,null,null,null,null,"Am-246"]
[null,null,null,{"$f":"IF(Table5[[#This Row],[Mass (g)]]=\"\",\"\",Table5[[#This Row],[Mass (g)]]*VLOOKUP(Table5[[#This Row],[Nuclide]],Doedata,4)*37000000000)","v":""},null,null,null,null,null,{"$f":"IF(Table5[[#This Row],[Activity (Bq)]]=\"\",\"\",Table5[[#This Row],[Activity (Bq)]]/37000000000)","v":""},null,null,null,null,null,null,null,null,null,null,null,null,null,null,null,null,null,null,null,"Am-246m"]
[null,null,null,{"$f":"IF(Table5[[#This Row],[Mass (g)]]=\"\",\"\",Table5[[#This Row],[Mass (g)]]*VLOOKUP(Table5[[#This Row],[Nuclide]],Doedata,4)*37000000000)","v":""},null,null,null,null,null,{"$f":"IF(Table5[[#This Row],[Activity (Bq)]]=\"\",\"\",Table5[[#This Row],[Activity (Bq)]]/37000000000)","v":""},null,null,null,null,null,null,null,null,null,null,null,null,null,null,null,null,null,null,null,"Ar-39"]
[null,null,null,{"$f":"IF(Table5[[#This Row],[Mass (g)]]=\"\",\"\",Table5[[#This Row],[Mass (g)]]*VLOOKUP(Table5[[#This Row],[Nuclide]],Doedata,4)*37000000000)","v":""},null,null,null,null,null,{"$f":"IF(Table5[[#This Row],[Activity (Bq)]]=\"\",\"\",Table5[[#This Row],[Activity (Bq)]]/37000000000)","v":""},null,null,null,null,null,null,null,null,null,null,null,null,null,null,null,null,null,null,null,"Ar-41"]
[null,null,null,{"$f":"IF(Table5[[#This Row],[Mass (g)]]=\"\",\"\",Table5[[#This Row],[Mass (g)]]*VLOOKUP(Table5[[#This Row],[Nuclide]],Doedata,4)*37000000000)","v":""},null,null,null,null,null,{"$f":"IF(Table5[[#This Row],[Activity (Bq)]]=\"\",\"\",Table5[[#This Row],[Activity (Bq)]]/37000000000)","v":""},null,null,null,null,null,null,null,null,null,null,null,null,null,null,null,null,null,null,null,"As-69"]
[null,null,null,{"$f":"IF(Table5[[#This Row],[Mass (g)]]=\"\",\"\",Table5[[#This Row],[Mass (g)]]*VLOOKUP(Table5[[#This Row],[Nuclide]],Doedata,4)*37000000000)","v":""},null,null,null,null,null,{"$f":"IF(Table5[[#This Row],[Activity (Bq)]]=\"\",\"\",Table5[[#This Row],[Activity (Bq)]]/37000000000)","v":""},null,null,null,null,null,null,null,null,null,null,null,null,null,null,null,null,null,null,null,"As-70"]
[null,null,null,{"$f":"IF(Table5[[#This Row],[Mass (g)]]=\"\",\"\",Table5[[#This Row],[Mass (g)]]*VLOOKUP(Table5[[#This Row],[Nuclide]],Doedata,4)*37000000000)","v":""},null,null,null,null,null,{"$f":"IF(Table5[[#This Row],[Activity (Bq)]]=\"\",\"\",Table5[[#This Row],[Activity (Bq)]]/37000000000)","v":""},null,null,null,null,null,null,null,null,null,null,null,null,null,null,null,null,null,null,null,"As-71"]
[null,null,null,{"$f":"IF(Table5[[#This Row],[Mass (g)]]=\"\",\"\",Table5[[#This Row],[Mass (g)]]*VLOOKUP(Table5[[#This Row],[Nuclide]],Doedata,4)*37000000000)","v":""},null,null,null,null,null,{"$f":"IF(Table5[[#This Row],[Activity (Bq)]]=\"\",\"\",Table5[[#This Row],[Activity (Bq)]]/37000000000)","v":""},null,null,null,null,null,null,null,null,null,null,null,null,null,null,null,null,null,null,null,"As-72"]
[null,null,null,{"$f":"IF(Table5[[#This Row],[Mass (g)]]=\"\",\"\",Table5[[#This Row],[Mass (g)]]*VLOOKUP(Table5[[#This Row],[Nuclide]],Doedata,4)*37000000000)","v":""},null,null,null,null,null,{"$f":"IF(Table5[[#This Row],[Activity (Bq)]]=\"\",\"\",Table5[[#This Row],[Activity (Bq)]]/37000000000)","v":""},null,null,null,null,null,null,null,null,null,null,null,null,null,null,null,null,null,null,null,"As-73"]
[null,null,null,{"$f":"IF(Table5[[#This Row],[Mass (g)]]=\"\",\"\",Table5[[#This Row],[Mass (g)]]*VLOOKUP(Table5[[#This Row],[Nuclide]],Doedata,4)*37000000000)","v":""},null,null,null,null,null,{"$f":"IF(Table5[[#This Row],[Activity (Bq)]]=\"\",\"\",Table5[[#This Row],[Activity (Bq)]]/37000000000)","v":""},null,null,null,null,null,null,null,null,null,null,null,null,null,null,null,null,null,null,null,"As-74"]
[null,null,null,{"$f":"IF(Table5[[#This Row],[Mass (g)]]=\"\",\"\",Table5[[#This Row],[Mass (g)]]*VLOOKUP(Table5[[#This Row],[Nuclide]],Doedata,4)*37000000000)","v":""},null,null,null,null,null,{"$f":"IF(Table5[[#This Row],[Activity (Bq)]]=\"\",\"\",Table5[[#This Row],[Activity (Bq)]]/37000000000)","v":""},null,null,null,null,null,null,null,null,null,null,null,null,null,null,null,null,null,null,null,"As-76"]
[null,null,null,{"$f":"IF(Table5[[#This Row],[Mass (g)]]=\"\",\"\",Table5[[#This Row],[Mass (g)]]*VLOOKUP(Table5[[#This Row],[Nuclide]],Doedata,4)*37000000000)","v":""},null,null,null,null,null,{"$f":"IF(Table5[[#This Row],[Activity (Bq)]]=\"\",\"\",Table5[[#This Row],[Activity (Bq)]]/37000000000)","v":""},null,null,null,null,null,null,null,null,null,null,null,null,null,null,null,null,null,null,null,"As-77"]
[null,null,null,{"$f":"IF(Table5[[#This Row],[Mass (g)]]=\"\",\"\",Table5[[#This Row],[Mass (g)]]*VLOOKUP(Table5[[#This Row],[Nuclide]],Doedata,4)*37000000000)","v":""},null,null,null,null,null,{"$f":"IF(Table5[[#This Row],[Activity (Bq)]]=\"\",\"\",Table5[[#This Row],[Activity (Bq)]]/37000000000)","v":""},null,null,null,null,null,null,null,null,null,null,null,null,null,null,null,null,null,null,null,"As-78"]
[null,null,null,{"$f":"IF(Table5[[#This Row],[Mass (g)]]=\"\",\"\",Table5[[#This Row],[Mass (g)]]*VLOOKUP(Table5[[#This Row],[Nuclide]],Doedata,4)*37000000000)","v":""},null,null,null,null,null,{"$f":"IF(Table5[[#This Row],[Activity (Bq)]]=\"\",\"\",Table5[[#This Row],[Activity (Bq)]]/37000000000)","v":""},null,null,null,null,null,null,null,null,null,null,null,null,null,null,null,null,null,null,null,"At-207"]
[null,null,null,{"$f":"IF(Table5[[#This Row],[Mass (g)]]=\"\",\"\",Table5[[#This Row],[Mass (g)]]*VLOOKUP(Table5[[#This Row],[Nuclide]],Doedata,4)*37000000000)","v":""},null,null,null,null,null,{"$f":"IF(Table5[[#This Row],[Activity (Bq)]]=\"\",\"\",Table5[[#This Row],[Activity (Bq)]]/37000000000)","v":""},null,null,null,null,null,null,null,null,null,null,null,null,null,null,null,null,null,null,null,"At-211"]
[null,null,null,{"$f":"IF(Table5[[#This Row],[Mass (g)]]=\"\",\"\",Table5[[#This Row],[Mass (g)]]*VLOOKUP(Table5[[#This Row],[Nuclide]],Doedata,4)*37000000000)","v":""},null,null,null,null,null,{"$f":"IF(Table5[[#This Row],[Activity (Bq)]]=\"\",\"\",Table5[[#This Row],[Activity (Bq)]]/37000000000)","v":""},null,null,null,null,null,null,null,null,null,null,null,null,null,null,null,null,null,null,null,"Au-193"]
[null,null,null,{"$f":"IF(Table5[[#This Row],[Mass (g)]]=\"\",\"\",Table5[[#This Row],[Mass (g)]]*VLOOKUP(Table5[[#This Row],[Nuclide]],Doedata,4)*37000000000)","v":""},null,null,null,null,null,{"$f":"IF(Table5[[#This Row],[Activity (Bq)]]=\"\",\"\",Table5[[#This Row],[Activity (Bq)]]/37000000000)","v":""},null,null,null,null,null,null,null,null,null,null,null,null,null,null,null,null,null,null,null,"Au-194"]
[null,null,null,{"$f":"IF(Table5[[#This Row],[Mass (g)]]=\"\",\"\",Table5[[#This Row],[Mass (g)]]*VLOOKUP(Table5[[#This Row],[Nuclide]],Doedata,4)*37000000000)","v":""},null,null,null,null,null,{"$f":"IF(Table5[[#This Row],[Activity (Bq)]]=\"\",\"\",Table5[[#This Row],[Activity (Bq)]]/37000000000)","v":""},null,null,null,null,null,null,null,null,null,null,null,null,null,null,null,null,null,null,null,"Au-195"]
[null,null,null,{"$f":"IF(Table5[[#This Row],[Mass (g)]]=\"\",\"\",Table5[[#This Row],[Mass (g)]]*VLOOKUP(Table5[[#This Row],[Nuclide]],Doedata,4)*37000000000)","v":""},null,null,null,null,null,{"$f":"IF(Table5[[#This Row],[Activity (Bq)]]=\"\",\"\",Table5[[#This Row],[Activity (Bq)]]/37000000000)","v":""},null,null,null,null,null,null,null,null,null,null,null,null,null,null,null,null,null,null,null,"Au-198"]
[null,null,null,{"$f":"IF(Table5[[#This Row],[Mass (g)]]=\"\",\"\",Table5[[#This Row],[Mass (g)]]*VLOOKUP(Table5[[#This Row],[Nuclide]],Doedata,4)*37000000000)","v":""},null,null,null,null,null,{"$f":"IF(Table5[[#This Row],[Activity (Bq)]]=\"\",\"\",Table5[[#This Row],[Activity (Bq)]]/37000000000)","v":""},null,null,null,null,null,null,null,null,null,null,null,null,null,null,null,null,null,null,null,"Au-198m"]
[null,null,null,{"$f":"IF(Table5[[#This Row],[Mass (g)]]=\"\",\"\",Table5[[#This Row],[Mass (g)]]*VLOOKUP(Table5[[#This Row],[Nuclide]],Doedata,4)*37000000000)","v":""},null,null,null,null,null,{"$f":"IF(Table5[[#This Row],[Activity (Bq)]]=\"\",\"\",Table5[[#This Row],[Activity (Bq)]]/37000000000)","v":""},null,null,null,null,null,null,null,null,null,null,null,null,null,null,null,null,null,null,null,"Au-199"]
[null,null,null,{"$f":"IF(Table5[[#This Row],[Mass (g)]]=\"\",\"\",Table5[[#This Row],[Mass (g)]]*VLOOKUP(Table5[[#This Row],[Nuclide]],Doedata,4)*37000000000)","v":""},null,null,null,null,null,{"$f":"IF(Table5[[#This Row],[Activity (Bq)]]=\"\",\"\",Table5[[#This Row],[Activity (Bq)]]/37000000000)","v":""},null,null,null,null,null,null,null,null,null,null,null,null,null,null,null,null,null,null,null,"Au-200"]
[null,null,null,{"$f":"IF(Table5[[#This Row],[Mass (g)]]=\"\",\"\",Table5[[#This Row],[Mass (g)]]*VLOOKUP(Table5[[#This Row],[Nuclide]],Doedata,4)*37000000000)","v":""},null,null,null,null,null,{"$f":"IF(Table5[[#This Row],[Activity (Bq)]]=\"\",\"\",Table5[[#This Row],[Activity (Bq)]]/37000000000)","v":""},null,null,null,null,null,null,null,null,null,null,null,null,null,null,null,null,null,null,null,"Au-200m"]
[null,null,null,{"$f":"IF(Table5[[#This Row],[Mass (g)]]=\"\",\"\",Table5[[#This Row],[Mass (g)]]*VLOOKUP(Table5[[#This Row],[Nuclide]],Doedata,4)*37000000000)","v":""},null,null,null,null,null,{"$f":"IF(Table5[[#This Row],[Activity (Bq)]]=\"\",\"\",Table5[[#This Row],[Activity (Bq)]]/37000000000)","v":""},null,null,null,null,null,null,null,null,null,null,null,null,null,null,null,null,null,null,null,"Au-201"]
[null,null,null,{"$f":"IF(Table5[[#This Row],[Mass (g)]]=\"\",\"\",Table5[[#This Row],[Mass (g)]]*VLOOKUP(Table5[[#This Row],[Nuclide]],Doedata,4)*37000000000)","v":""},null,null,null,null,null,{"$f":"IF(Table5[[#This Row],[Activity (Bq)]]=\"\",\"\",Table5[[#This Row],[Activity (Bq)]]/37000000000)","v":""},null,null,null,null,null,null,null,null,null,null,null,null,null,null,null,null,null,null,null,"Ba-126"]
[null,null,null,{"$f":"IF(Table5[[#This Row],[Mass (g)]]=\"\",\"\",Table5[[#This Row],[Mass (g)]]*VLOOKUP(Table5[[#This Row],[Nuclide]],Doedata,4)*37000000000)","v":""},null,null,null,null,null,{"$f":"IF(Table5[[#This Row],[Activity (Bq)]]=\"\",\"\",Table5[[#This Row],[Activity (Bq)]]/37000000000)","v":""},null,null,null,null,null,null,null,null,null,null,null,null,null,null,null,null,null,null,null,"Ba-128"]
[null,null,null,{"$f":"IF(Table5[[#This Row],[Mass (g)]]=\"\",\"\",Table5[[#This Row],[Mass (g)]]*VLOOKUP(Table5[[#This Row],[Nuclide]],Doedata,4)*37000000000)","v":""},null,null,null,null,null,{"$f":"IF(Table5[[#This Row],[Activity (Bq)]]=\"\",\"\",Table5[[#This Row],[Activity (Bq)]]/37000000000)","v":""},null,null,null,null,null,null,null,null,null,null,null,null,null,null,null,null,null,null,null,"Ba-131"]
[null,null,null,{"$f":"IF(Table5[[#This Row],[Mass (g)]]=\"\",\"\",Table5[[#This Row],[Mass (g)]]*VLOOKUP(Table5[[#This Row],[Nuclide]],Doedata,4)*37000000000)","v":""},null,null,null,null,null,{"$f":"IF(Table5[[#This Row],[Activity (Bq)]]=\"\",\"\",Table5[[#This Row],[Activity (Bq)]]/37000000000)","v":""},null,null,null,null,null,null,null,null,null,null,null,null,null,null,null,null,null,null,null,"Ba-131m"]
[null,null,null,{"$f":"IF(Table5[[#This Row],[Mass (g)]]=\"\",\"\",Table5[[#This Row],[Mass (g)]]*VLOOKUP(Table5[[#This Row],[Nuclide]],Doedata,4)*37000000000)","v":""},null,null,null,null,null,{"$f":"IF(Table5[[#This Row],[Activity (Bq)]]=\"\",\"\",Table5[[#This Row],[Activity (Bq)]]/37000000000)","v":""},null,null,null,null,null,null,null,null,null,null,null,null,null,null,null,null,null,null,null,"Ba-133"]
[null,null,null,{"$f":"IF(Table5[[#This Row],[Mass (g)]]=\"\",\"\",Table5[[#This Row],[Mass (g)]]*VLOOKUP(Table5[[#This Row],[Nuclide]],Doedata,4)*37000000000)","v":""},null,null,null,null,null,{"$f":"IF(Table5[[#This Row],[Activity (Bq)]]=\"\",\"\",Table5[[#This Row],[Activity (Bq)]]/37000000000)","v":""},null,null,null,null,null,null,null,null,null,null,null,null,null,null,null,null,null,null,null,"Ba-133m"]
[null,null,null,{"$f":"IF(Table5[[#This Row],[Mass (g)]]=\"\",\"\",Table5[[#This Row],[Mass (g)]]*VLOOKUP(Table5[[#This Row],[Nuclide]],Doedata,4)*37000000000)","v":""},null,null,null,null,null,{"$f":"IF(Table5[[#This Row],[Activity (Bq)]]=\"\",\"\",Table5[[#This Row],[Activity (Bq)]]/37000000000)","v":""},null,null,null,null,null,null,null,null,null,null,null,null,null,null,null,null,null,null,null,"Ba-135m"]
[null,null,null,{"$f":"IF(Table5[[#This Row],[Mass (g)]]=\"\",\"\",Table5[[#This Row],[Mass (g)]]*VLOOKUP(Table5[[#This Row],[Nuclide]],Doedata,4)*37000000000)","v":""},null,null,null,null,null,{"$f":"IF(Table5[[#This Row],[Activity (Bq)]]=\"\",\"\",Table5[[#This Row],[Activity (Bq)]]/37000000000)","v":""},null,null,null,null,null,null,null,null,null,null,null,null,null,null,null,null,null,null,null,"Ba-139"]
[null,null,null,{"$f":"IF(Table5[[#This Row],[Mass (g)]]=\"\",\"\",Table5[[#This Row],[Mass (g)]]*VLOOKUP(Table5[[#This Row],[Nuclide]],Doedata,4)*37000000000)","v":""},null,null,null,null,null,{"$f":"IF(Table5[[#This Row],[Activity (Bq)]]=\"\",\"\",Table5[[#This Row],[Activity (Bq)]]/37000000000)","v":""},null,null,null,null,null,null,null,null,null,null,null,null,null,null,null,null,null,null,null,"Ba-140"]
[null,null,null,{"$f":"IF(Table5[[#This Row],[Mass (g)]]=\"\",\"\",Table5[[#This Row],[Mass (g)]]*VLOOKUP(Table5[[#This Row],[Nuclide]],Doedata,4)*37000000000)","v":""},null,null,null,null,null,{"$f":"IF(Table5[[#This Row],[Activity (Bq)]]=\"\",\"\",Table5[[#This Row],[Activity (Bq)]]/37000000000)","v":""},null,null,null,null,null,null,null,null,null,null,null,null,null,null,null,null,null,null,null,"Ba-141"]
[null,null,null,{"$f":"IF(Table5[[#This Row],[Mass (g)]]=\"\",\"\",Table5[[#This Row],[Mass (g)]]*VLOOKUP(Table5[[#This Row],[Nuclide]],Doedata,4)*37000000000)","v":""},null,null,null,null,null,{"$f":"IF(Table5[[#This Row],[Activity (Bq)]]=\"\",\"\",Table5[[#This Row],[Activity (Bq)]]/37000000000)","v":""},null,null,null,null,null,null,null,null,null,null,null,null,null,null,null,null,null,null,null,"Ba-142"]
[null,null,null,{"$f":"IF(Table5[[#This Row],[Mass (g)]]=\"\",\"\",Table5[[#This Row],[Mass (g)]]*VLOOKUP(Table5[[#This Row],[Nuclide]],Doedata,4)*37000000000)","v":""},null,null,null,null,null,{"$f":"IF(Table5[[#This Row],[Activity (Bq)]]=\"\",\"\",Table5[[#This Row],[Activity (Bq)]]/37000000000)","v":""},null,null,null,null,null,null,null,null,null,null,null,null,null,null,null,null,null,null,null,"Be-10"]
[null,null,null,{"$f":"IF(Table5[[#This Row],[Mass (g)]]=\"\",\"\",Table5[[#This Row],[Mass (g)]]*VLOOKUP(Table5[[#This Row],[Nuclide]],Doedata,4)*37000000000)","v":""},null,null,null,null,null,{"$f":"IF(Table5[[#This Row],[Activity (Bq)]]=\"\",\"\",Table5[[#This Row],[Activity (Bq)]]/37000000000)","v":""},null,null,null,null,null,null,null,null,null,null,null,null,null,null,null,null,null,null,null,"Be-7"]
[null,null,null,{"$f":"IF(Table5[[#This Row],[Mass (g)]]=\"\",\"\",Table5[[#This Row],[Mass (g)]]*VLOOKUP(Table5[[#This Row],[Nuclide]],Doedata,4)*37000000000)","v":""},null,null,null,null,null,{"$f":"IF(Table5[[#This Row],[Activity (Bq)]]=\"\",\"\",Table5[[#This Row],[Activity (Bq)]]/37000000000)","v":""},null,null,null,null,null,null,null,null,null,null,null,null,null,null,null,null,null,null,null,"Bi-200"]
[null,null,null,{"$f":"IF(Table5[[#This Row],[Mass (g)]]=\"\",\"\",Table5[[#This Row],[Mass (g)]]*VLOOKUP(Table5[[#This Row],[Nuclide]],Doedata,4)*37000000000)","v":""},null,null,null,null,null,{"$f":"IF(Table5[[#This Row],[Activity (Bq)]]=\"\",\"\",Table5[[#This Row],[Activity (Bq)]]/37000000000)","v":""},null,null,null,null,null,null,null,null,null,null,null,null,null,null,null,null,null,null,null,"Bi-201"]
[null,null,null,{"$f":"IF(Table5[[#This Row],[Mass (g)]]=\"\",\"\",Table5[[#This Row],[Mass (g)]]*VLOOKUP(Table5[[#This Row],[Nuclide]],Doedata,4)*37000000000)","v":""},null,null,null,null,null,{"$f":"IF(Table5[[#This Row],[Activity (Bq)]]=\"\",\"\",Table5[[#This Row],[Activity (Bq)]]/37000000000)","v":""},null,null,null,null,null,null,null,null,null,null,null,null,null,null,null,null,null,null,null,"Bi-202"]
[null,null,null,{"$f":"IF(Table5[[#This Row],[Mass (g)]]=\"\",\"\",Table5[[#This Row],[Mass (g)]]*VLOOKUP(Table5[[#This Row],[Nuclide]],Doedata,4)*37000000000)","v":""},null,null,null,null,null,{"$f":"IF(Table5[[#This Row],[Activity (Bq)]]=\"\",\"\",Table5[[#This Row],[Activity (Bq)]]/37000000000)","v":""},null,null,null,null,null,null,null,null,null,null,null,null,null,null,null,null,null,null,null,"Bi-203"]
[null,null,null,{"$f":"IF(Table5[[#This Row],[Mass (g)]]=\"\",\"\",Table5[[#This Row],[Mass (g)]]*VLOOKUP(Table5[[#This Row],[Nuclide]],Doedata,4)*37000000000)","v":""},null,null,null,null,null,{"$f":"IF(Table5[[#This Row],[Activity (Bq)]]=\"\",\"\",Table5[[#This Row],[Activity (Bq)]]/37000000000)","v":""},null,null,null,null,null,null,null,null,null,null,null,null,null,null,null,null,null,null,null,"Bi-205"]
[null,null,null,{"$f":"IF(Table5[[#This Row],[Mass (g)]]=\"\",\"\",Table5[[#This Row],[Mass (g)]]*VLOOKUP(Table5[[#This Row],[Nuclide]],Doedata,4)*37000000000)","v":""},null,null,null,null,null,{"$f":"IF(Table5[[#This Row],[Activity (Bq)]]=\"\",\"\",Table5[[#This Row],[Activity (Bq)]]/37000000000)","v":""},null,null,null,null,null,null,null,null,null,null,null,null,null,null,null,null,null,null,null,"Bi-206"]
[null,null,null,{"$f":"IF(Table5[[#This Row],[Mass (g)]]=\"\",\"\",Table5[[#This Row],[Mass (g)]]*VLOOKUP(Table5[[#This Row],[Nuclide]],Doedata,4)*37000000000)","v":""},null,null,null,null,null,{"$f":"IF(Table5[[#This Row],[Activity (Bq)]]=\"\",\"\",Table5[[#This Row],[Activity (Bq)]]/37000000000)","v":""},null,null,null,null,null,null,null,null,null,null,null,null,null,null,null,null,null,null,null,"Bi-207"]
[null,null,null,{"$f":"IF(Table5[[#This Row],[Mass (g)]]=\"\",\"\",Table5[[#This Row],[Mass (g)]]*VLOOKUP(Table5[[#This Row],[Nuclide]],Doedata,4)*37000000000)","v":""},null,null,null,null,null,{"$f":"IF(Table5[[#This Row],[Activity (Bq)]]=\"\",\"\",Table5[[#This Row],[Activity (Bq)]]/37000000000)","v":""},null,null,null,null,null,null,null,null,null,null,null,null,null,null,null,null,null,null,null,"Bi-210"]
[null,null,null,{"$f":"IF(Table5[[#This Row],[Mass (g)]]=\"\",\"\",Table5[[#This Row],[Mass (g)]]*VLOOKUP(Table5[[#This Row],[Nuclide]],Doedata,4)*37000000000)","v":""},null,null,null,null,null,{"$f":"IF(Table5[[#This Row],[Activity (Bq)]]=\"\",\"\",Table5[[#This Row],[Activity (Bq)]]/37000000000)","v":""},null,null,null,null,null,null,null,null,null,null,null,null,null,null,null,null,null,null,null,"Bi-210m"]
[null,null,null,{"$f":"IF(Table5[[#This Row],[Mass (g)]]=\"\",\"\",Table5[[#This Row],[Mass (g)]]*VLOOKUP(Table5[[#This Row],[Nuclide]],Doedata,4)*37000000000)","v":""},null,null,null,null,null,{"$f":"IF(Table5[[#This Row],[Activity (Bq)]]=\"\",\"\",Table5[[#This Row],[Activity (Bq)]]/37000000000)","v":""},null,null,null,null,null,null,null,null,null,null,null,null,null,null,null,null,null,null,null,"Bi-212"]
[null,null,null,{"$f":"IF(Table5[[#This Row],[Mass (g)]]=\"\",\"\",Table5[[#This Row],[Mass (g)]]*VLOOKUP(Table5[[#This Row],[Nuclide]],Doedata,4)*37000000000)","v":""},null,null,null,null,null,{"$f":"IF(Table5[[#This Row],[Activity (Bq)]]=\"\",\"\",Table5[[#This Row],[Activity (Bq)]]/37000000000)","v":""},null,null,null,null,null,null,null,null,null,null,null,null,null,null,null,null,null,null,null,"Bi-213"]
[null,null,null,{"$f":"IF(Table5[[#This Row],[Mass (g)]]=\"\",\"\",Table5[[#This Row],[Mass (g)]]*VLOOKUP(Table5[[#This Row],[Nuclide]],Doedata,4)*37000000000)","v":""},null,null,null,null,null,{"$f":"IF(Table5[[#This Row],[Activity (Bq)]]=\"\",\"\",Table5[[#This Row],[Activity (Bq)]]/37000000000)","v":""},null,null,null,null,null,null,null,null,null,null,null,null,null,null,null,null,null,null,null,"Bi-214"]
[null,null,null,{"$f":"IF(Table5[[#This Row],[Mass (g)]]=\"\",\"\",Table5[[#This Row],[Mass (g)]]*VLOOKUP(Table5[[#This Row],[Nuclide]],Doedata,4)*37000000000)","v":""},null,null,null,null,null,{"$f":"IF(Table5[[#This Row],[Activity (Bq)]]=\"\",\"\",Table5[[#This Row],[Activity (Bq)]]/37000000000)","v":""},null,null,null,null,null,null,null,null,null,null,null,null,null,null,null,null,null,null,null,"Bk-245"]
[null,null,null,{"$f":"IF(Table5[[#This Row],[Mass (g)]]=\"\",\"\",Table5[[#This Row],[Mass (g)]]*VLOOKUP(Table5[[#This Row],[Nuclide]],Doedata,4)*37000000000)","v":""},null,null,null,null,null,{"$f":"IF(Table5[[#This Row],[Activity (Bq)]]=\"\",\"\",Table5[[#This Row],[Activity (Bq)]]/37000000000)","v":""},null,null,null,null,null,null,null,null,null,null,null,null,null,null,null,null,null,null,null,"Bk-246"]
[null,null,null,{"$f":"IF(Table5[[#This Row],[Mass (g)]]=\"\",\"\",Table5[[#This Row],[Mass (g)]]*VLOOKUP(Table5[[#This Row],[Nuclide]],Doedata,4)*37000000000)","v":""},null,null,null,null,null,{"$f":"IF(Table5[[#This Row],[Activity (Bq)]]=\"\",\"\",Table5[[#This Row],[Activity (Bq)]]/37000000000)","v":""},null,null,null,null,null,null,null,null,null,null,null,null,null,null,null,null,null,null,null,"Bk-247"]
[null,null,null,{"$f":"IF(Table5[[#This Row],[Mass (g)]]=\"\",\"\",Table5[[#This Row],[Mass (g)]]*VLOOKUP(Table5[[#This Row],[Nuclide]],Doedata,4)*37000000000)","v":""},null,null,null,null,null,{"$f":"IF(Table5[[#This Row],[Activity (Bq)]]=\"\",\"\",Table5[[#This Row],[Activity (Bq)]]/37000000000)","v":""},null,null,null,null,null,null,null,null,null,null,null,null,null,null,null,null,null,null,null,"Bk-249"]
[null,null,null,{"$f":"IF(Table5[[#This Row],[Mass (g)]]=\"\",\"\",Table5[[#This Row],[Mass (g)]]*VLOOKUP(Table5[[#This Row],[Nuclide]],Doedata,4)*37000000000)","v":""},null,null,null,null,null,{"$f":"IF(Table5[[#This Row],[Activity (Bq)]]=\"\",\"\",Table5[[#This Row],[Activity (Bq)]]/37000000000)","v":""},null,null,null,null,null,null,null,null,null,null,null,null,null,null,null,null,null,null,null,"Bk-250"]
[null,null,null,{"$f":"IF(Table5[[#This Row],[Mass (g)]]=\"\",\"\",Table5[[#This Row],[Mass (g)]]*VLOOKUP(Table5[[#This Row],[Nuclide]],Doedata,4)*37000000000)","v":""},null,null,null,null,null,{"$f":"IF(Table5[[#This Row],[Activity (Bq)]]=\"\",\"\",Table5[[#This Row],[Activity (Bq)]]/37000000000)","v":""},null,null,null,null,null,null,null,null,null,null,null,null,null,null,null,null,null,null,null,"Br-74"]
[null,null,null,{"$f":"IF(Table5[[#This Row],[Mass (g)]]=\"\",\"\",Table5[[#This Row],[Mass (g)]]*VLOOKUP(Table5[[#This Row],[Nuclide]],Doedata,4)*37000000000)","v":""},null,null,null,null,null,{"$f":"IF(Table5[[#This Row],[Activity (Bq)]]=\"\",\"\",Table5[[#This Row],[Activity (Bq)]]/37000000000)","v":""},null,null,null,null,null,null,null,null,null,null,null,null,null,null,null,null,null,null,null,"Br-74m"]
[null,null,null,{"$f":"IF(Table5[[#This Row],[Mass (g)]]=\"\",\"\",Table5[[#This Row],[Mass (g)]]*VLOOKUP(Table5[[#This Row],[Nuclide]],Doedata,4)*37000000000)","v":""},null,null,null,null,null,{"$f":"IF(Table5[[#This Row],[Activity (Bq)]]=\"\",\"\",Table5[[#This Row],[Activity (Bq)]]/37000000000)","v":""},null,null,null,null,null,null,null,null,null,null,null,null,null,null,null,null,null,null,null,"Br-75"]
[null,null,null,{"$f":"IF(Table5[[#This Row],[Mass (g)]]=\"\",\"\",Table5[[#This Row],[Mass (g)]]*VLOOKUP(Table5[[#This Row],[Nuclide]],Doedata,4)*37000000000)","v":""},null,null,null,null,null,{"$f":"IF(Table5[[#This Row],[Activity (Bq)]]=\"\",\"\",Table5[[#This Row],[Activity (Bq)]]/37000000000)","v":""},null,null,null,null,null,null,null,null,null,null,null,null,null,null,null,null,null,null,null,"Br-76"]
[null,null,null,{"$f":"IF(Table5[[#This Row],[Mass (g)]]=\"\",\"\",Table5[[#This Row],[Mass (g)]]*VLOOKUP(Table5[[#This Row],[Nuclide]],Doedata,4)*37000000000)","v":""},null,null,null,null,null,{"$f":"IF(Table5[[#This Row],[Activity (Bq)]]=\"\",\"\",Table5[[#This Row],[Activity (Bq)]]/37000000000)","v":""},null,null,null,null,null,null,null,null,null,null,null,null,null,null,null,null,null,null,null,"Br-77"]
[null,null,null,{"$f":"IF(Table5[[#This Row],[Mass (g)]]=\"\",\"\",Table5[[#This Row],[Mass (g)]]*VLOOKUP(Table5[[#This Row],[Nuclide]],Doedata,4)*37000000000)","v":""},null,null,null,null,null,{"$f":"IF(Table5[[#This Row],[Activity (Bq)]]=\"\",\"\",Table5[[#This Row],[Activity (Bq)]]/37000000000)","v":""},null,null,null,null,null,null,null,null,null,null,null,null,null,null,null,null,null,null,null,"Br-80"]
[null,null,null,{"$f":"IF(Table5[[#This Row],[Mass (g)]]=\"\",\"\",Table5[[#This Row],[Mass (g)]]*VLOOKUP(Table5[[#This Row],[Nuclide]],Doedata,4)*37000000000)","v":""},null,null,null,null,null,{"$f":"IF(Table5[[#This Row],[Activity (Bq)]]=\"\",\"\",Table5[[#This Row],[Activity (Bq)]]/37000000000)","v":""},null,null,null,null,null,null,null,null,null,null,null,null,null,null,null,null,null,null,null,"Br-80m"]
[null,null,null,{"$f":"IF(Table5[[#This Row],[Mass (g)]]=\"\",\"\",Table5[[#This Row],[Mass (g)]]*VLOOKUP(Table5[[#This Row],[Nuclide]],Doedata,4)*37000000000)","v":""},null,null,null,null,null,{"$f":"IF(Table5[[#This Row],[Activity (Bq)]]=\"\",\"\",Table5[[#This Row],[Activity (Bq)]]/37000000000)","v":""},null,null,null,null,null,null,null,null,null,null,null,null,null,null,null,null,null,null,null,"Br-82"]
[null,null,null,{"$f":"IF(Table5[[#This Row],[Mass (g)]]=\"\",\"\",Table5[[#This Row],[Mass (g)]]*VLOOKUP(Table5[[#This Row],[Nuclide]],Doedata,4)*37000000000)","v":""},null,null,null,null,null,{"$f":"IF(Table5[[#This Row],[Activity (Bq)]]=\"\",\"\",Table5[[#This Row],[Activity (Bq)]]/37000000000)","v":""},null,null,null,null,null,null,null,null,null,null,null,null,null,null,null,null,null,null,null,"Br-83"]
[null,null,null,{"$f":"IF(Table5[[#This Row],[Mass (g)]]=\"\",\"\",Table5[[#This Row],[Mass (g)]]*VLOOKUP(Table5[[#This Row],[Nuclide]],Doedata,4)*37000000000)","v":""},null,null,null,null,null,{"$f":"IF(Table5[[#This Row],[Activity (Bq)]]=\"\",\"\",Table5[[#This Row],[Activity (Bq)]]/37000000000)","v":""},null,null,null,null,null,null,null,null,null,null,null,null,null,null,null,null,null,null,null,"Br-84"]
[null,null,null,{"$f":"IF(Table5[[#This Row],[Mass (g)]]=\"\",\"\",Table5[[#This Row],[Mass (g)]]*VLOOKUP(Table5[[#This Row],[Nuclide]],Doedata,4)*37000000000)","v":""},null,null,null,null,null,{"$f":"IF(Table5[[#This Row],[Activity (Bq)]]=\"\",\"\",Table5[[#This Row],[Activity (Bq)]]/37000000000)","v":""},null,null,null,null,null,null,null,null,null,null,null,null,null,null,null,null,null,null,null,"C-11"]
[null,null,null,{"$f":"IF(Table5[[#This Row],[Mass (g)]]=\"\",\"\",Table5[[#This Row],[Mass (g)]]*VLOOKUP(Table5[[#This Row],[Nuclide]],Doedata,4)*37000000000)","v":""},null,null,null,null,null,{"$f":"IF(Table5[[#This Row],[Activity (Bq)]]=\"\",\"\",Table5[[#This Row],[Activity (Bq)]]/37000000000)","v":""},null,null,null,null,null,null,null,null,null,null,null,null,null,null,null,null,null,null,null,"C1-36"]
[null,null,null,{"$f":"IF(Table5[[#This Row],[Mass (g)]]=\"\",\"\",Table5[[#This Row],[Mass (g)]]*VLOOKUP(Table5[[#This Row],[Nuclide]],Doedata,4)*37000000000)","v":""},null,null,null,null,null,{"$f":"IF(Table5[[#This Row],[Activity (Bq)]]=\"\",\"\",Table5[[#This Row],[Activity (Bq)]]/37000000000)","v":""},null,null,null,null,null,null,null,null,null,null,null,null,null,null,null,null,null,null,null,"C1-38"]
[null,null,null,{"$f":"IF(Table5[[#This Row],[Mass (g)]]=\"\",\"\",Table5[[#This Row],[Mass (g)]]*VLOOKUP(Table5[[#This Row],[Nuclide]],Doedata,4)*37000000000)","v":""},null,null,null,null,null,{"$f":"IF(Table5[[#This Row],[Activity (Bq)]]=\"\",\"\",Table5[[#This Row],[Activity (Bq)]]/37000000000)","v":""},null,null,null,null,null,null,null,null,null,null,null,null,null,null,null,null,null,null,null,"C1-39"]
[null,null,null,{"$f":"IF(Table5[[#This Row],[Mass (g)]]=\"\",\"\",Table5[[#This Row],[Mass (g)]]*VLOOKUP(Table5[[#This Row],[Nuclide]],Doedata,4)*37000000000)","v":""},null,null,null,null,null,{"$f":"IF(Table5[[#This Row],[Activity (Bq)]]=\"\",\"\",Table5[[#This Row],[Activity (Bq)]]/37000000000)","v":""},null,null,null,null,null,null,null,null,null,null,null,null,null,null,null,null,null,null,null,"C-14"]
[null,null,null,{"$f":"IF(Table5[[#This Row],[Mass (g)]]=\"\",\"\",Table5[[#This Row],[Mass (g)]]*VLOOKUP(Table5[[#This Row],[Nuclide]],Doedata,4)*37000000000)","v":""},null,null,null,null,null,{"$f":"IF(Table5[[#This Row],[Activity (Bq)]]=\"\",\"\",Table5[[#This Row],[Activity (Bq)]]/37000000000)","v":""},null,null,null,null,null,null,null,null,null,null,null,null,null,null,null,null,null,null,null,"Ca-41"]
[null,null,null,{"$f":"IF(Table5[[#This Row],[Mass (g)]]=\"\",\"\",Table5[[#This Row],[Mass (g)]]*VLOOKUP(Table5[[#This Row],[Nuclide]],Doedata,4)*37000000000)","v":""},null,null,null,null,null,{"$f":"IF(Table5[[#This Row],[Activity (Bq)]]=\"\",\"\",Table5[[#This Row],[Activity (Bq)]]/37000000000)","v":""},null,null,null,null,null,null,null,null,null,null,null,null,null,null,null,null,null,null,null,"Ca-45"]
[null,null,null,{"$f":"IF(Table5[[#This Row],[Mass (g)]]=\"\",\"\",Table5[[#This Row],[Mass (g)]]*VLOOKUP(Table5[[#This Row],[Nuclide]],Doedata,4)*37000000000)","v":""},null,null,null,null,null,{"$f":"IF(Table5[[#This Row],[Activity (Bq)]]=\"\",\"\",Table5[[#This Row],[Activity (Bq)]]/37000000000)","v":""},null,null,null,null,null,null,null,null,null,null,null,null,null,null,null,null,null,null,null,"Ca-47"]
[null,null,null,{"$f":"IF(Table5[[#This Row],[Mass (g)]]=\"\",\"\",Table5[[#This Row],[Mass (g)]]*VLOOKUP(Table5[[#This Row],[Nuclide]],Doedata,4)*37000000000)","v":""},null,null,null,null,null,{"$f":"IF(Table5[[#This Row],[Activity (Bq)]]=\"\",\"\",Table5[[#This Row],[Activity (Bq)]]/37000000000)","v":""},null,null,null,null,null,null,null,null,null,null,null,null,null,null,null,null,null,null,null,"Cd-104"]
[null,null,null,{"$f":"IF(Table5[[#This Row],[Mass (g)]]=\"\",\"\",Table5[[#This Row],[Mass (g)]]*VLOOKUP(Table5[[#This Row],[Nuclide]],Doedata,4)*37000000000)","v":""},null,null,null,null,null,{"$f":"IF(Table5[[#This Row],[Activity (Bq)]]=\"\",\"\",Table5[[#This Row],[Activity (Bq)]]/37000000000)","v":""},null,null,null,null,null,null,null,null,null,null,null,null,null,null,null,null,null,null,null,"Cd-107"]
[null,null,null,{"$f":"IF(Table5[[#This Row],[Mass (g)]]=\"\",\"\",Table5[[#This Row],[Mass (g)]]*VLOOKUP(Table5[[#This Row],[Nuclide]],Doedata,4)*37000000000)","v":""},null,null,null,null,null,{"$f":"IF(Table5[[#This Row],[Activity (Bq)]]=\"\",\"\",Table5[[#This Row],[Activity (Bq)]]/37000000000)","v":""},null,null,null,null,null,null,null,null,null,null,null,null,null,null,null,null,null,null,null,"Cd-109"]
[null,null,null,{"$f":"IF(Table5[[#This Row],[Mass (g)]]=\"\",\"\",Table5[[#This Row],[Mass (g)]]*VLOOKUP(Table5[[#This Row],[Nuclide]],Doedata,4)*37000000000)","v":""},null,null,null,null,null,{"$f":"IF(Table5[[#This Row],[Activity (Bq)]]=\"\",\"\",Table5[[#This Row],[Activity (Bq)]]/37000000000)","v":""},null,null,null,null,null,null,null,null,null,null,null,null,null,null,null,null,null,null,null,"Cd-113"]
[null,null,null,{"$f":"IF(Table5[[#This Row],[Mass (g)]]=\"\",\"\",Table5[[#This Row],[Mass (g)]]*VLOOKUP(Table5[[#This Row],[Nuclide]],Doedata,4)*37000000000)","v":""},null,null,null,null,null,{"$f":"IF(Table5[[#This Row],[Activity (Bq)]]=\"\",\"\",Table5[[#This Row],[Activity (Bq)]]/37000000000)","v":""},null,null,null,null,null,null,null,null,null,null,null,null,null,null,null,null,null,null,null,"Cd-113m"]
[null,null,null,{"$f":"IF(Table5[[#This Row],[Mass (g)]]=\"\",\"\",Table5[[#This Row],[Mass (g)]]*VLOOKUP(Table5[[#This Row],[Nuclide]],Doedata,4)*37000000000)","v":""},null,null,null,null,null,{"$f":"IF(Table5[[#This Row],[Activity (Bq)]]=\"\",\"\",Table5[[#This Row],[Activity (Bq)]]/37000000000)","v":""},null,null,null,null,null,null,null,null,null,null,null,null,null,null,null,null,null,null,null,"Cd-115"]
[null,null,null,{"$f":"IF(Table5[[#This Row],[Mass (g)]]=\"\",\"\",Table5[[#This Row],[Mass (g)]]*VLOOKUP(Table5[[#This Row],[Nuclide]],Doedata,4)*37000000000)","v":""},null,null,null,null,null,{"$f":"IF(Table5[[#This Row],[Activity (Bq)]]=\"\",\"\",Table5[[#This Row],[Activity (Bq)]]/37000000000)","v":""},null,null,null,null,null,null,null,null,null,null,null,null,null,null,null,null,null,null,null,"Cd-115m"]
[null,null,null,{"$f":"IF(Table5[[#This Row],[Mass (g)]]=\"\",\"\",Table5[[#This Row],[Mass (g)]]*VLOOKUP(Table5[[#This Row],[Nuclide]],Doedata,4)*37000000000)","v":""},null,null,null,null,null,{"$f":"IF(Table5[[#This Row],[Activity (Bq)]]=\"\",\"\",Table5[[#This Row],[Activity (Bq)]]/37000000000)","v":""},null,null,null,null,null,null,null,null,null,null,null,null,null,null,null,null,null,null,null,"Cd-117"]
[null,null,null,{"$f":"IF(Table5[[#This Row],[Mass (g)]]=\"\",\"\",Table5[[#This Row],[Mass (g)]]*VLOOKUP(Table5[[#This Row],[Nuclide]],Doedata,4)*37000000000)","v":""},null,null,null,null,null,{"$f":"IF(Table5[[#This Row],[Activity (Bq)]]=\"\",\"\",Table5[[#This Row],[Activity (Bq)]]/37000000000)","v":""},null,null,null,null,null,null,null,null,null,null,null,null,null,null,null,null,null,null,null,"Cd-117m"]
[null,null,null,{"$f":"IF(Table5[[#This Row],[Mass (g)]]=\"\",\"\",Table5[[#This Row],[Mass (g)]]*VLOOKUP(Table5[[#This Row],[Nuclide]],Doedata,4)*37000000000)","v":""},null,null,null,null,null,{"$f":"IF(Table5[[#This Row],[Activity (Bq)]]=\"\",\"\",Table5[[#This Row],[Activity (Bq)]]/37000000000)","v":""},null,null,null,null,null,null,null,null,null,null,null,null,null,null,null,null,null,null,null,"Ce-134"]
[null,null,null,{"$f":"IF(Table5[[#This Row],[Mass (g)]]=\"\",\"\",Table5[[#This Row],[Mass (g)]]*VLOOKUP(Table5[[#This Row],[Nuclide]],Doedata,4)*37000000000)","v":""},null,null,null,null,null,{"$f":"IF(Table5[[#This Row],[Activity (Bq)]]=\"\",\"\",Table5[[#This Row],[Activity (Bq)]]/37000000000)","v":""},null,null,null,null,null,null,null,null,null,null,null,null,null,null,null,null,null,null,null,"Ce-135"]
[null,null,null,{"$f":"IF(Table5[[#This Row],[Mass (g)]]=\"\",\"\",Table5[[#This Row],[Mass (g)]]*VLOOKUP(Table5[[#This Row],[Nuclide]],Doedata,4)*37000000000)","v":""},null,null,null,null,null,{"$f":"IF(Table5[[#This Row],[Activity (Bq)]]=\"\",\"\",Table5[[#This Row],[Activity (Bq)]]/37000000000)","v":""},null,null,null,null,null,null,null,null,null,null,null,null,null,null,null,null,null,null,null,"Ce-137"]
[null,null,null,{"$f":"IF(Table5[[#This Row],[Mass (g)]]=\"\",\"\",Table5[[#This Row],[Mass (g)]]*VLOOKUP(Table5[[#This Row],[Nuclide]],Doedata,4)*37000000000)","v":""},null,null,null,null,null,{"$f":"IF(Table5[[#This Row],[Activity (Bq)]]=\"\",\"\",Table5[[#This Row],[Activity (Bq)]]/37000000000)","v":""},null,null,null,null,null,null,null,null,null,null,null,null,null,null,null,null,null,null,null,"Ce-137m"]
[null,null,null,{"$f":"IF(Table5[[#This Row],[Mass (g)]]=\"\",\"\",Table5[[#This Row],[Mass (g)]]*VLOOKUP(Table5[[#This Row],[Nuclide]],Doedata,4)*37000000000)","v":""},null,null,null,null,null,{"$f":"IF(Table5[[#This Row],[Activity (Bq)]]=\"\",\"\",Table5[[#This Row],[Activity (Bq)]]/37000000000)","v":""},null,null,null,null,null,null,null,null,null,null,null,null,null,null,null,null,null,null,null,"Ce-139"]
[null,null,null,{"$f":"IF(Table5[[#This Row],[Mass (g)]]=\"\",\"\",Table5[[#This Row],[Mass (g)]]*VLOOKUP(Table5[[#This Row],[Nuclide]],Doedata,4)*37000000000)","v":""},null,null,null,null,null,{"$f":"IF(Table5[[#This Row],[Activity (Bq)]]=\"\",\"\",Table5[[#This Row],[Activity (Bq)]]/37000000000)","v":""},null,null,null,null,null,null,null,null,null,null,null,null,null,null,null,null,null,null,null,"Ce-141"]
[null,null,null,{"$f":"IF(Table5[[#This Row],[Mass (g)]]=\"\",\"\",Table5[[#This Row],[Mass (g)]]*VLOOKUP(Table5[[#This Row],[Nuclide]],Doedata,4)*37000000000)","v":""},null,null,null,null,null,{"$f":"IF(Table5[[#This Row],[Activity (Bq)]]=\"\",\"\",Table5[[#This Row],[Activity (Bq)]]/37000000000)","v":""},null,null,null,null,null,null,null,null,null,null,null,null,null,null,null,null,null,null,null,"Ce-143"]
[null,null,null,{"$f":"IF(Table5[[#This Row],[Mass (g)]]=\"\",\"\",Table5[[#This Row],[Mass (g)]]*VLOOKUP(Table5[[#This Row],[Nuclide]],Doedata,4)*37000000000)","v":""},null,null,null,null,null,{"$f":"IF(Table5[[#This Row],[Activity (Bq)]]=\"\",\"\",Table5[[#This Row],[Activity (Bq)]]/37000000000)","v":""},null,null,null,null,null,null,null,null,null,null,null,null,null,null,null,null,null,null,null,"Ce-144"]
[null,null,null,{"$f":"IF(Table5[[#This Row],[Mass (g)]]=\"\",\"\",Table5[[#This Row],[Mass (g)]]*VLOOKUP(Table5[[#This Row],[Nuclide]],Doedata,4)*37000000000)","v":""},null,null,null,null,null,{"$f":"IF(Table5[[#This Row],[Activity (Bq)]]=\"\",\"\",Table5[[#This Row],[Activity (Bq)]]/37000000000)","v":""},null,null,null,null,null,null,null,null,null,null,null,null,null,null,null,null,null,null,null,"Cf-244"]
[null,null,null,{"$f":"IF(Table5[[#This Row],[Mass (g)]]=\"\",\"\",Table5[[#This Row],[Mass (g)]]*VLOOKUP(Table5[[#This Row],[Nuclide]],Doedata,4)*37000000000)","v":""},null,null,null,null,null,{"$f":"IF(Table5[[#This Row],[Activity (Bq)]]=\"\",\"\",Table5[[#This Row],[Activity (Bq)]]/37000000000)","v":""},null,null,null,null,null,null,null,null,null,null,null,null,null,null,null,null,null,null,null,"Cf-246"]
[null,null,null,{"$f":"IF(Table5[[#This Row],[Mass (g)]]=\"\",\"\",Table5[[#This Row],[Mass (g)]]*VLOOKUP(Table5[[#This Row],[Nuclide]],Doedata,4)*37000000000)","v":""},null,null,null,null,null,{"$f":"IF(Table5[[#This Row],[Activity (Bq)]]=\"\",\"\",Table5[[#This Row],[Activity (Bq)]]/37000000000)","v":""},null,null,null,null,null,null,null,null,null,null,null,null,null,null,null,null,null,null,null,"Cf-248"]
[null,null,null,{"$f":"IF(Table5[[#This Row],[Mass (g)]]=\"\",\"\",Table5[[#This Row],[Mass (g)]]*VLOOKUP(Table5[[#This Row],[Nuclide]],Doedata,4)*37000000000)","v":""},null,null,null,null,null,{"$f":"IF(Table5[[#This Row],[Activity (Bq)]]=\"\",\"\",Table5[[#This Row],[Activity (Bq)]]/37000000000)","v":""},null,null,null,null,null,null,null,null,null,null,null,null,null,null,null,null,null,null,null,"Cf-249"]
[null,null,null,{"$f":"IF(Table5[[#This Row],[Mass (g)]]=\"\",\"\",Table5[[#This Row],[Mass (g)]]*VLOOKUP(Table5[[#This Row],[Nuclide]],Doedata,4)*37000000000)","v":""},null,null,null,null,null,{"$f":"IF(Table5[[#This Row],[Activity (Bq)]]=\"\",\"\",Table5[[#This Row],[Activity (Bq)]]/37000000000)","v":""},null,null,null,null,null,null,null,null,null,null,null,null,null,null,null,null,null,null,null,"Cf-250"]
[null,null,null,{"$f":"IF(Table5[[#This Row],[Mass (g)]]=\"\",\"\",Table5[[#This Row],[Mass (g)]]*VLOOKUP(Table5[[#This Row],[Nuclide]],Doedata,4)*37000000000)","v":""},null,null,null,null,null,{"$f":"IF(Table5[[#This Row],[Activity (Bq)]]=\"\",\"\",Table5[[#This Row],[Activity (Bq)]]/37000000000)","v":""},null,null,null,null,null,null,null,null,null,null,null,null,null,null,null,null,null,null,null,"Cf-251"]
[null,null,null,{"$f":"IF(Table5[[#This Row],[Mass (g)]]=\"\",\"\",Table5[[#This Row],[Mass (g)]]*VLOOKUP(Table5[[#This Row],[Nuclide]],Doedata,4)*37000000000)","v":""},null,null,null,null,null,{"$f":"IF(Table5[[#This Row],[Activity (Bq)]]=\"\",\"\",Table5[[#This Row],[Activity (Bq)]]/37000000000)","v":""},null,null,null,null,null,null,null,null,null,null,null,null,null,null,null,null,null,null,null,"Cf-252"]
[null,null,null,{"$f":"IF(Table5[[#This Row],[Mass (g)]]=\"\",\"\",Table5[[#This Row],[Mass (g)]]*VLOOKUP(Table5[[#This Row],[Nuclide]],Doedata,4)*37000000000)","v":""},null,null,null,null,null,{"$f":"IF(Table5[[#This Row],[Activity (Bq)]]=\"\",\"\",Table5[[#This Row],[Activity (Bq)]]/37000000000)","v":""},null,null,null,null,null,null,null,null,null,null,null,null,null,null,null,null,null,null,null,"Cf-253"]
[null,null,null,{"$f":"IF(Table5[[#This Row],[Mass (g)]]=\"\",\"\",Table5[[#This Row],[Mass (g)]]*VLOOKUP(Table5[[#This Row],[Nuclide]],Doedata,4)*37000000000)","v":""},null,null,null,null,null,{"$f":"IF(Table5[[#This Row],[Activity (Bq)]]=\"\",\"\",Table5[[#This Row],[Activity (Bq)]]/37000000000)","v":""},null,null,null,null,null,null,null,null,null,null,null,null,null,null,null,null,null,null,null,"Cf-254"]
[null,null,null,{"$f":"IF(Table5[[#This Row],[Mass (g)]]=\"\",\"\",Table5[[#This Row],[Mass (g)]]*VLOOKUP(Table5[[#This Row],[Nuclide]],Doedata,4)*37000000000)","v":""},null,null,null,null,null,{"$f":"IF(Table5[[#This Row],[Activity (Bq)]]=\"\",\"\",Table5[[#This Row],[Activity (Bq)]]/37000000000)","v":""},null,null,null,null,null,null,null,null,null,null,null,null,null,null,null,null,null,null,null,"Cm-238"]
[null,null,null,{"$f":"IF(Table5[[#This Row],[Mass (g)]]=\"\",\"\",Table5[[#This Row],[Mass (g)]]*VLOOKUP(Table5[[#This Row],[Nuclide]],Doedata,4)*37000000000)","v":""},null,null,null,null,null,{"$f":"IF(Table5[[#This Row],[Activity (Bq)]]=\"\",\"\",Table5[[#This Row],[Activity (Bq)]]/37000000000)","v":""},null,null,null,null,null,null,null,null,null,null,null,null,null,null,null,null,null,null,null,"Cm-240"]
[null,null,null,{"$f":"IF(Table5[[#This Row],[Mass (g)]]=\"\",\"\",Table5[[#This Row],[Mass (g)]]*VLOOKUP(Table5[[#This Row],[Nuclide]],Doedata,4)*37000000000)","v":""},null,null,null,null,null,{"$f":"IF(Table5[[#This Row],[Activity (Bq)]]=\"\",\"\",Table5[[#This Row],[Activity (Bq)]]/37000000000)","v":""},null,null,null,null,null,null,null,null,null,null,null,null,null,null,null,null,null,null,null,"Cm-241"]
[null,null,null,{"$f":"IF(Table5[[#This Row],[Mass (g)]]=\"\",\"\",Table5[[#This Row],[Mass (g)]]*VLOOKUP(Table5[[#This Row],[Nuclide]],Doedata,4)*37000000000)","v":""},null,null,null,null,null,{"$f":"IF(Table5[[#This Row],[Activity (Bq)]]=\"\",\"\",Table5[[#This Row],[Activity (Bq)]]/37000000000)","v":""},null,null,null,null,null,null,null,null,null,null,null,null,null,null,null,null,null,null,null,"Cm-242"]
[null,null,null,{"$f":"IF(Table5[[#This Row],[Mass (g)]]=\"\",\"\",Table5[[#This Row],[Mass (g)]]*VLOOKUP(Table5[[#This Row],[Nuclide]],Doedata,4)*37000000000)","v":""},null,null,null,null,null,{"$f":"IF(Table5[[#This Row],[Activity (Bq)]]=\"\",\"\",Table5[[#This Row],[Activity (Bq)]]/37000000000)","v":""},null,null,null,null,null,null,null,null,null,null,null,null,null,null,null,null,null,null,null,"Cm-243"]
[null,null,null,{"$f":"IF(Table5[[#This Row],[Mass (g)]]=\"\",\"\",Table5[[#This Row],[Mass (g)]]*VLOOKUP(Table5[[#This Row],[Nuclide]],Doedata,4)*37000000000)","v":""},null,null,null,null,null,{"$f":"IF(Table5[[#This Row],[Activity (Bq)]]=\"\",\"\",Table5[[#This Row],[Activity (Bq)]]/37000000000)","v":""},null,null,null,null,null,null,null,null,null,null,null,null,null,null,null,null,null,null,null,"Cm-244"]
[null,null,null,{"$f":"IF(Table5[[#This Row],[Mass (g)]]=\"\",\"\",Table5[[#This Row],[Mass (g)]]*VLOOKUP(Table5[[#This Row],[Nuclide]],Doedata,4)*37000000000)","v":""},null,null,null,null,null,{"$f":"IF(Table5[[#This Row],[Activity (Bq)]]=\"\",\"\",Table5[[#This Row],[Activity (Bq)]]/37000000000)","v":""},null,null,null,null,null,null,null,null,null,null,null,null,null,null,null,null,null,null,null,"Cm-245"]
[null,null,null,{"$f":"IF(Table5[[#This Row],[Mass (g)]]=\"\",\"\",Table5[[#This Row],[Mass (g)]]*VLOOKUP(Table5[[#This Row],[Nuclide]],Doedata,4)*37000000000)","v":""},null,null,null,null,null,{"$f":"IF(Table5[[#This Row],[Activity (Bq)]]=\"\",\"\",Table5[[#This Row],[Activity (Bq)]]/37000000000)","v":""},null,null,null,null,null,null,null,null,null,null,null,null,null,null,null,null,null,null,null,"Cm-246"]
[null,null,null,{"$f":"IF(Table5[[#This Row],[Mass (g)]]=\"\",\"\",Table5[[#This Row],[Mass (g)]]*VLOOKUP(Table5[[#This Row],[Nuclide]],Doedata,4)*37000000000)","v":""},null,null,null,null,null,{"$f":"IF(Table5[[#This Row],[Activity (Bq)]]=\"\",\"\",Table5[[#This Row],[Activity (Bq)]]/37000000000)","v":""},null,null,null,null,null,null,null,null,null,null,null,null,null,null,null,null,null,null,null,"Cm-247"]
[null,null,null,{"$f":"IF(Table5[[#This Row],[Mass (g)]]=\"\",\"\",Table5[[#This Row],[Mass (g)]]*VLOOKUP(Table5[[#This Row],[Nuclide]],Doedata,4)*37000000000)","v":""},null,null,null,null,null,{"$f":"IF(Table5[[#This Row],[Activity (Bq)]]=\"\",\"\",Table5[[#This Row],[Activity (Bq)]]/37000000000)","v":""},null,null,null,null,null,null,null,null,null,null,null,null,null,null,null,null,null,null,null,"Cm-248"]
[null,null,null,{"$f":"IF(Table5[[#This Row],[Mass (g)]]=\"\",\"\",Table5[[#This Row],[Mass (g)]]*VLOOKUP(Table5[[#This Row],[Nuclide]],Doedata,4)*37000000000)","v":""},null,null,null,null,null,{"$f":"IF(Table5[[#This Row],[Activity (Bq)]]=\"\",\"\",Table5[[#This Row],[Activity (Bq)]]/37000000000)","v":""},null,null,null,null,null,null,null,null,null,null,null,null,null,null,null,null,null,null,null,"Cm-249"]
[null,null,null,{"$f":"IF(Table5[[#This Row],[Mass (g)]]=\"\",\"\",Table5[[#This Row],[Mass (g)]]*VLOOKUP(Table5[[#This Row],[Nuclide]],Doedata,4)*37000000000)","v":""},null,null,null,null,null,{"$f":"IF(Table5[[#This Row],[Activity (Bq)]]=\"\",\"\",Table5[[#This Row],[Activity (Bq)]]/37000000000)","v":""},null,null,null,null,null,null,null,null,null,null,null,null,null,null,null,null,null,null,null,"Co-55"]
[null,null,null,{"$f":"IF(Table5[[#This Row],[Mass (g)]]=\"\",\"\",Table5[[#This Row],[Mass (g)]]*VLOOKUP(Table5[[#This Row],[Nuclide]],Doedata,4)*37000000000)","v":""},null,null,null,null,null,{"$f":"IF(Table5[[#This Row],[Activity (Bq)]]=\"\",\"\",Table5[[#This Row],[Activity (Bq)]]/37000000000)","v":""},null,null,null,null,null,null,null,null,null,null,null,null,null,null,null,null,null,null,null,"Co-56"]
[null,null,null,{"$f":"IF(Table5[[#This Row],[Mass (g)]]=\"\",\"\",Table5[[#This Row],[Mass (g)]]*VLOOKUP(Table5[[#This Row],[Nuclide]],Doedata,4)*37000000000)","v":""},null,null,null,null,null,{"$f":"IF(Table5[[#This Row],[Activity (Bq)]]=\"\",\"\",Table5[[#This Row],[Activity (Bq)]]/37000000000)","v":""},null,null,null,null,null,null,null,null,null,null,null,null,null,null,null,null,null,null,null,"Co-57"]
[null,null,null,{"$f":"IF(Table5[[#This Row],[Mass (g)]]=\"\",\"\",Table5[[#This Row],[Mass (g)]]*VLOOKUP(Table5[[#This Row],[Nuclide]],Doedata,4)*37000000000)","v":""},null,null,null,null,null,{"$f":"IF(Table5[[#This Row],[Activity (Bq)]]=\"\",\"\",Table5[[#This Row],[Activity (Bq)]]/37000000000)","v":""},null,null,null,null,null,null,null,null,null,null,null,null,null,null,null,null,null,null,null,"Co-58"]
[null,null,null,{"$f":"IF(Table5[[#This Row],[Mass (g)]]=\"\",\"\",Table5[[#This Row],[Mass (g)]]*VLOOKUP(Table5[[#This Row],[Nuclide]],Doedata,4)*37000000000)","v":""},null,null,null,null,null,{"$f":"IF(Table5[[#This Row],[Activity (Bq)]]=\"\",\"\",Table5[[#This Row],[Activity (Bq)]]/37000000000)","v":""},null,null,null,null,null,null,null,null,null,null,null,null,null,null,null,null,null,null,null,"Co-58m"]
[null,null,null,{"$f":"IF(Table5[[#This Row],[Mass (g)]]=\"\",\"\",Table5[[#This Row],[Mass (g)]]*VLOOKUP(Table5[[#This Row],[Nuclide]],Doedata,4)*37000000000)","v":""},null,null,null,null,null,{"$f":"IF(Table5[[#This Row],[Activity (Bq)]]=\"\",\"\",Table5[[#This Row],[Activity (Bq)]]/37000000000)","v":""},null,null,null,null,null,null,null,null,null,null,null,null,null,null,null,null,null,null,null,"Co-60"]
[null,null,null,{"$f":"IF(Table5[[#This Row],[Mass (g)]]=\"\",\"\",Table5[[#This Row],[Mass (g)]]*VLOOKUP(Table5[[#This Row],[Nuclide]],Doedata,4)*37000000000)","v":""},null,null,null,null,null,{"$f":"IF(Table5[[#This Row],[Activity (Bq)]]=\"\",\"\",Table5[[#This Row],[Activity (Bq)]]/37000000000)","v":""},null,null,null,null,null,null,null,null,null,null,null,null,null,null,null,null,null,null,null,"Co-60m"]
[null,null,null,{"$f":"IF(Table5[[#This Row],[Mass (g)]]=\"\",\"\",Table5[[#This Row],[Mass (g)]]*VLOOKUP(Table5[[#This Row],[Nuclide]],Doedata,4)*37000000000)","v":""},null,null,null,null,null,{"$f":"IF(Table5[[#This Row],[Activity (Bq)]]=\"\",\"\",Table5[[#This Row],[Activity (Bq)]]/37000000000)","v":""},null,null,null,null,null,null,null,null,null,null,null,null,null,null,null,null,null,null,null,"Co-61"]
[null,null,null,{"$f":"IF(Table5[[#This Row],[Mass (g)]]=\"\",\"\",Table5[[#This Row],[Mass (g)]]*VLOOKUP(Table5[[#This Row],[Nuclide]],Doedata,4)*37000000000)","v":""},null,null,null,null,null,{"$f":"IF(Table5[[#This Row],[Activity (Bq)]]=\"\",\"\",Table5[[#This Row],[Activity (Bq)]]/37000000000)","v":""},null,null,null,null,null,null,null,null,null,null,null,null,null,null,null,null,null,null,null,"Co-62m"]
[null,null,null,{"$f":"IF(Table5[[#This Row],[Mass (g)]]=\"\",\"\",Table5[[#This Row],[Mass (g)]]*VLOOKUP(Table5[[#This Row],[Nuclide]],Doedata,4)*37000000000)","v":""},null,null,null,null,null,{"$f":"IF(Table5[[#This Row],[Activity (Bq)]]=\"\",\"\",Table5[[#This Row],[Activity (Bq)]]/37000000000)","v":""},null,null,null,null,null,null,null,null,null,null,null,null,null,null,null,null,null,null,null,"Cr-48"]
[null,null,null,{"$f":"IF(Table5[[#This Row],[Mass (g)]]=\"\",\"\",Table5[[#This Row],[Mass (g)]]*VLOOKUP(Table5[[#This Row],[Nuclide]],Doedata,4)*37000000000)","v":""},null,null,null,null,null,{"$f":"IF(Table5[[#This Row],[Activity (Bq)]]=\"\",\"\",Table5[[#This Row],[Activity (Bq)]]/37000000000)","v":""},null,null,null,null,null,null,null,null,null,null,null,null,null,null,null,null,null,null,null,"Cr-49"]
[null,null,null,{"$f":"IF(Table5[[#This Row],[Mass (g)]]=\"\",\"\",Table5[[#This Row],[Mass (g)]]*VLOOKUP(Table5[[#This Row],[Nuclide]],Doedata,4)*37000000000)","v":""},null,null,null,null,null,{"$f":"IF(Table5[[#This Row],[Activity (Bq)]]=\"\",\"\",Table5[[#This Row],[Activity (Bq)]]/37000000000)","v":""},null,null,null,null,null,null,null,null,null,null,null,null,null,null,null,null,null,null,null,"Cr-51"]
[null,null,null,{"$f":"IF(Table5[[#This Row],[Mass (g)]]=\"\",\"\",Table5[[#This Row],[Mass (g)]]*VLOOKUP(Table5[[#This Row],[Nuclide]],Doedata,4)*37000000000)","v":""},null,null,null,null,null,{"$f":"IF(Table5[[#This Row],[Activity (Bq)]]=\"\",\"\",Table5[[#This Row],[Activity (Bq)]]/37000000000)","v":""},null,null,null,null,null,null,null,null,null,null,null,null,null,null,null,null,null,null,null,"Cs-125"]
[null,null,null,{"$f":"IF(Table5[[#This Row],[Mass (g)]]=\"\",\"\",Table5[[#This Row],[Mass (g)]]*VLOOKUP(Table5[[#This Row],[Nuclide]],Doedata,4)*37000000000)","v":""},null,null,null,null,null,{"$f":"IF(Table5[[#This Row],[Activity (Bq)]]=\"\",\"\",Table5[[#This Row],[Activity (Bq)]]/37000000000)","v":""},null,null,null,null,null,null,null,null,null,null,null,null,null,null,null,null,null,null,null,"Cs-127"]
[null,null,null,{"$f":"IF(Table5[[#This Row],[Mass (g)]]=\"\",\"\",Table5[[#This Row],[Mass (g)]]*VLOOKUP(Table5[[#This Row],[Nuclide]],Doedata,4)*37000000000)","v":""},null,null,null,null,null,{"$f":"IF(Table5[[#This Row],[Activity (Bq)]]=\"\",\"\",Table5[[#This Row],[Activity (Bq)]]/37000000000)","v":""},null,null,null,null,null,null,null,null,null,null,null,null,null,null,null,null,null,null,null,"Cs-129"]
[null,null,null,{"$f":"IF(Table5[[#This Row],[Mass (g)]]=\"\",\"\",Table5[[#This Row],[Mass (g)]]*VLOOKUP(Table5[[#This Row],[Nuclide]],Doedata,4)*37000000000)","v":""},null,null,null,null,null,{"$f":"IF(Table5[[#This Row],[Activity (Bq)]]=\"\",\"\",Table5[[#This Row],[Activity (Bq)]]/37000000000)","v":""},null,null,null,null,null,null,null,null,null,null,null,null,null,null,null,null,null,null,null,"Cs-130"]
[null,null,null,{"$f":"IF(Table5[[#This Row],[Mass (g)]]=\"\",\"\",Table5[[#This Row],[Mass (g)]]*VLOOKUP(Table5[[#This Row],[Nuclide]],Doedata,4)*37000000000)","v":""},null,null,null,null,null,{"$f":"IF(Table5[[#This Row],[Activity (Bq)]]=\"\",\"\",Table5[[#This Row],[Activity (Bq)]]/37000000000)","v":""},null,null,null,null,null,null,null,null,null,null,null,null,null,null,null,null,null,null,null,"Cs-131"]
[null,null,null,{"$f":"IF(Table5[[#This Row],[Mass (g)]]=\"\",\"\",Table5[[#This Row],[Mass (g)]]*VLOOKUP(Table5[[#This Row],[Nuclide]],Doedata,4)*37000000000)","v":""},null,null,null,null,null,{"$f":"IF(Table5[[#This Row],[Activity (Bq)]]=\"\",\"\",Table5[[#This Row],[Activity (Bq)]]/37000000000)","v":""},null,null,null,null,null,null,null,null,null,null,null,null,null,null,null,null,null,null,null,"Cs-132"]
[null,null,null,{"$f":"IF(Table5[[#This Row],[Mass (g)]]=\"\",\"\",Table5[[#This Row],[Mass (g)]]*VLOOKUP(Table5[[#This Row],[Nuclide]],Doedata,4)*37000000000)","v":""},null,null,null,null,null,{"$f":"IF(Table5[[#This Row],[Activity (Bq)]]=\"\",\"\",Table5[[#This Row],[Activity (Bq)]]/37000000000)","v":""},null,null,null,null,null,null,null,null,null,null,null,null,null,null,null,null,null,null,null,"Cs-134"]
[null,null,null,{"$f":"IF(Table5[[#This Row],[Mass (g)]]=\"\",\"\",Table5[[#This Row],[Mass (g)]]*VLOOKUP(Table5[[#This Row],[Nuclide]],Doedata,4)*37000000000)","v":""},null,null,null,null,null,{"$f":"IF(Table5[[#This Row],[Activity (Bq)]]=\"\",\"\",Table5[[#This Row],[Activity (Bq)]]/37000000000)","v":""},null,null,null,null,null,null,null,null,null,null,null,null,null,null,null,null,null,null,null,"Cs-134m"]
[null,null,null,{"$f":"IF(Table5[[#This Row],[Mass (g)]]=\"\",\"\",Table5[[#This Row],[Mass (g)]]*VLOOKUP(Table5[[#This Row],[Nuclide]],Doedata,4)*37000000000)","v":""},null,null,null,null,null,{"$f":"IF(Table5[[#This Row],[Activity (Bq)]]=\"\",\"\",Table5[[#This Row],[Activity (Bq)]]/37000000000)","v":""},null,null,null,null,null,null,null,null,null,null,null,null,null,null,null,null,null,null,null,"Cs-135"]
[null,null,null,{"$f":"IF(Table5[[#This Row],[Mass (g)]]=\"\",\"\",Table5[[#This Row],[Mass (g)]]*VLOOKUP(Table5[[#This Row],[Nuclide]],Doedata,4)*37000000000)","v":""},null,null,null,null,null,{"$f":"IF(Table5[[#This Row],[Activity (Bq)]]=\"\",\"\",Table5[[#This Row],[Activity (Bq)]]/37000000000)","v":""},null,null,null,null,null,null,null,null,null,null,null,null,null,null,null,null,null,null,null,"Cs-135m"]
[null,null,null,{"$f":"IF(Table5[[#This Row],[Mass (g)]]=\"\",\"\",Table5[[#This Row],[Mass (g)]]*VLOOKUP(Table5[[#This Row],[Nuclide]],Doedata,4)*37000000000)","v":""},null,null,null,null,null,{"$f":"IF(Table5[[#This Row],[Activity (Bq)]]=\"\",\"\",Table5[[#This Row],[Activity (Bq)]]/37000000000)","v":""},null,null,null,null,null,null,null,null,null,null,null,null,null,null,null,null,null,null,null,"Cs-136"]
[null,null,null,{"$f":"IF(Table5[[#This Row],[Mass (g)]]=\"\",\"\",Table5[[#This Row],[Mass (g)]]*VLOOKUP(Table5[[#This Row],[Nuclide]],Doedata,4)*37000000000)","v":""},null,null,null,null,null,{"$f":"IF(Table5[[#This Row],[Activity (Bq)]]=\"\",\"\",Table5[[#This Row],[Activity (Bq)]]/37000000000)","v":""},null,null,null,null,null,null,null,null,null,null,null,null,null,null,null,null,null,null,null,"Cs-137"]
[null,null,null,{"$f":"IF(Table5[[#This Row],[Mass (g)]]=\"\",\"\",Table5[[#This Row],[Mass (g)]]*VLOOKUP(Table5[[#This Row],[Nuclide]],Doedata,4)*37000000000)","v":""},null,null,null,null,null,{"$f":"IF(Table5[[#This Row],[Activity (Bq)]]=\"\",\"\",Table5[[#This Row],[Activity (Bq)]]/37000000000)","v":""},null,null,null,null,null,null,null,null,null,null,null,null,null,null,null,null,null,null,null,"Cs-138"]
[null,null,null,{"$f":"IF(Table5[[#This Row],[Mass (g)]]=\"\",\"\",Table5[[#This Row],[Mass (g)]]*VLOOKUP(Table5[[#This Row],[Nuclide]],Doedata,4)*37000000000)","v":""},null,null,null,null,null,{"$f":"IF(Table5[[#This Row],[Activity (Bq)]]=\"\",\"\",Table5[[#This Row],[Activity (Bq)]]/37000000000)","v":""},null,null,null,null,null,null,null,null,null,null,null,null,null,null,null,null,null,null,null,"Cu-60"]
[null,null,null,{"$f":"IF(Table5[[#This Row],[Mass (g)]]=\"\",\"\",Table5[[#This Row],[Mass (g)]]*VLOOKUP(Table5[[#This Row],[Nuclide]],Doedata,4)*37000000000)","v":""},null,null,null,null,null,{"$f":"IF(Table5[[#This Row],[Activity (Bq)]]=\"\",\"\",Table5[[#This Row],[Activity (Bq)]]/37000000000)","v":""},null,null,null,null,null,null,null,null,null,null,null,null,null,null,null,null,null,null,null,"Cu-61"]
[null,null,null,{"$f":"IF(Table5[[#This Row],[Mass (g)]]=\"\",\"\",Table5[[#This Row],[Mass (g)]]*VLOOKUP(Table5[[#This Row],[Nuclide]],Doedata,4)*37000000000)","v":""},null,null,null,null,null,{"$f":"IF(Table5[[#This Row],[Activity (Bq)]]=\"\",\"\",Table5[[#This Row],[Activity (Bq)]]/37000000000)","v":""},null,null,null,null,null,null,null,null,null,null,null,null,null,null,null,null,null,null,null,"Cu-64"]
[null,null,null,{"$f":"IF(Table5[[#This Row],[Mass (g)]]=\"\",\"\",Table5[[#This Row],[Mass (g)]]*VLOOKUP(Table5[[#This Row],[Nuclide]],Doedata,4)*37000000000)","v":""},null,null,null,null,null,{"$f":"IF(Table5[[#This Row],[Activity (Bq)]]=\"\",\"\",Table5[[#This Row],[Activity (Bq)]]/37000000000)","v":""},null,null,null,null,null,null,null,null,null,null,null,null,null,null,null,null,null,null,null,"Cu-67"]
[null,null,null,{"$f":"IF(Table5[[#This Row],[Mass (g)]]=\"\",\"\",Table5[[#This Row],[Mass (g)]]*VLOOKUP(Table5[[#This Row],[Nuclide]],Doedata,4)*37000000000)","v":""},null,null,null,null,null,{"$f":"IF(Table5[[#This Row],[Activity (Bq)]]=\"\",\"\",Table5[[#This Row],[Activity (Bq)]]/37000000000)","v":""},null,null,null,null,null,null,null,null,null,null,null,null,null,null,null,null,null,null,null,"Dy-155"]
[null,null,null,{"$f":"IF(Table5[[#This Row],[Mass (g)]]=\"\",\"\",Table5[[#This Row],[Mass (g)]]*VLOOKUP(Table5[[#This Row],[Nuclide]],Doedata,4)*37000000000)","v":""},null,null,null,null,null,{"$f":"IF(Table5[[#This Row],[Activity (Bq)]]=\"\",\"\",Table5[[#This Row],[Activity (Bq)]]/37000000000)","v":""},null,null,null,null,null,null,null,null,null,null,null,null,null,null,null,null,null,null,null,"Dy-157"]
[null,null,null,{"$f":"IF(Table5[[#This Row],[Mass (g)]]=\"\",\"\",Table5[[#This Row],[Mass (g)]]*VLOOKUP(Table5[[#This Row],[Nuclide]],Doedata,4)*37000000000)","v":""},null,null,null,null,null,{"$f":"IF(Table5[[#This Row],[Activity (Bq)]]=\"\",\"\",Table5[[#This Row],[Activity (Bq)]]/37000000000)","v":""},null,null,null,null,null,null,null,null,null,null,null,null,null,null,null,null,null,null,null,"Dy-159"]
[null,null,null,{"$f":"IF(Table5[[#This Row],[Mass (g)]]=\"\",\"\",Table5[[#This Row],[Mass (g)]]*VLOOKUP(Table5[[#This Row],[Nuclide]],Doedata,4)*37000000000)","v":""},null,null,null,null,null,{"$f":"IF(Table5[[#This Row],[Activity (Bq)]]=\"\",\"\",Table5[[#This Row],[Activity (Bq)]]/37000000000)","v":""},null,null,null,null,null,null,null,null,null,null,null,null,null,null,null,null,null,null,null,"Dy-165"]
[null,null,null,{"$f":"IF(Table5[[#This Row],[Mass (g)]]=\"\",\"\",Table5[[#This Row],[Mass (g)]]*VLOOKUP(Table5[[#This Row],[Nuclide]],Doedata,4)*37000000000)","v":""},null,null,null,null,null,{"$f":"IF(Table5[[#This Row],[Activity (Bq)]]=\"\",\"\",Table5[[#This Row],[Activity (Bq)]]/37000000000)","v":""},null,null,null,null,null,null,null,null,null,null,null,null,null,null,null,null,null,null,null,"Dy-166"]
[null,null,null,{"$f":"IF(Table5[[#This Row],[Mass (g)]]=\"\",\"\",Table5[[#This Row],[Mass (g)]]*VLOOKUP(Table5[[#This Row],[Nuclide]],Doedata,4)*37000000000)","v":""},null,null,null,null,null,{"$f":"IF(Table5[[#This Row],[Activity (Bq)]]=\"\",\"\",Table5[[#This Row],[Activity (Bq)]]/37000000000)","v":""},null,null,null,null,null,null,null,null,null,null,null,null,null,null,null,null,null,null,null,"Er-161"]
[null,null,null,{"$f":"IF(Table5[[#This Row],[Mass (g)]]=\"\",\"\",Table5[[#This Row],[Mass (g)]]*VLOOKUP(Table5[[#This Row],[Nuclide]],Doedata,4)*37000000000)","v":""},null,null,null,null,null,{"$f":"IF(Table5[[#This Row],[Activity (Bq)]]=\"\",\"\",Table5[[#This Row],[Activity (Bq)]]/37000000000)","v":""},null,null,null,null,null,null,null,null,null,null,null,null,null,null,null,null,null,null,null,"Er-165"]
[null,null,null,{"$f":"IF(Table5[[#This Row],[Mass (g)]]=\"\",\"\",Table5[[#This Row],[Mass (g)]]*VLOOKUP(Table5[[#This Row],[Nuclide]],Doedata,4)*37000000000)","v":""},null,null,null,null,null,{"$f":"IF(Table5[[#This Row],[Activity (Bq)]]=\"\",\"\",Table5[[#This Row],[Activity (Bq)]]/37000000000)","v":""},null,null,null,null,null,null,null,null,null,null,null,null,null,null,null,null,null,null,null,"Er-169"]
[null,null,null,{"$f":"IF(Table5[[#This Row],[Mass (g)]]=\"\",\"\",Table5[[#This Row],[Mass (g)]]*VLOOKUP(Table5[[#This Row],[Nuclide]],Doedata,4)*37000000000)","v":""},null,null,null,null,null,{"$f":"IF(Table5[[#This Row],[Activity (Bq)]]=\"\",\"\",Table5[[#This Row],[Activity (Bq)]]/37000000000)","v":""},null,null,null,null,null,null,null,null,null,null,null,null,null,null,null,null,null,null,null,"Er-171"]
[null,null,null,{"$f":"IF(Table5[[#This Row],[Mass (g)]]=\"\",\"\",Table5[[#This Row],[Mass (g)]]*VLOOKUP(Table5[[#This Row],[Nuclide]],Doedata,4)*37000000000)","v":""},null,null,null,null,null,{"$f":"IF(Table5[[#This Row],[Activity (Bq)]]=\"\",\"\",Table5[[#This Row],[Activity (Bq)]]/37000000000)","v":""},null,null,null,null,null,null,null,null,null,null,null,null,null,null,null,null,null,null,null,"Er-172"]
[null,null,null,{"$f":"IF(Table5[[#This Row],[Mass (g)]]=\"\",\"\",Table5[[#This Row],[Mass (g)]]*VLOOKUP(Table5[[#This Row],[Nuclide]],Doedata,4)*37000000000)","v":""},null,null,null,null,null,{"$f":"IF(Table5[[#This Row],[Activity (Bq)]]=\"\",\"\",Table5[[#This Row],[Activity (Bq)]]/37000000000)","v":""},null,null,null,null,null,null,null,null,null,null,null,null,null,null,null,null,null,null,null,"Es-250"]
[null,null,null,{"$f":"IF(Table5[[#This Row],[Mass (g)]]=\"\",\"\",Table5[[#This Row],[Mass (g)]]*VLOOKUP(Table5[[#This Row],[Nuclide]],Doedata,4)*37000000000)","v":""},null,null,null,null,null,{"$f":"IF(Table5[[#This Row],[Activity (Bq)]]=\"\",\"\",Table5[[#This Row],[Activity (Bq)]]/37000000000)","v":""},null,null,null,null,null,null,null,null,null,null,null,null,null,null,null,null,null,null,null,"Es-251"]
[null,null,null,{"$f":"IF(Table5[[#This Row],[Mass (g)]]=\"\",\"\",Table5[[#This Row],[Mass (g)]]*VLOOKUP(Table5[[#This Row],[Nuclide]],Doedata,4)*37000000000)","v":""},null,null,null,null,null,{"$f":"IF(Table5[[#This Row],[Activity (Bq)]]=\"\",\"\",Table5[[#This Row],[Activity (Bq)]]/37000000000)","v":""},null,null,null,null,null,null,null,null,null,null,null,null,null,null,null,null,null,null,null,"Es-253"]
[null,null,null,{"$f":"IF(Table5[[#This Row],[Mass (g)]]=\"\",\"\",Table5[[#This Row],[Mass (g)]]*VLOOKUP(Table5[[#This Row],[Nuclide]],Doedata,4)*37000000000)","v":""},null,null,null,null,null,{"$f":"IF(Table5[[#This Row],[Activity (Bq)]]=\"\",\"\",Table5[[#This Row],[Activity (Bq)]]/37000000000)","v":""},null,null,null,null,null,null,null,null,null,null,null,null,null,null,null,null,null,null,null,"Es-254"]
[null,null,null,{"$f":"IF(Table5[[#This Row],[Mass (g)]]=\"\",\"\",Table5[[#This Row],[Mass (g)]]*VLOOKUP(Table5[[#This Row],[Nuclide]],Doedata,4)*37000000000)","v":""},null,null,null,null,null,{"$f":"IF(Table5[[#This Row],[Activity (Bq)]]=\"\",\"\",Table5[[#This Row],[Activity (Bq)]]/37000000000)","v":""},null,null,null,null,null,null,null,null,null,null,null,null,null,null,null,null,null,null,null,"Es-254m"]
[null,null,null,{"$f":"IF(Table5[[#This Row],[Mass (g)]]=\"\",\"\",Table5[[#This Row],[Mass (g)]]*VLOOKUP(Table5[[#This Row],[Nuclide]],Doedata,4)*37000000000)","v":""},null,null,null,null,null,{"$f":"IF(Table5[[#This Row],[Activity (Bq)]]=\"\",\"\",Table5[[#This Row],[Activity (Bq)]]/37000000000)","v":""},null,null,null,null,null,null,null,null,null,null,null,null,null,null,null,null,null,null,null,"Eu-145"]
[null,null,null,{"$f":"IF(Table5[[#This Row],[Mass (g)]]=\"\",\"\",Table5[[#This Row],[Mass (g)]]*VLOOKUP(Table5[[#This Row],[Nuclide]],Doedata,4)*37000000000)","v":""},null,null,null,null,null,{"$f":"IF(Table5[[#This Row],[Activity (Bq)]]=\"\",\"\",Table5[[#This Row],[Activity (Bq)]]/37000000000)","v":""},null,null,null,null,null,null,null,null,null,null,null,null,null,null,null,null,null,null,null,"Eu-146"]
[null,null,null,{"$f":"IF(Table5[[#This Row],[Mass (g)]]=\"\",\"\",Table5[[#This Row],[Mass (g)]]*VLOOKUP(Table5[[#This Row],[Nuclide]],Doedata,4)*37000000000)","v":""},null,null,null,null,null,{"$f":"IF(Table5[[#This Row],[Activity (Bq)]]=\"\",\"\",Table5[[#This Row],[Activity (Bq)]]/37000000000)","v":""},null,null,null,null,null,null,null,null,null,null,null,null,null,null,null,null,null,null,null,"Eu-147"]
[null,null,null,null,null,null,null,null,null,null,null,null,null,null,null,null,null,null,null,null,null,null,null,null,null,null,null,null,null,"Eu-148"]
[null,null,null,null,null,null,null,null,null,null,null,null,null,null,null,null,null,null,null,null,null,null,null,null,null,null,null,null,null,"Eu-149"]
[null,null,null,null,null,null,null,null,null,null,null,null,null,null,null,null,null,null,null,null,null,null,null,null,null,null,null,null,null,"Eu-150"]
[null,null,null,null,null,null,null,null,null,null,null,null,null,null,null,null,null,null,null,null,null,null,null,null,null,null,null,null,null,"Eu-150"]
[null,null,null,null,null,null,null,null,null,null,null,null,null,null,null,null,null,null,null,null,null,null,null,null,null,null,null,null,null,"Eu-152"]
[null,null,null,null,null,null,null,null,null,null,null,null,null,null,null,null,null,null,null,null,null,null,null,null,null,null,null,null,null,"Eu-152m"]
[null,null,null,null,null,null,null,null,null,null,null,null,null,null,null,null,null,null,null,null,null,null,null,null,null,null,null,null,null,"Eu-154"]
[null,null,null,null,null,null,null,null,null,null,null,null,null,null,null,null,null,null,null,null,null,null,null,null,null,null,null,null,null,"Eu-155"]
[null,null,null,null,null,null,null,null,null,null,null,null,null,null,null,null,null,null,null,null,null,null,null,null,null,null,null,null,null,"Eu-156"]
[null,null,null,null,null,null,null,null,null,null,null,null,null,null,null,null,null,null,null,null,null,null,null,null,null,null,null,null,null,"Eu-157"]
[null,null,null,null,null,null,null,null,null,null,null,null,null,null,null,null,null,null,null,null,null,null,null,null,null,null,null,null,null,"Eu-158"]
[null,null,null,null,null,null,null,null,null,null,null,null,null,null,null,null,null,null,null,null,null,null,null,null,null,null,null,null,null,"F-18"]
[null,null,null,null,null,null,null,null,null,null,null,null,null,null,null,null,null,null,null,null,null,null,null,null,null,null,null,null,null,"Fe-52"]
[null,null,null,null,null,null,null,null,null,null,null,null,null,null,null,null,null,null,null,null,null,null,null,null,null,null,null,null,null,"Fe-55"]
[null,null,null,null,null,null,null,null,null,null,null,null,null,null,null,null,null,null,null,null,null,null,null,null,null,null,null,null,null,"Fe-59"]
[null,null,null,null,null,null,null,null,null,null,null,null,null,null,null,null,null,null,null,null,null,null,null,null,null,null,null,null,null,"Fe-60"]
[null,null,null,null,null,null,null,null,null,null,null,null,null,null,null,null,null,null,null,null,null,null,null,null,null,null,null,null,null,"Fm-252"]
[null,null,null,null,null,null,null,null,null,null,null,null,null,null,null,null,null,null,null,null,null,null,null,null,null,null,null,null,null,"Fm-253"]
[null,null,null,null,null,null,null,null,null,null,null,null,null,null,null,null,null,null,null,null,null,null,null,null,null,null,null,null,null,"Fm-254"]
[null,null,null,null,null,null,null,null,null,null,null,null,null,null,null,null,null,null,null,null,null,null,null,null,null,null,null,null,null,"Fm-255"]
[null,null,null,null,null,null,null,null,null,null,null,null,null,null,null,null,null,null,null,null,null,null,null,null,null,null,null,null,null,"Fm-257"]
[null,null,null,null,null,null,null,null,null,null,null,null,null,null,null,null,null,null,null,null,null,null,null,null,null,null,null,null,null,"Fr-222"]
[null,null,null,null,null,null,null,null,null,null,null,null,null,null,null,null,null,null,null,null,null,null,null,null,null,null,null,null,null,"Fr-223"]
[null,null,null,null,null,null,null,null,null,null,null,null,null,null,null,null,null,null,null,null,null,null,null,null,null,null,null,null,null,"Ga-65"]
[null,null,null,null,null,null,null,null,null,null,null,null,null,null,null,null,null,null,null,null,null,null,null,null,null,null,null,null,null,"Ga-66"]
[null,null,null,null,null,null,null,null,null,null,null,null,null,null,null,null,null,null,null,null,null,null,null,null,null,null,null,null,null,"Ga-67"]
[null,null,null,null,null,null,null,null,null,null,null,null,null,null,null,null,null,null,null,null,null,null,null,null,null,null,null,null,null,"Ga-68"]
[null,null,null,null,null,null,null,null,null,null,null,null,null,null,null,null,null,null,null,null,null,null,null,null,null,null,null,null,null,"Ga-70"]
[null,null,null,null,null,null,null,null,null,null,null,null,null,null,null,null,null,null,null,null,null,null,null,null,null,null,null,null,null,"Ga-72"]
[null,null,null,null,null,null,null,null,null,null,null,null,null,null,null,null,null,null,null,null,null,null,null,null,null,null,null,null,null,"Ga-73"]
[null,null,null,null,null,null,null,null,null,null,null,null,null,null,null,null,null,null,null,null,null,null,null,null,null,null,null,null,null,"Gd-145"]
[null,null,null,null,null,null,null,null,null,null,null,null,null,null,null,null,null,null,null,null,null,null,null,null,null,null,null,null,null,"Gd-146"]
[null,null,null,null,null,null,null,null,null,null,null,null,null,null,null,null,null,null,null,null,null,null,null,null,null,null,null,null,null,"Gd-147"]
[null,null,null,null,null,null,null,null,null,null,null,null,null,null,null,null,null,null,null,null,null,null,null,null,null,null,null,null,null,"Gd-148"]
[null,null,null,null,null,null,null,null,null,null,null,null,null,null,null,null,null,null,null,null,null,null,null,null,null,null,null,null,null,"Gd-149"]
[null,null,null,null,null,null,null,null,null,null,null,null,null,null,null,null,null,null,null,null,null,null,null,null,null,null,null,null,null,"Gd-151"]
[null,null,null,null,null,null,null,null,null,null,null,null,null,null,null,null,null,null,null,null,null,null,null,null,null,null,null,null,null,"Gd-152"]
[null,null,null,null,null,null,null,null,null,null,null,null,null,null,null,null,null,null,null,null,null,null,null,null,null,null,null,null,null,"Gd-153"]
[null,null,null,null,null,null,null,null,null,null,null,null,null,null,null,null,null,null,null,null,null,null,null,null,null,null,null,null,null,"Gd-159"]
[null,null,null,null,null,null,null,null,null,null,null,null,null,null,null,null,null,null,null,null,null,null,null,null,null,null,null,null,null,"Ge-66"]
[null,null,null,null,null,null,null,null,null,null,null,null,null,null,null,null,null,null,null,null,null,null,null,null,null,null,null,null,null,"Ge-67"]
[null,null,null,null,null,null,null,null,null,null,null,null,null,null,null,null,null,null,null,null,null,null,null,null,null,null,null,null,null,"Ge-68"]
[null,null,null,null,null,null,null,null,null,null,null,null,null,null,null,null,null,null,null,null,null,null,null,null,null,null,null,null,null,"Ge-69"]
[null,null,null,null,null,null,null,null,null,null,null,null,null,null,null,null,null,null,null,null,null,null,null,null,null,null,null,null,null,"Ge-71"]
[null,null,null,null,null,null,null,null,null,null,null,null,null,null,null,null,null,null,null,null,null,null,null,null,null,null,null,null,null,"Ge-75"]
[null,null,null,null,null,null,null,null,null,null,null,null,null,null,null,null,null,null,null,null,null,null,null,null,null,null,null,null,null,"Ge-77"]
[null,null,null,null,null,null,null,null,null,null,null,null,null,null,null,null,null,null,null,null,null,null,null,null,null,null,null,null,null,"Ge-78"]
[null,null,null,null,null,null,null,null,null,null,null,null,null,null,null,null,null,null,null,null,null,null,null,null,null,null,null,null,null,"H-3"]
[null,null,null,null,null,null,null,null,null,null,null,null,null,null,null,null,null,null,null,null,null,null,null,null,null,null,null,null,null,"Hf-170"]
[null,null,null,null,null,null,null,null,null,null,null,null,null,null,null,null,null,null,null,null,null,null,null,null,null,null,null,null,null,"Hf-172"]
[null,null,null,null,null,null,null,null,null,null,null,null,null,null,null,null,null,null,null,null,null,null,null,null,null,null,null,null,null,"Hf-173"]
[null,null,null,null,null,null,null,null,null,null,null,null,null,null,null,null,null,null,null,null,null,null,null,null,null,null,null,null,null,"Hf-175"]
[null,null,null,null,null,null,null,null,null,null,null,null,null,null,null,null,null,null,null,null,null,null,null,null,null,null,null,null,null,"Hf-177m"]
[null,null,null,null,null,null,null,null,null,null,null,null,null,null,null,null,null,null,null,null,null,null,null,null,null,null,null,null,null,"Hf-178m"]
[null,null,null,null,null,null,null,null,null,null,null,null,null,null,null,null,null,null,null,null,null,null,null,null,null,null,null,null,null,"Hf-179m"]
[null,null,null,null,null,null,null,null,null,null,null,null,null,null,null,null,null,null,null,null,null,null,null,null,null,null,null,null,null,"Hf-180m"]
[null,null,null,null,null,null,null,null,null,null,null,null,null,null,null,null,null,null,null,null,null,null,null,null,null,null,null,null,null,"Hf-181"]
[null,null,null,null,null,null,null,null,null,null,null,null,null,null,null,null,null,null,null,null,null,null,null,null,null,null,null,null,null,"Hf-182"]
[null,null,null,null,null,null,null,null,null,null,null,null,null,null,null,null,null,null,null,null,null,null,null,null,null,null,null,null,null,"Hf-182m"]
[null,null,null,null,null,null,null,null,null,null,null,null,null,null,null,null,null,null,null,null,null,null,null,null,null,null,null,null,null,"Hf-183"]
[null,null,null,null,null,null,null,null,null,null,null,null,null,null,null,null,null,null,null,null,null,null,null,null,null,null,null,null,null,"Hf-184"]
[null,null,null,null,null,null,null,null,null,null,null,null,null,null,null,null,null,null,null,null,null,null,null,null,null,null,null,null,null,"Hg-193"]
[null,null,null,null,null,null,null,null,null,null,null,null,null,null,null,null,null,null,null,null,null,null,null,null,null,null,null,null,null,"Hg-193m"]
[null,null,null,null,null,null,null,null,null,null,null,null,null,null,null,null,null,null,null,null,null,null,null,null,null,null,null,null,null,"Hg-194"]
[null,null,null,null,null,null,null,null,null,null,null,null,null,null,null,null,null,null,null,null,null,null,null,null,null,null,null,null,null,"Hg-195"]
[null,null,null,null,null,null,null,null,null,null,null,null,null,null,null,null,null,null,null,null,null,null,null,null,null,null,null,null,null,"Hg-195m"]
[null,null,null,null,null,null,null,null,null,null,null,null,null,null,null,null,null,null,null,null,null,null,null,null,null,null,null,null,null,"Hg-197"]
[null,null,null,null,null,null,null,null,null,null,null,null,null,null,null,null,null,null,null,null,null,null,null,null,null,null,null,null,null,"Hg-197m"]
[null,null,null,null,null,null,null,null,null,null,null,null,null,null,null,null,null,null,null,null,null,null,null,null,null,null,null,null,null,"Hg-199m"]
[null,null,null,null,null,null,null,null,null,null,null,null,null,null,null,null,null,null,null,null,null,null,null,null,null,null,null,null,null,"Hg-203"]
[null,null,null,null,null,null,null,null,null,null,null,null,null,null,null,null,null,null,null,null,null,null,null,null,null,null,null,null,null,"Ho-155"]
[null,null,null,null,null,null,null,null,null,null,null,null,null,null,null,null,null,null,null,null,null,null,null,null,null,null,null,null,null,"Ho-157"]
[null,null,null,null,null,null,null,null,null,null,null,null,null,null,null,null,null,null,null,null,null,null,null,null,null,null,null,null,null,"Ho-159"]
[null,null,null,null,null,null,null,null,null,null,null,null,null,null,null,null,null,null,null,null,null,null,null,null,null,null,null,null,null,"Ho-161"]
[null,null,null,null,null,null,null,null,null,null,null,null,null,null,null,null,null,null,null,null,null,null,null,null,null,null,null,null,null,"Ho-162"]
[null,null,null,null,null,null,null,null,null,null,null,null,null,null,null,null,null,null,null,null,null,null,null,null,null,null,null,null,null,"Ho-162m"]
[null,null,null,null,null,null,null,null,null,null,null,null,null,null,null,null,null,null,null,null,null,null,null,null,null,null,null,null,null,"Ho-164"]
[null,null,null,null,null,null,null,null,null,null,null,null,null,null,null,null,null,null,null,null,null,null,null,null,null,null,null,null,null,"Ho-164m"]
[null,null,null,null,null,null,null,null,null,null,null,null,null,null,null,null,null,null,null,null,null,null,null,null,null,null,null,null,null,"Ho-166"]
[null,null,null,null,null,null,null,null,null,null,null,null,null,null,null,null,null,null,null,null,null,null,null,null,null,null,null,null,null,"Ho-166m"]
[null,null,null,null,null,null,null,null,null,null,null,null,null,null,null,null,null,null,null,null,null,null,null,null,null,null,null,null,null,"Ho-167"]
[null,null,null,null,null,null,null,null,null,null,null,null,null,null,null,null,null,null,null,null,null,null,null,null,null,null,null,null,null,"I-120"]
[null,null,null,null,null,null,null,null,null,null,null,null,null,null,null,null,null,null,null,null,null,null,null,null,null,null,null,null,null,"I-120m"]
[null,null,null,null,null,null,null,null,null,null,null,null,null,null,null,null,null,null,null,null,null,null,null,null,null,null,null,null,null,"I-121"]
[null,null,null,null,null,null,null,null,null,null,null,null,null,null,null,null,null,null,null,null,null,null,null,null,null,null,null,null,null,"I-123"]
[null,null,null,null,null,null,null,null,null,null,null,null,null,null,null,null,null,null,null,null,null,null,null,null,null,null,null,null,null,"I-124"]
[null,null,null,null,null,null,null,null,null,null,null,null,null,null,null,null,null,null,null,null,null,null,null,null,null,null,null,null,null,"I-125"]
[null,null,null,null,null,null,null,null,null,null,null,null,null,null,null,null,null,null,null,null,null,null,null,null,null,null,null,null,null,"I-126"]
[null,null,null,null,null,null,null,null,null,null,null,null,null,null,null,null,null,null,null,null,null,null,null,null,null,null,null,null,null,"I-128"]
[null,null,null,null,null,null,null,null,null,null,null,null,null,null,null,null,null,null,null,null,null,null,null,null,null,null,null,null,null,"I-129"]
[null,null,null,null,null,null,null,null,null,null,null,null,null,null,null,null,null,null,null,null,null,null,null,null,null,null,null,null,null,"I-130"]
[null,null,null,null,null,null,null,null,null,null,null,null,null,null,null,null,null,null,null,null,null,null,null,null,null,null,null,null,null,"I-131"]
[null,null,null,null,null,null,null,null,null,null,null,null,null,null,null,null,null,null,null,null,null,null,null,null,null,null,null,null,null,"I-132"]
[null,null,null,null,null,null,null,null,null,null,null,null,null,null,null,null,null,null,null,null,null,null,null,null,null,null,null,null,null,"I-132m"]
[null,null,null,null,null,null,null,null,null,null,null,null,null,null,null,null,null,null,null,null,null,null,null,null,null,null,null,null,null,"I-133"]
[null,null,null,null,null,null,null,null,null,null,null,null,null,null,null,null,null,null,null,null,null,null,null,null,null,null,null,null,null,"I-134"]
[null,null,null,null,null,null,null,null,null,null,null,null,null,null,null,null,null,null,null,null,null,null,null,null,null,null,null,null,null,"I-135"]
[null,null,null,null,null,null,null,null,null,null,null,null,null,null,null,null,null,null,null,null,null,null,null,null,null,null,null,null,null,"In-109"]
[null,null,null,null,null,null,null,null,null,null,null,null,null,null,null,null,null,null,null,null,null,null,null,null,null,null,null,null,null,"In-110"]
[null,null,null,null,null,null,null,null,null,null,null,null,null,null,null,null,null,null,null,null,null,null,null,null,null,null,null,null,null,"In-110"]
[null,null,null,null,null,null,null,null,null,null,null,null,null,null,null,null,null,null,null,null,null,null,null,null,null,null,null,null,null,"In-111"]
[null,null,null,null,null,null,null,null,null,null,null,null,null,null,null,null,null,null,null,null,null,null,null,null,null,null,null,null,null,"In-112"]
[null,null,null,null,null,null,null,null,null,null,null,null,null,null,null,null,null,null,null,null,null,null,null,null,null,null,null,null,null,"In-113m"]
[null,null,null,null,null,null,null,null,null,null,null,null,null,null,null,null,null,null,null,null,null,null,null,null,null,null,null,null,null,"In-114m"]
[null,null,null,null,null,null,null,null,null,null,null,null,null,null,null,null,null,null,null,null,null,null,null,null,null,null,null,null,null,"In-115"]
[null,null,null,null,null,null,null,null,null,null,null,null,null,null,null,null,null,null,null,null,null,null,null,null,null,null,null,null,null,"In-115m"]
[null,null,null,null,null,null,null,null,null,null,null,null,null,null,null,null,null,null,null,null,null,null,null,null,null,null,null,null,null,"In-116m"]
[null,null,null,null,null,null,null,null,null,null,null,null,null,null,null,null,null,null,null,null,null,null,null,null,null,null,null,null,null,"In-117"]
[null,null,null,null,null,null,null,null,null,null,null,null,null,null,null,null,null,null,null,null,null,null,null,null,null,null,null,null,null,"In-117m"]
[null,null,null,null,null,null,null,null,null,null,null,null,null,null,null,null,null,null,null,null,null,null,null,null,null,null,null,null,null,"In-119m"]
[null,null,null,null,null,null,null,null,null,null,null,null,null,null,null,null,null,null,null,null,null,null,null,null,null,null,null,null,null,"Ir-182"]
[null,null,null,null,null,null,null,null,null,null,null,null,null,null,null,null,null,null,null,null,null,null,null,null,null,null,null,null,null,"Ir-184"]
[null,null,null,null,null,null,null,null,null,null,null,null,null,null,null,null,null,null,null,null,null,null,null,null,null,null,null,null,null,"Ir-185"]
[null,null,null,null,null,null,null,null,null,null,null,null,null,null,null,null,null,null,null,null,null,null,null,null,null,null,null,null,null,"Ir-186"]
[null,null,null,null,null,null,null,null,null,null,null,null,null,null,null,null,null,null,null,null,null,null,null,null,null,null,null,null,null,"Ir-187"]
[null,null,null,null,null,null,null,null,null,null,null,null,null,null,null,null,null,null,null,null,null,null,null,null,null,null,null,null,null,"Ir-188"]
[null,null,null,null,null,null,null,null,null,null,null,null,null,null,null,null,null,null,null,null,null,null,null,null,null,null,null,null,null,"Ir-189"]
[null,null,null,null,null,null,null,null,null,null,null,null,null,null,null,null,null,null,null,null,null,null,null,null,null,null,null,null,null,"Ir-190"]
[null,null,null,null,null,null,null,null,null,null,null,null,null,null,null,null,null,null,null,null,null,null,null,null,null,null,null,null,null,"Ir-190m"]
[null,null,null,null,null,null,null,null,null,null,null,null,null,null,null,null,null,null,null,null,null,null,null,null,null,null,null,null,null,"Ir-192"]
[null,null,null,null,null,null,null,null,null,null,null,null,null,null,null,null,null,null,null,null,null,null,null,null,null,null,null,null,null,"Ir-192m"]
[null,null,null,null,null,null,null,null,null,null,null,null,null,null,null,null,null,null,null,null,null,null,null,null,null,null,null,null,null,"Ir-194"]
[null,null,null,null,null,null,null,null,null,null,null,null,null,null,null,null,null,null,null,null,null,null,null,null,null,null,null,null,null,"Ir-194m"]
[null,null,null,null,null,null,null,null,null,null,null,null,null,null,null,null,null,null,null,null,null,null,null,null,null,null,null,null,null,"Ir-195"]
[null,null,null,null,null,null,null,null,null,null,null,null,null,null,null,null,null,null,null,null,null,null,null,null,null,null,null,null,null,"Ir-195m"]
[null,null,null,null,null,null,null,null,null,null,null,null,null,null,null,null,null,null,null,null,null,null,null,null,null,null,null,null,null,"K-40"]
[null,null,null,null,null,null,null,null,null,null,null,null,null,null,null,null,null,null,null,null,null,null,null,null,null,null,null,null,null,"K-42"]
[null,null,null,null,null,null,null,null,null,null,null,null,null,null,null,null,null,null,null,null,null,null,null,null,null,null,null,null,null,"K-43"]
[null,null,null,null,null,null,null,null,null,null,null,null,null,null,null,null,null,null,null,null,null,null,null,null,null,null,null,null,null,"K-44"]
[null,null,null,null,null,null,null,null,null,null,null,null,null,null,null,null,null,null,null,null,null,null,null,null,null,null,null,null,null,"K-45"]
[null,null,null,null,null,null,null,null,null,null,null,null,null,null,null,null,null,null,null,null,null,null,null,null,null,null,null,null,null,"Kr-74"]
[null,null,null,null,null,null,null,null,null,null,null,null,null,null,null,null,null,null,null,null,null,null,null,null,null,null,null,null,null,"Kr-76"]
[null,null,null,null,null,null,null,null,null,null,null,null,null,null,null,null,null,null,null,null,null,null,null,null,null,null,null,null,null,"Kr-77"]
[null,null,null,null,null,null,null,null,null,null,null,null,null,null,null,null,null,null,null,null,null,null,null,null,null,null,null,null,null,"Kr-79"]
[null,null,null,null,null,null,null,null,null,null,null,null,null,null,null,null,null,null,null,null,null,null,null,null,null,null,null,null,null,"Kr-81"]
[null,null,null,null,null,null,null,null,null,null,null,null,null,null,null,null,null,null,null,null,null,null,null,null,null,null,null,null,null,"Kr-83m"]
[null,null,null,null,null,null,null,null,null,null,null,null,null,null,null,null,null,null,null,null,null,null,null,null,null,null,null,null,null,"Kr-85"]
[null,null,null,null,null,null,null,null,null,null,null,null,null,null,null,null,null,null,null,null,null,null,null,null,null,null,null,null,null,"Kr-85m"]
[null,null,null,null,null,null,null,null,null,null,null,null,null,null,null,null,null,null,null,null,null,null,null,null,null,null,null,null,null,"Kr-87"]
[null,null,null,null,null,null,null,null,null,null,null,null,null,null,null,null,null,null,null,null,null,null,null,null,null,null,null,null,null,"Kr-88"]
[null,null,null,null,null,null,null,null,null,null,null,null,null,null,null,null,null,null,null,null,null,null,null,null,null,null,null,null,null,"La-131"]
[null,null,null,null,null,null,null,null,null,null,null,null,null,null,null,null,null,null,null,null,null,null,null,null,null,null,null,null,null,"La-132"]
[null,null,null,null,null,null,null,null,null,null,null,null,null,null,null,null,null,null,null,null,null,null,null,null,null,null,null,null,null,"La-135"]
[null,null,null,null,null,null,null,null,null,null,null,null,null,null,null,null,null,null,null,null,null,null,null,null,null,null,null,null,null,"La-137"]
[null,null,null,null,null,null,null,null,null,null,null,null,null,null,null,null,null,null,null,null,null,null,null,null,null,null,null,null,null,"La-138"]
[null,null,null,null,null,null,null,null,null,null,null,null,null,null,null,null,null,null,null,null,null,null,null,null,null,null,null,null,null,"La-140"]
[null,null,null,null,null,null,null,null,null,null,null,null,null,null,null,null,null,null,null,null,null,null,null,null,null,null,null,null,null,"La-141"]
[null,null,null,null,null,null,null,null,null,null,null,null,null,null,null,null,null,null,null,null,null,null,null,null,null,null,null,null,null,"La-142"]
[null,null,null,null,null,null,null,null,null,null,null,null,null,null,null,null,null,null,null,null,null,null,null,null,null,null,null,null,null,"La-143"]
[null,null,null,null,null,null,null,null,null,null,null,null,null,null,null,null,null,null,null,null,null,null,null,null,null,null,null,null,null,"Lu-169"]
[null,null,null,null,null,null,null,null,null,null,null,null,null,null,null,null,null,null,null,null,null,null,null,null,null,null,null,null,null,"Lu-170"]
[null,null,null,null,null,null,null,null,null,null,null,null,null,null,null,null,null,null,null,null,null,null,null,null,null,null,null,null,null,"Lu-171"]
[null,null,null,null,null,null,null,null,null,null,null,null,null,null,null,null,null,null,null,null,null,null,null,null,null,null,null,null,null,"Lu-172"]
[null,null,null,null,null,null,null,null,null,null,null,null,null,null,null,null,null,null,null,null,null,null,null,null,null,null,null,null,null,"Lu-173"]
[null,null,null,null,null,null,null,null,null,null,null,null,null,null,null,null,null,null,null,null,null,null,null,null,null,null,null,null,null,"Lu-174"]
[null,null,null,null,null,null,null,null,null,null,null,null,null,null,null,null,null,null,null,null,null,null,null,null,null,null,null,null,null,"Lu-174m"]
[null,null,null,null,null,null,null,null,null,null,null,null,null,null,null,null,null,null,null,null,null,null,null,null,null,null,null,null,null,"Lu-176"]
[null,null,null,null,null,null,null,null,null,null,null,null,null,null,null,null,null,null,null,null,null,null,null,null,null,null,null,null,null,"Lu-176m"]
[null,null,null,null,null,null,null,null,null,null,null,null,null,null,null,null,null,null,null,null,null,null,null,null,null,null,null,null,null,"Lu-177"]
[null,null,null,null,null,null,null,null,null,null,null,null,null,null,null,null,null,null,null,null,null,null,null,null,null,null,null,null,null,"Lu-177m"]
[null,null,null,null,null,null,null,null,null,null,null,null,null,null,null,null,null,null,null,null,null,null,null,null,null,null,null,null,null,"Lu-178"]
[null,null,null,null,null,null,null,null,null,null,null,null,null,null,null,null,null,null,null,null,null,null,null,null,null,null,null,null,null,"Lu-178m"]
[null,null,null,null,null,null,null,null,null,null,null,null,null,null,null,null,null,null,null,null,null,null,null,null,null,null,null,null,null,"Lu-179"]
[null,null,null,null,null,null,null,null,null,null,null,null,null,null,null,null,null,null,null,null,null,null,null,null,null,null,null,null,null,"Md-257"]
[null,null,null,null,null,null,null,null,null,null,null,null,null,null,null,null,null,null,null,null,null,null,null,null,null,null,null,null,null,"Md-258"]
[null,null,null,null,null,null,null,null,null,null,null,null,null,null,null,null,null,null,null,null,null,null,null,null,null,null,null,null,null,"Mg-28"]
[null,null,null,null,null,null,null,null,null,null,null,null,null,null,null,null,null,null,null,null,null,null,null,null,null,null,null,null,null,"Mn-51"]
[null,null,null,null,null,null,null,null,null,null,null,null,null,null,null,null,null,null,null,null,null,null,null,null,null,null,null,null,null,"Mn-52"]
[null,null,null,null,null,null,null,null,null,null,null,null,null,null,null,null,null,null,null,null,null,null,null,null,null,null,null,null,null,"Mn-52m"]
[null,null,null,null,null,null,null,null,null,null,null,null,null,null,null,null,null,null,null,null,null,null,null,null,null,null,null,null,null,"Mn-53"]
[null,null,null,null,null,null,null,null,null,null,null,null,null,null,null,null,null,null,null,null,null,null,null,null,null,null,null,null,null,"Mn-54"]
[null,null,null,null,null,null,null,null,null,null,null,null,null,null,null,null,null,null,null,null,null,null,null,null,null,null,null,null,null,"Mn-56"]
[null,null,null,null,null,null,null,null,null,null,null,null,null,null,null,null,null,null,null,null,null,null,null,null,null,null,null,null,null,"Mo-101"]
[null,null,null,null,null,null,null,null,null,null,null,null,null,null,null,null,null,null,null,null,null,null,null,null,null,null,null,null,null,"Mo-90"]
[null,null,null,null,null,null,null,null,null,null,null,null,null,null,null,null,null,null,null,null,null,null,null,null,null,null,null,null,null,"Mo-93"]
[null,null,null,null,null,null,null,null,null,null,null,null,null,null,null,null,null,null,null,null,null,null,null,null,null,null,null,null,null,"Mo-93m"]
[null,null,null,null,null,null,null,null,null,null,null,null,null,null,null,null,null,null,null,null,null,null,null,null,null,null,null,null,null,"Mo-99"]
[null,null,null,null,null,null,null,null,null,null,null,null,null,null,null,null,null,null,null,null,null,null,null,null,null,null,null,null,null,"Na-22"]
[null,null,null,null,null,null,null,null,null,null,null,null,null,null,null,null,null,null,null,null,null,null,null,null,null,null,null,null,null,"Na-24"]
[null,null,null,null,null,null,null,null,null,null,null,null,null,null,null,null,null,null,null,null,null,null,null,null,null,null,null,null,null,"Nb-88"]
[null,null,null,null,null,null,null,null,null,null,null,null,null,null,null,null,null,null,null,null,null,null,null,null,null,null,null,null,null,"Nb-89"]
[null,null,null,null,null,null,null,null,null,null,null,null,null,null,null,null,null,null,null,null,null,null,null,null,null,null,null,null,null,"Nb-89"]
[null,null,null,null,null,null,null,null,null,null,null,null,null,null,null,null,null,null,null,null,null,null,null,null,null,null,null,null,null,"Nb-90"]
[null,null,null,null,null,null,null,null,null,null,null,null,null,null,null,null,null,null,null,null,null,null,null,null,null,null,null,null,null,"Nb-93m"]
[null,null,null,null,null,null,null,null,null,null,null,null,null,null,null,null,null,null,null,null,null,null,null,null,null,null,null,null,null,"Nb-94"]
[null,null,null,null,null,null,null,null,null,null,null,null,null,null,null,null,null,null,null,null,null,null,null,null,null,null,null,null,null,"Nb-95"]
[null,null,null,null,null,null,null,null,null,null,null,null,null,null,null,null,null,null,null,null,null,null,null,null,null,null,null,null,null,"Nb-95m"]
[null,null,null,null,null,null,null,null,null,null,null,null,null,null,null,null,null,null,null,null,null,null,null,null,null,null,null,null,null,"Nb-96"]
[null,null,null,null,null,null,null,null,null,null,null,null,null,null,null,null,null,null,null,null,null,null,null,null,null,null,null,null,null,"Nb-97"]
[null,null,null,null,null,null,null,null,null,null,null,null,null,null,null,null,null,null,null,null,null,null,null,null,null,null,null,null,null,"Nb-98"]
[null,null,null,null,null,null,null,null,null,null,null,null,null,null,null,null,null,null,null,null,null,null,null,null,null,null,null,null,null,"Nd-136"]
[null,null,null,null,null,null,null,null,null,null,null,null,null,null,null,null,null,null,null,null,null,null,null,null,null,null,null,null,null,"Nd-138"]
[null,null,null,null,null,null,null,null,null,null,null,null,null,null,null,null,null,null,null,null,null,null,null,null,null,null,null,null,null,"Nd-139"]
[null,null,null,null,null,null,null,null,null,null,null,null,null,null,null,null,null,null,null,null,null,null,null,null,null,null,null,null,null,"Nd-139m"]
[null,null,null,null,null,null,null,null,null,null,null,null,null,null,null,null,null,null,null,null,null,null,null,null,null,null,null,null,null,"Nd-141"]
[null,null,null,null,null,null,null,null,null,null,null,null,null,null,null,null,null,null,null,null,null,null,null,null,null,null,null,null,null,"Nd-147"]
[null,null,null,null,null,null,null,null,null,null,null,null,null,null,null,null,null,null,null,null,null,null,null,null,null,null,null,null,null,"Nd-149"]
[null,null,null,null,null,null,null,null,null,null,null,null,null,null,null,null,null,null,null,null,null,null,null,null,null,null,null,null,null,"Nd-151"]
[null,null,null,null,null,null,null,null,null,null,null,null,null,null,null,null,null,null,null,null,null,null,null,null,null,null,null,null,null,"Ni-56"]
[null,null,null,null,null,null,null,null,null,null,null,null,null,null,null,null,null,null,null,null,null,null,null,null,null,null,null,null,null,"Ni-57"]
[null,null,null,null,null,null,null,null,null,null,null,null,null,null,null,null,null,null,null,null,null,null,null,null,null,null,null,null,null,"Ni-59"]
[null,null,null,null,null,null,null,null,null,null,null,null,null,null,null,null,null,null,null,null,null,null,null,null,null,null,null,null,null,"Ni-63"]
[null,null,null,null,null,null,null,null,null,null,null,null,null,null,null,null,null,null,null,null,null,null,null,null,null,null,null,null,null,"Ni-65"]
[null,null,null,null,null,null,null,null,null,null,null,null,null,null,null,null,null,null,null,null,null,null,null,null,null,null,null,null,null,"Ni-66"]
[null,null,null,null,null,null,null,null,null,null,null,null,null,null,null,null,null,null,null,null,null,null,null,null,null,null,null,null,null,"Np-232"]
[null,null,null,null,null,null,null,null,null,null,null,null,null,null,null,null,null,null,null,null,null,null,null,null,null,null,null,null,null,"Np-233"]
[null,null,null,null,null,null,null,null,null,null,null,null,null,null,null,null,null,null,null,null,null,null,null,null,null,null,null,null,null,"Np-234"]
[null,null,null,null,null,null,null,null,null,null,null,null,null,null,null,null,null,null,null,null,null,null,null,null,null,null,null,null,null,"Np-235"]
[null,null,null,null,null,null,null,null,null,null,null,null,null,null,null,null,null,null,null,null,null,null,null,null,null,null,null,null,null,"Np-236"]
[null,null,null,null,null,null,null,null,null,null,null,null,null,null,null,null,null,null,null,null,null,null,null,null,null,null,null,null,null,"Np-236"]
[null,null,null,null,null,null,null,null,null,null,null,null,null,null,null,null,null,null,null,null,null,null,null,null,null,null,null,null,null,"Np-237"]
[null,null,null,null,null,null,null,null,null,null,null,null,null,null,null,null,null,null,null,null,null,null,null,null,null,null,null,null,null,"Np-238"]
[null,null,null,null,null,null,null,null,null,null,null,null,null,null,null,null,null,null,null,null,null,null,null,null,null,null,null,null,null,"Np-239"]
[null,null,null,null,null,null,null,null,null,null,null,null,null,null,null,null,null,null,null,null,null,null,null,null,null,null,null,null,null,"Np-240"]
[null,null,null,null,null,null,null,null,null,null,null,null,null,null,null,null,null,null,null,null,null,null,null,null,null,null,null,null,null,"Os-180"]
[null,null,null,null,null,null,null,null,null,null,null,null,null,null,null,null,null,null,null,null,null,null,null,null,null,null,null,null,null,"Os-181"]
[null,null,null,null,null,null,null,null,null,null,null,null,null,null,null,null,null,null,null,null,null,null,null,null,null,null,null,null,null,"Os-182"]
[null,null,null,null,null,null,null,null,null,null,null,null,null,null,null,null,null,null,null,null,null,null,null,null,null,null,null,null,null,"Os-185"]
[null,null,null,null,null,null,null,null,null,null,null,null,null,null,null,null,null,null,null,null,null,null,null,null,null,null,null,null,null,"Os-189m"]
[null,null,null,null,null,null,null,null,null,null,null,null,null,null,null,null,null,null,null,null,null,null,null,null,null,null,null,null,null,"Os-191"]
[null,null,null,null,null,null,null,null,null,null,null,null,null,null,null,null,null,null,null,null,null,null,null,null,null,null,null,null,null,"Os-191m"]
[null,null,null,null,null,null,null,null,null,null,null,null,null,null,null,null,null,null,null,null,null,null,null,null,null,null,null,null,null,"Os-193"]
[null,null,null,null,null,null,null,null,null,null,null,null,null,null,null,null,null,null,null,null,null,null,null,null,null,null,null,null,null,"Os-194"]
[null,null,null,null,null,null,null,null,null,null,null,null,null,null,null,null,null,null,null,null,null,null,null,null,null,null,null,null,null,"P-32"]
[null,null,null,null,null,null,null,null,null,null,null,null,null,null,null,null,null,null,null,null,null,null,null,null,null,null,null,null,null,"P-33"]
[null,null,null,null,null,null,null,null,null,null,null,null,null,null,null,null,null,null,null,null,null,null,null,null,null,null,null,null,null,"Pa-227"]
[null,null,null,null,null,null,null,null,null,null,null,null,null,null,null,null,null,null,null,null,null,null,null,null,null,null,null,null,null,"Pa-228"]
[null,null,null,null,null,null,null,null,null,null,null,null,null,null,null,null,null,null,null,null,null,null,null,null,null,null,null,null,null,"Pa-230"]
[null,null,null,null,null,null,null,null,null,null,null,null,null,null,null,null,null,null,null,null,null,null,null,null,null,null,null,null,null,"Pa-231"]
[null,null,null,null,null,null,null,null,null,null,null,null,null,null,null,null,null,null,null,null,null,null,null,null,null,null,null,null,null,"Pa-232"]
[null,null,null,null,null,null,null,null,null,null,null,null,null,null,null,null,null,null,null,null,null,null,null,null,null,null,null,null,null,"Pa-233"]
[null,null,null,null,null,null,null,null,null,null,null,null,null,null,null,null,null,null,null,null,null,null,null,null,null,null,null,null,null,"Pa-234"]
[null,null,null,null,null,null,null,null,null,null,null,null,null,null,null,null,null,null,null,null,null,null,null,null,null,null,null,null,null,"Pb-195m"]
[null,null,null,null,null,null,null,null,null,null,null,null,null,null,null,null,null,null,null,null,null,null,null,null,null,null,null,null,null,"Pb-198"]
[null,null,null,null,null,null,null,null,null,null,null,null,null,null,null,null,null,null,null,null,null,null,null,null,null,null,null,null,null,"Pb-199"]
[null,null,null,null,null,null,null,null,null,null,null,null,null,null,null,null,null,null,null,null,null,null,null,null,null,null,null,null,null,"Pb-200"]
[null,null,null,null,null,null,null,null,null,null,null,null,null,null,null,null,null,null,null,null,null,null,null,null,null,null,null,null,null,"Pb-201"]
[null,null,null,null,null,null,null,null,null,null,null,null,null,null,null,null,null,null,null,null,null,null,null,null,null,null,null,null,null,"Pb-202"]
[null,null,null,null,null,null,null,null,null,null,null,null,null,null,null,null,null,null,null,null,null,null,null,null,null,null,null,null,null,"Pb-202m"]
[null,null,null,null,null,null,null,null,null,null,null,null,null,null,null,null,null,null,null,null,null,null,null,null,null,null,null,null,null,"Pb-203"]
[null,null,null,null,null,null,null,null,null,null,null,null,null,null,null,null,null,null,null,null,null,null,null,null,null,null,null,null,null,"Pb-205"]
[null,null,null,null,null,null,null,null,null,null,null,null,null,null,null,null,null,null,null,null,null,null,null,null,null,null,null,null,null,"Pb-209"]
[null,null,null,null,null,null,null,null,null,null,null,null,null,null,null,null,null,null,null,null,null,null,null,null,null,null,null,null,null,"Pb-210"]
[null,null,null,null,null,null,null,null,null,null,null,null,null,null,null,null,null,null,null,null,null,null,null,null,null,null,null,null,null,"Pb-211"]
[null,null,null,null,null,null,null,null,null,null,null,null,null,null,null,null,null,null,null,null,null,null,null,null,null,null,null,null,null,"Pb-212"]
[null,null,null,null,null,null,null,null,null,null,null,null,null,null,null,null,null,null,null,null,null,null,null,null,null,null,null,null,null,"Pb-214"]
[null,null,null,null,null,null,null,null,null,null,null,null,null,null,null,null,null,null,null,null,null,null,null,null,null,null,null,null,null,"Pd-100"]
[null,null,null,null,null,null,null,null,null,null,null,null,null,null,null,null,null,null,null,null,null,null,null,null,null,null,null,null,null,"Pd-101"]
[null,null,null,null,null,null,null,null,null,null,null,null,null,null,null,null,null,null,null,null,null,null,null,null,null,null,null,null,null,"Pd-103"]
[null,null,null,null,null,null,null,null,null,null,null,null,null,null,null,null,null,null,null,null,null,null,null,null,null,null,null,null,null,"Pd-107"]
[null,null,null,null,null,null,null,null,null,null,null,null,null,null,null,null,null,null,null,null,null,null,null,null,null,null,null,null,null,"Pd-109"]
[null,null,null,null,null,null,null,null,null,null,null,null,null,null,null,null,null,null,null,null,null,null,null,null,null,null,null,null,null,"Pm-141"]
[null,null,null,null,null,null,null,null,null,null,null,null,null,null,null,null,null,null,null,null,null,null,null,null,null,null,null,null,null,"Pm-143"]
[null,null,null,null,null,null,null,null,null,null,null,null,null,null,null,null,null,null,null,null,null,null,null,null,null,null,null,null,null,"Pm-144"]
[null,null,null,null,null,null,null,null,null,null,null,null,null,null,null,null,null,null,null,null,null,null,null,null,null,null,null,null,null,"Pm-145"]
[null,null,null,null,null,null,null,null,null,null,null,null,null,null,null,null,null,null,null,null,null,null,null,null,null,null,null,null,null,"Pm-146"]
[null,null,null,null,null,null,null,null,null,null,null,null,null,null,null,null,null,null,null,null,null,null,null,null,null,null,null,null,null,"Pm-147"]
[null,null,null,null,null,null,null,null,null,null,null,null,null,null,null,null,null,null,null,null,null,null,null,null,null,null,null,null,null,"Pm-148"]
[null,null,null,null,null,null,null,null,null,null,null,null,null,null,null,null,null,null,null,null,null,null,null,null,null,null,null,null,null,"Pm-148m"]
[null,null,null,null,null,null,null,null,null,null,null,null,null,null,null,null,null,null,null,null,null,null,null,null,null,null,null,null,null,"Pm-149"]
[null,null,null,null,null,null,null,null,null,null,null,null,null,null,null,null,null,null,null,null,null,null,null,null,null,null,null,null,null,"Pm-150"]
[null,null,null,null,null,null,null,null,null,null,null,null,null,null,null,null,null,null,null,null,null,null,null,null,null,null,null,null,null,"Pm-151"]
[null,null,null,null,null,null,null,null,null,null,null,null,null,null,null,null,null,null,null,null,null,null,null,null,null,null,null,null,null,"Po-203"]
[null,null,null,null,null,null,null,null,null,null,null,null,null,null,null,null,null,null,null,null,null,null,null,null,null,null,null,null,null,"Po-205"]
[null,null,null,null,null,null,null,null,null,null,null,null,null,null,null,null,null,null,null,null,null,null,null,null,null,null,null,null,null,"Po-207"]
[null,null,null,null,null,null,null,null,null,null,null,null,null,null,null,null,null,null,null,null,null,null,null,null,null,null,null,null,null,"Po-210"]
[null,null,null,null,null,null,null,null,null,null,null,null,null,null,null,null,null,null,null,null,null,null,null,null,null,null,null,null,null,"Pr-136"]
[null,null,null,null,null,null,null,null,null,null,null,null,null,null,null,null,null,null,null,null,null,null,null,null,null,null,null,null,null,"Pr-137"]
[null,null,null,null,null,null,null,null,null,null,null,null,null,null,null,null,null,null,null,null,null,null,null,null,null,null,null,null,null,"Pr-138m"]
[null,null,null,null,null,null,null,null,null,null,null,null,null,null,null,null,null,null,null,null,null,null,null,null,null,null,null,null,null,"Pr-139"]
[null,null,null,null,null,null,null,null,null,null,null,null,null,null,null,null,null,null,null,null,null,null,null,null,null,null,null,null,null,"Pr-142"]
[null,null,null,null,null,null,null,null,null,null,null,null,null,null,null,null,null,null,null,null,null,null,null,null,null,null,null,null,null,"Pr-142m"]
[null,null,null,null,null,null,null,null,null,null,null,null,null,null,null,null,null,null,null,null,null,null,null,null,null,null,null,null,null,"Pr-143"]
[null,null,null,null,null,null,null,null,null,null,null,null,null,null,null,null,null,null,null,null,null,null,null,null,null,null,null,null,null,"Pr-144"]
[null,null,null,null,null,null,null,null,null,null,null,null,null,null,null,null,null,null,null,null,null,null,null,null,null,null,null,null,null,"Pr-145"]
[null,null,null,null,null,null,null,null,null,null,null,null,null,null,null,null,null,null,null,null,null,null,null,null,null,null,null,null,null,"Pr-147"]
[null,null,null,null,null,null,null,null,null,null,null,null,null,null,null,null,null,null,null,null,null,null,null,null,null,null,null,null,null,"Pt-186"]
[null,null,null,null,null,null,null,null,null,null,null,null,null,null,null,null,null,null,null,null,null,null,null,null,null,null,null,null,null,"Pt-188"]
[null,null,null,null,null,null,null,null,null,null,null,null,null,null,null,null,null,null,null,null,null,null,null,null,null,null,null,null,null,"Pt-189"]
[null,null,null,null,null,null,null,null,null,null,null,null,null,null,null,null,null,null,null,null,null,null,null,null,null,null,null,null,null,"Pt-191"]
[null,null,null,null,null,null,null,null,null,null,null,null,null,null,null,null,null,null,null,null,null,null,null,null,null,null,null,null,null,"Pt-193"]
[null,null,null,null,null,null,null,null,null,null,null,null,null,null,null,null,null,null,null,null,null,null,null,null,null,null,null,null,null,"Pt-193m"]
[null,null,null,null,null,null,null,null,null,null,null,null,null,null,null,null,null,null,null,null,null,null,null,null,null,null,null,null,null,"Pt-195m"]
[null,null,null,null,null,null,null,null,null,null,null,null,null,null,null,null,null,null,null,null,null,null,null,null,null,null,null,null,null,"Pt-197"]
[null,null,null,null,null,null,null,null,null,null,null,null,null,null,null,null,null,null,null,null,null,null,null,null,null,null,null,null,null,"Pt-197m"]
[null,null,null,null,null,null,null,null,null,null,null,null,null,null,null,null,null,null,null,null,null,null,null,null,null,null,null,null,null,"Pt-199"]
[null,null,null,null,null,null,null,null,null,null,null,null,null,null,null,null,null,null,null,null,null,null,null,null,null,null,null,null,null,"Pt-200"]
[null,null,null,null,null,null,null,null,null,null,null,null,null,null,null,null,null,null,null,null,null,null,null,null,null,null,null,null,null,"Pu-234"]
[null,null,null,null,null,null,null,null,null,null,null,null,null,null,null,null,null,null,null,null,null,null,null,null,null,null,null,null,null,"Pu-235"]
[null,null,null,null,null,null,null,null,null,null,null,null,null,null,null,null,null,null,null,null,null,null,null,null,null,null,null,null,null,"Pu-236"]
[null,null,null,null,null,null,null,null,null,null,null,null,null,null,null,null,null,null,null,null,null,null,null,null,null,null,null,null,null,"Pu-237"]
[null,null,null,null,null,null,null,null,null,null,null,null,null,null,null,null,null,null,null,null,null,null,null,null,null,null,null,null,null,"Pu-238"]
[null,null,null,null,null,null,null,null,null,null,null,null,null,null,null,null,null,null,null,null,null,null,null,null,null,null,null,null,null,"Pu-239"]
[null,null,null,null,null,null,null,null,null,null,null,null,null,null,null,null,null,null,null,null,null,null,null,null,null,null,null,null,null,"Pu-240"]
[null,null,null,null,null,null,null,null,null,null,null,null,null,null,null,null,null,null,null,null,null,null,null,null,null,null,null,null,null,"Pu-241"]
[null,null,null,null,null,null,null,null,null,null,null,null,null,null,null,null,null,null,null,null,null,null,null,null,null,null,null,null,null,"Pu-242"]
[null,null,null,null,null,null,null,null,null,null,null,null,null,null,null,null,null,null,null,null,null,null,null,null,null,null,null,null,null,"Pu-243"]
[null,null,null,null,null,null,null,null,null,null,null,null,null,null,null,null,null,null,null,null,null,null,null,null,null,null,null,null,null,"Pu-244"]
[null,null,null,null,null,null,null,null,null,null,null,null,null,null,null,null,null,null,null,null,null,null,null,null,null,null,null,null,null,"Pu-245"]
[null,null,null,null,null,null,null,null,null,null,null,null,null,null,null,null,null,null,null,null,null,null,null,null,null,null,null,null,null,"Ra-223"]
[null,null,null,null,null,null,null,null,null,null,null,null,null,null,null,null,null,null,null,null,null,null,null,null,null,null,null,null,null,"Ra-224"]
[null,null,null,null,null,null,null,null,null,null,null,null,null,null,null,null,null,null,null,null,null,null,null,null,null,null,null,null,null,"Ra-225"]
[null,null,null,null,null,null,null,null,null,null,null,null,null,null,null,null,null,null,null,null,null,null,null,null,null,null,null,null,null,"Ra-226"]
[null,null,null,null,null,null,null,null,null,null,null,null,null,null,null,null,null,null,null,null,null,null,null,null,null,null,null,null,null,"Ra-227"]
[null,null,null,null,null,null,null,null,null,null,null,null,null,null,null,null,null,null,null,null,null,null,null,null,null,null,null,null,null,"Ra-228"]
[null,null,null,null,null,null,null,null,null,null,null,null,null,null,null,null,null,null,null,null,null,null,null,null,null,null,null,null,null,"Rb-79"]
[null,null,null,null,null,null,null,null,null,null,null,null,null,null,null,null,null,null,null,null,null,null,null,null,null,null,null,null,null,"Rb-81"]
[null,null,null,null,null,null,null,null,null,null,null,null,null,null,null,null,null,null,null,null,null,null,null,null,null,null,null,null,null,"Rb-81m"]
[null,null,null,null,null,null,null,null,null,null,null,null,null,null,null,null,null,null,null,null,null,null,null,null,null,null,null,null,null,"Rb-82m"]
[null,null,null,null,null,null,null,null,null,null,null,null,null,null,null,null,null,null,null,null,null,null,null,null,null,null,null,null,null,"Rb-83"]
[null,null,null,null,null,null,null,null,null,null,null,null,null,null,null,null,null,null,null,null,null,null,null,null,null,null,null,null,null,"Rb-84"]
[null,null,null,null,null,null,null,null,null,null,null,null,null,null,null,null,null,null,null,null,null,null,null,null,null,null,null,null,null,"Rb-86"]
[null,null,null,null,null,null,null,null,null,null,null,null,null,null,null,null,null,null,null,null,null,null,null,null,null,null,null,null,null,"Rb-87"]
[null,null,null,null,null,null,null,null,null,null,null,null,null,null,null,null,null,null,null,null,null,null,null,null,null,null,null,null,null,"Rb-88"]
[null,null,null,null,null,null,null,null,null,null,null,null,null,null,null,null,null,null,null,null,null,null,null,null,null,null,null,null,null,"Rb-89"]
[null,null,null,null,null,null,null,null,null,null,null,null,null,null,null,null,null,null,null,null,null,null,null,null,null,null,null,null,null,"Re-177"]
[null,null,null,null,null,null,null,null,null,null,null,null,null,null,null,null,null,null,null,null,null,null,null,null,null,null,null,null,null,"Re-178"]
[null,null,null,null,null,null,null,null,null,null,null,null,null,null,null,null,null,null,null,null,null,null,null,null,null,null,null,null,null,"Re-181"]
[null,null,null,null,null,null,null,null,null,null,null,null,null,null,null,null,null,null,null,null,null,null,null,null,null,null,null,null,null,"Re-182"]
[null,null,null,null,null,null,null,null,null,null,null,null,null,null,null,null,null,null,null,null,null,null,null,null,null,null,null,null,null,"Re-182"]
[null,null,null,null,null,null,null,null,null,null,null,null,null,null,null,null,null,null,null,null,null,null,null,null,null,null,null,null,null,"Re-184"]
[null,null,null,null,null,null,null,null,null,null,null,null,null,null,null,null,null,null,null,null,null,null,null,null,null,null,null,null,null,"Re-184m"]
[null,null,null,null,null,null,null,null,null,null,null,null,null,null,null,null,null,null,null,null,null,null,null,null,null,null,null,null,null,"Re-186"]
[null,null,null,null,null,null,null,null,null,null,null,null,null,null,null,null,null,null,null,null,null,null,null,null,null,null,null,null,null,"Re-186m"]
[null,null,null,null,null,null,null,null,null,null,null,null,null,null,null,null,null,null,null,null,null,null,null,null,null,null,null,null,null,"Re-187"]
[null,null,null,null,null,null,null,null,null,null,null,null,null,null,null,null,null,null,null,null,null,null,null,null,null,null,null,null,null,"Re-188"]
[null,null,null,null,null,null,null,null,null,null,null,null,null,null,null,null,null,null,null,null,null,null,null,null,null,null,null,null,null,"Re-188m"]
[null,null,null,null,null,null,null,null,null,null,null,null,null,null,null,null,null,null,null,null,null,null,null,null,null,null,null,null,null,"Re-189"]
[null,null,null,null,null,null,null,null,null,null,null,null,null,null,null,null,null,null,null,null,null,null,null,null,null,null,null,null,null,"Rh-100"]
[null,null,null,null,null,null,null,null,null,null,null,null,null,null,null,null,null,null,null,null,null,null,null,null,null,null,null,null,null,"Rh-101"]
[null,null,null,null,null,null,null,null,null,null,null,null,null,null,null,null,null,null,null,null,null,null,null,null,null,null,null,null,null,"Rh-101m"]
[null,null,null,null,null,null,null,null,null,null,null,null,null,null,null,null,null,null,null,null,null,null,null,null,null,null,null,null,null,"Rh-102"]
[null,null,null,null,null,null,null,null,null,null,null,null,null,null,null,null,null,null,null,null,null,null,null,null,null,null,null,null,null,"Rh-102m"]
[null,null,null,null,null,null,null,null,null,null,null,null,null,null,null,null,null,null,null,null,null,null,null,null,null,null,null,null,null,"Rh-103m"]
[null,null,null,null,null,null,null,null,null,null,null,null,null,null,null,null,null,null,null,null,null,null,null,null,null,null,null,null,null,"Rh-105"]
[null,null,null,null,null,null,null,null,null,null,null,null,null,null,null,null,null,null,null,null,null,null,null,null,null,null,null,null,null,"Rh-106m"]
[null,null,null,null,null,null,null,null,null,null,null,null,null,null,null,null,null,null,null,null,null,null,null,null,null,null,null,null,null,"Rh-107"]
[null,null,null,null,null,null,null,null,null,null,null,null,null,null,null,null,null,null,null,null,null,null,null,null,null,null,null,null,null,"Rh-99"]
[null,null,null,null,null,null,null,null,null,null,null,null,null,null,null,null,null,null,null,null,null,null,null,null,null,null,null,null,null,"Rh-99m"]
[null,null,null,null,null,null,null,null,null,null,null,null,null,null,null,null,null,null,null,null,null,null,null,null,null,null,null,null,null,"Rn-220"]
[null,null,null,null,null,null,null,null,null,null,null,null,null,null,null,null,null,null,null,null,null,null,null,null,null,null,null,null,null,"Rn-222"]
[null,null,null,null,null,null,null,null,null,null,null,null,null,null,null,null,null,null,null,null,null,null,null,null,null,null,null,null,null,"Ru-103"]
[null,null,null,null,null,null,null,null,null,null,null,null,null,null,null,null,null,null,null,null,null,null,null,null,null,null,null,null,null,"Ru-105"]
[null,null,null,null,null,null,null,null,null,null,null,null,null,null,null,null,null,null,null,null,null,null,null,null,null,null,null,null,null,"Ru-106"]
[null,null,null,null,null,null,null,null,null,null,null,null,null,null,null,null,null,null,null,null,null,null,null,null,null,null,null,null,null,"Ru-94"]
[null,null,null,null,null,null,null,null,null,null,null,null,null,null,null,null,null,null,null,null,null,null,null,null,null,null,null,null,null,"Ru-97"]
[null,null,null,null,null,null,null,null,null,null,null,null,null,null,null,null,null,null,null,null,null,null,null,null,null,null,null,null,null,"S-35"]
[null,null,null,null,null,null,null,null,null,null,null,null,null,null,null,null,null,null,null,null,null,null,null,null,null,null,null,null,null,"Sb-115"]
[null,null,null,null,null,null,null,null,null,null,null,null,null,null,null,null,null,null,null,null,null,null,null,null,null,null,null,null,null,"Sb-116"]
[null,null,null,null,null,null,null,null,null,null,null,null,null,null,null,null,null,null,null,null,null,null,null,null,null,null,null,null,null,"Sb-116m"]
[null,null,null,null,null,null,null,null,null,null,null,null,null,null,null,null,null,null,null,null,null,null,null,null,null,null,null,null,null,"Sb-117"]
[null,null,null,null,null,null,null,null,null,null,null,null,null,null,null,null,null,null,null,null,null,null,null,null,null,null,null,null,null,"Sb-118m"]
[null,null,null,null,null,null,null,null,null,null,null,null,null,null,null,null,null,null,null,null,null,null,null,null,null,null,null,null,null,"Sb-119"]
[null,null,null,null,null,null,null,null,null,null,null,null,null,null,null,null,null,null,null,null,null,null,null,null,null,null,null,null,null,"Sb-120"]
[null,null,null,null,null,null,null,null,null,null,null,null,null,null,null,null,null,null,null,null,null,null,null,null,null,null,null,null,null,"Sb-120"]
[null,null,null,null,null,null,null,null,null,null,null,null,null,null,null,null,null,null,null,null,null,null,null,null,null,null,null,null,null,"Sb-122"]
[null,null,null,null,null,null,null,null,null,null,null,null,null,null,null,null,null,null,null,null,null,null,null,null,null,null,null,null,null,"Sb-124"]
[null,null,null,null,null,null,null,null,null,null,null,null,null,null,null,null,null,null,null,null,null,null,null,null,null,null,null,null,null,"Sb-124m"]
[null,null,null,null,null,null,null,null,null,null,null,null,null,null,null,null,null,null,null,null,null,null,null,null,null,null,null,null,null,"Sb-125"]
[null,null,null,null,null,null,null,null,null,null,null,null,null,null,null,null,null,null,null,null,null,null,null,null,null,null,null,null,null,"Sb-126"]
[null,null,null,null,null,null,null,null,null,null,null,null,null,null,null,null,null,null,null,null,null,null,null,null,null,null,null,null,null,"Sb-126m"]
[null,null,null,null,null,null,null,null,null,null,null,null,null,null,null,null,null,null,null,null,null,null,null,null,null,null,null,null,null,"Sb-127"]
[null,null,null,null,null,null,null,null,null,null,null,null,null,null,null,null,null,null,null,null,null,null,null,null,null,null,null,null,null,"Sb-128"]
[null,null,null,null,null,null,null,null,null,null,null,null,null,null,null,null,null,null,null,null,null,null,null,null,null,null,null,null,null,"Sb-128"]
[null,null,null,null,null,null,null,null,null,null,null,null,null,null,null,null,null,null,null,null,null,null,null,null,null,null,null,null,null,"Sb-129"]
[null,null,null,null,null,null,null,null,null,null,null,null,null,null,null,null,null,null,null,null,null,null,null,null,null,null,null,null,null,"Sb-130"]
[null,null,null,null,null,null,null,null,null,null,null,null,null,null,null,null,null,null,null,null,null,null,null,null,null,null,null,null,null,"Sb-131"]
[null,null,null,null,null,null,null,null,null,null,null,null,null,null,null,null,null,null,null,null,null,null,null,null,null,null,null,null,null,"Sc-43"]
[null,null,null,null,null,null,null,null,null,null,null,null,null,null,null,null,null,null,null,null,null,null,null,null,null,null,null,null,null,"Sc-44"]
[null,null,null,null,null,null,null,null,null,null,null,null,null,null,null,null,null,null,null,null,null,null,null,null,null,null,null,null,null,"Sc-44m"]
[null,null,null,null,null,null,null,null,null,null,null,null,null,null,null,null,null,null,null,null,null,null,null,null,null,null,null,null,null,"Sc-46"]
[null,null,null,null,null,null,null,null,null,null,null,null,null,null,null,null,null,null,null,null,null,null,null,null,null,null,null,null,null,"Sc-47"]
[null,null,null,null,null,null,null,null,null,null,null,null,null,null,null,null,null,null,null,null,null,null,null,null,null,null,null,null,null,"Sc-48"]
[null,null,null,null,null,null,null,null,null,null,null,null,null,null,null,null,null,null,null,null,null,null,null,null,null,null,null,null,null,"Sc-49"]
[null,null,null,null,null,null,null,null,null,null,null,null,null,null,null,null,null,null,null,null,null,null,null,null,null,null,null,null,null,"Se-70"]
[null,null,null,null,null,null,null,null,null,null,null,null,null,null,null,null,null,null,null,null,null,null,null,null,null,null,null,null,null,"Se-73"]
[null,null,null,null,null,null,null,null,null,null,null,null,null,null,null,null,null,null,null,null,null,null,null,null,null,null,null,null,null,"Se-73m"]
[null,null,null,null,null,null,null,null,null,null,null,null,null,null,null,null,null,null,null,null,null,null,null,null,null,null,null,null,null,"Se-75"]
[null,null,null,null,null,null,null,null,null,null,null,null,null,null,null,null,null,null,null,null,null,null,null,null,null,null,null,null,null,"Se-79"]
[null,null,null,null,null,null,null,null,null,null,null,null,null,null,null,null,null,null,null,null,null,null,null,null,null,null,null,null,null,"Se-81"]
[null,null,null,null,null,null,null,null,null,null,null,null,null,null,null,null,null,null,null,null,null,null,null,null,null,null,null,null,null,"Se-81m"]
[null,null,null,null,null,null,null,null,null,null,null,null,null,null,null,null,null,null,null,null,null,null,null,null,null,null,null,null,null,"Se-83"]
[null,null,null,null,null,null,null,null,null,null,null,null,null,null,null,null,null,null,null,null,null,null,null,null,null,null,null,null,null,"Si-31"]
[null,null,null,null,null,null,null,null,null,null,null,null,null,null,null,null,null,null,null,null,null,null,null,null,null,null,null,null,null,"Si-32"]
[null,null,null,null,null,null,null,null,null,null,null,null,null,null,null,null,null,null,null,null,null,null,null,null,null,null,null,null,null,"Sm-141"]
[null,null,null,null,null,null,null,null,null,null,null,null,null,null,null,null,null,null,null,null,null,null,null,null,null,null,null,null,null,"Sm-141m"]
[null,null,null,null,null,null,null,null,null,null,null,null,null,null,null,null,null,null,null,null,null,null,null,null,null,null,null,null,null,"Sm-142"]
[null,null,null,null,null,null,null,null,null,null,null,null,null,null,null,null,null,null,null,null,null,null,null,null,null,null,null,null,null,"Sm-145"]
[null,null,null,null,null,null,null,null,null,null,null,null,null,null,null,null,null,null,null,null,null,null,null,null,null,null,null,null,null,"Sm-146"]
[null,null,null,null,null,null,null,null,null,null,null,null,null,null,null,null,null,null,null,null,null,null,null,null,null,null,null,null,null,"Sm-147"]
[null,null,null,null,null,null,null,null,null,null,null,null,null,null,null,null,null,null,null,null,null,null,null,null,null,null,null,null,null,"Sm-151"]
[null,null,null,null,null,null,null,null,null,null,null,null,null,null,null,null,null,null,null,null,null,null,null,null,null,null,null,null,null,"Sm-153"]
[null,null,null,null,null,null,null,null,null,null,null,null,null,null,null,null,null,null,null,null,null,null,null,null,null,null,null,null,null,"Sm-155"]
[null,null,null,null,null,null,null,null,null,null,null,null,null,null,null,null,null,null,null,null,null,null,null,null,null,null,null,null,null,"Sm-156"]
[null,null,null,null,null,null,null,null,null,null,null,null,null,null,null,null,null,null,null,null,null,null,null,null,null,null,null,null,null,"Sn-110"]
[null,null,null,null,null,null,null,null,null,null,null,null,null,null,null,null,null,null,null,null,null,null,null,null,null,null,null,null,null,"Sn-111"]
[null,null,null,null,null,null,null,null,null,null,null,null,null,null,null,null,null,null,null,null,null,null,null,null,null,null,null,null,null,"Sn-113"]
[null,null,null,null,null,null,null,null,null,null,null,null,null,null,null,null,null,null,null,null,null,null,null,null,null,null,null,null,null,"Sn-117m"]
[null,null,null,null,null,null,null,null,null,null,null,null,null,null,null,null,null,null,null,null,null,null,null,null,null,null,null,null,null,"Sn-119m"]
[null,null,null,null,null,null,null,null,null,null,null,null,null,null,null,null,null,null,null,null,null,null,null,null,null,null,null,null,null,"Sn-121"]
[null,null,null,null,null,null,null,null,null,null,null,null,null,null,null,null,null,null,null,null,null,null,null,null,null,null,null,null,null,"Sn-121m"]
[null,null,null,null,null,null,null,null,null,null,null,null,null,null,null,null,null,null,null,null,null,null,null,null,null,null,null,null,null,"Sn-123"]
[null,null,null,null,null,null,null,null,null,null,null,null,null,null,null,null,null,null,null,null,null,null,null,null,null,null,null,null,null,"Sn-123m"]
[null,null,null,null,null,null,null,null,null,null,null,null,null,null,null,null,null,null,null,null,null,null,null,null,null,null,null,null,null,"Sn-125"]
[null,null,null,null,null,null,null,null,null,null,null,null,null,null,null,null,null,null,null,null,null,null,null,null,null,null,null,null,null,"Sn-126"]
[null,null,null,null,null,null,null,null,null,null,null,null,null,null,null,null,null,null,null,null,null,null,null,null,null,null,null,null,null,"Sn-127"]
[null,null,null,null,null,null,null,null,null,null,null,null,null,null,null,null,null,null,null,null,null,null,null,null,null,null,null,null,null,"Sn-128"]
[null,null,null,null,null,null,null,null,null,null,null,null,null,null,null,null,null,null,null,null,null,null,null,null,null,null,null,null,null,"Sr-80"]
[null,null,null,null,null,null,null,null,null,null,null,null,null,null,null,null,null,null,null,null,null,null,null,null,null,null,null,null,null,"Sr-81"]
[null,null,null,null,null,null,null,null,null,null,null,null,null,null,null,null,null,null,null,null,null,null,null,null,null,null,null,null,null,"Sr-83"]
[null,null,null,null,null,null,null,null,null,null,null,null,null,null,null,null,null,null,null,null,null,null,null,null,null,null,null,null,null,"Sr-85"]
[null,null,null,null,null,null,null,null,null,null,null,null,null,null,null,null,null,null,null,null,null,null,null,null,null,null,null,null,null,"Sr-85m"]
[null,null,null,null,null,null,null,null,null,null,null,null,null,null,null,null,null,null,null,null,null,null,null,null,null,null,null,null,null,"Sr-87m"]
[null,null,null,null,null,null,null,null,null,null,null,null,null,null,null,null,null,null,null,null,null,null,null,null,null,null,null,null,null,"Sr-89"]
[null,null,null,null,null,null,null,null,null,null,null,null,null,null,null,null,null,null,null,null,null,null,null,null,null,null,null,null,null,"Sr-90"]
[null,null,null,null,null,null,null,null,null,null,null,null,null,null,null,null,null,null,null,null,null,null,null,null,null,null,null,null,null,"Sr-91"]
[null,null,null,null,null,null,null,null,null,null,null,null,null,null,null,null,null,null,null,null,null,null,null,null,null,null,null,null,null,"Sr-92"]
[null,null,null,null,null,null,null,null,null,null,null,null,null,null,null,null,null,null,null,null,null,null,null,null,null,null,null,null,null,"T1-204"]
[null,null,null,null,null,null,null,null,null,null,null,null,null,null,null,null,null,null,null,null,null,null,null,null,null,null,null,null,null,"Ta-172"]
[null,null,null,null,null,null,null,null,null,null,null,null,null,null,null,null,null,null,null,null,null,null,null,null,null,null,null,null,null,"Ta-173"]
[null,null,null,null,null,null,null,null,null,null,null,null,null,null,null,null,null,null,null,null,null,null,null,null,null,null,null,null,null,"Ta-174"]
[null,null,null,null,null,null,null,null,null,null,null,null,null,null,null,null,null,null,null,null,null,null,null,null,null,null,null,null,null,"Ta-175"]
[null,null,null,null,null,null,null,null,null,null,null,null,null,null,null,null,null,null,null,null,null,null,null,null,null,null,null,null,null,"Ta-176"]
[null,null,null,null,null,null,null,null,null,null,null,null,null,null,null,null,null,null,null,null,null,null,null,null,null,null,null,null,null,"Ta-177"]
[null,null,null,null,null,null,null,null,null,null,null,null,null,null,null,null,null,null,null,null,null,null,null,null,null,null,null,null,null,"Ta-178"]
[null,null,null,null,null,null,null,null,null,null,null,null,null,null,null,null,null,null,null,null,null,null,null,null,null,null,null,null,null,"Ta-179"]
[null,null,null,null,null,null,null,null,null,null,null,null,null,null,null,null,null,null,null,null,null,null,null,null,null,null,null,null,null,"Ta-180"]
[null,null,null,null,null,null,null,null,null,null,null,null,null,null,null,null,null,null,null,null,null,null,null,null,null,null,null,null,null,"Ta-180m"]
[null,null,null,null,null,null,null,null,null,null,null,null,null,null,null,null,null,null,null,null,null,null,null,null,null,null,null,null,null,"Ta-182"]
[null,null,null,null,null,null,null,null,null,null,null,null,null,null,null,null,null,null,null,null,null,null,null,null,null,null,null,null,null,"Ta-182m"]
[null,null,null,null,null,null,null,null,null,null,null,null,null,null,null,null,null,null,null,null,null,null,null,null,null,null,null,null,null,"Ta-183"]
[null,null,null,null,null,null,null,null,null,null,null,null,null,null,null,null,null,null,null,null,null,null,null,null,null,null,null,null,null,"Ta-184"]
[null,null,null,null,null,null,null,null,null,null,null,null,null,null,null,null,null,null,null,null,null,null,null,null,null,null,null,null,null,"Ta-185"]
[null,null,null,null,null,null,null,null,null,null,null,null,null,null,null,null,null,null,null,null,null,null,null,null,null,null,null,null,null,"Ta-186"]
[null,null,null,null,null,null,null,null,null,null,null,null,null,null,null,null,null,null,null,null,null,null,null,null,null,null,null,null,null,"Tb-147"]
[null,null,null,null,null,null,null,null,null,null,null,null,null,null,null,null,null,null,null,null,null,null,null,null,null,null,null,null,null,"Tb-149"]
[null,null,null,null,null,null,null,null,null,null,null,null,null,null,null,null,null,null,null,null,null,null,null,null,null,null,null,null,null,"Tb-150"]
[null,null,null,null,null,null,null,null,null,null,null,null,null,null,null,null,null,null,null,null,null,null,null,null,null,null,null,null,null,"Tb-151"]
[null,null,null,null,null,null,null,null,null,null,null,null,null,null,null,null,null,null,null,null,null,null,null,null,null,null,null,null,null,"Tb-153"]
[null,null,null,null,null,null,null,null,null,null,null,null,null,null,null,null,null,null,null,null,null,null,null,null,null,null,null,null,null,"Tb-154"]
[null,null,null,null,null,null,null,null,null,null,null,null,null,null,null,null,null,null,null,null,null,null,null,null,null,null,null,null,null,"Tb-155"]
[null,null,null,null,null,null,null,null,null,null,null,null,null,null,null,null,null,null,null,null,null,null,null,null,null,null,null,null,null,"Tb-156"]
[null,null,null,null,null,null,null,null,null,null,null,null,null,null,null,null,null,null,null,null,null,null,null,null,null,null,null,null,null,"Tb-156m"]
[null,null,null,null,null,null,null,null,null,null,null,null,null,null,null,null,null,null,null,null,null,null,null,null,null,null,null,null,null,"Tb-156m"]
[null,null,null,null,null,null,null,null,null,null,null,null,null,null,null,null,null,null,null,null,null,null,null,null,null,null,null,null,null,"Tb-157"]
[null,null,null,null,null,null,null,null,null,null,null,null,null,null,null,null,null,null,null,null,null,null,null,null,null,null,null,null,null,"Tb-158"]
[null,null,null,null,null,null,null,null,null,null,null,null,null,null,null,null,null,null,null,null,null,null,null,null,null,null,null,null,null,"Tb-160"]
[null,null,null,null,null,null,null,null,null,null,null,null,null,null,null,null,null,null,null,null,null,null,null,null,null,null,null,null,null,"Tb-161"]
[null,null,null,null,null,null,null,null,null,null,null,null,null,null,null,null,null,null,null,null,null,null,null,null,null,null,null,null,null,"Tc-101"]
[null,null,null,null,null,null,null,null,null,null,null,null,null,null,null,null,null,null,null,null,null,null,null,null,null,null,null,null,null,"Tc-104"]
[null,null,null,null,null,null,null,null,null,null,null,null,null,null,null,null,null,null,null,null,null,null,null,null,null,null,null,null,null,"Tc-93"]
[null,null,null,null,null,null,null,null,null,null,null,null,null,null,null,null,null,null,null,null,null,null,null,null,null,null,null,null,null,"Tc-93m"]
[null,null,null,null,null,null,null,null,null,null,null,null,null,null,null,null,null,null,null,null,null,null,null,null,null,null,null,null,null,"Tc-94"]
[null,null,null,null,null,null,null,null,null,null,null,null,null,null,null,null,null,null,null,null,null,null,null,null,null,null,null,null,null,"Tc-94m"]
[null,null,null,null,null,null,null,null,null,null,null,null,null,null,null,null,null,null,null,null,null,null,null,null,null,null,null,null,null,"Tc-96"]
[null,null,null,null,null,null,null,null,null,null,null,null,null,null,null,null,null,null,null,null,null,null,null,null,null,null,null,null,null,"Tc-96m"]
[null,null,null,null,null,null,null,null,null,null,null,null,null,null,null,null,null,null,null,null,null,null,null,null,null,null,null,null,null,"Tc-97"]
[null,null,null,null,null,null,null,null,null,null,null,null,null,null,null,null,null,null,null,null,null,null,null,null,null,null,null,null,null,"Tc-97m"]
[null,null,null,null,null,null,null,null,null,null,null,null,null,null,null,null,null,null,null,null,null,null,null,null,null,null,null,null,null,"Tc-98"]
[null,null,null,null,null,null,null,null,null,null,null,null,null,null,null,null,null,null,null,null,null,null,null,null,null,null,null,null,null,"Tc-99"]
[null,null,null,null,null,null,null,null,null,null,null,null,null,null,null,null,null,null,null,null,null,null,null,null,null,null,null,null,null,"Tc-99m"]
[null,null,null,null,null,null,null,null,null,null,null,null,null,null,null,null,null,null,null,null,null,null,null,null,null,null,null,null,null,"Te-116"]
[null,null,null,null,null,null,null,null,null,null,null,null,null,null,null,null,null,null,null,null,null,null,null,null,null,null,null,null,null,"Te-121"]
[null,null,null,null,null,null,null,null,null,null,null,null,null,null,null,null,null,null,null,null,null,null,null,null,null,null,null,null,null,"Te-121m"]
[null,null,null,null,null,null,null,null,null,null,null,null,null,null,null,null,null,null,null,null,null,null,null,null,null,null,null,null,null,"Te-123"]
[null,null,null,null,null,null,null,null,null,null,null,null,null,null,null,null,null,null,null,null,null,null,null,null,null,null,null,null,null,"Te-123m"]
[null,null,null,null,null,null,null,null,null,null,null,null,null,null,null,null,null,null,null,null,null,null,null,null,null,null,null,null,null,"Te-125m"]
[null,null,null,null,null,null,null,null,null,null,null,null,null,null,null,null,null,null,null,null,null,null,null,null,null,null,null,null,null,"Te-127"]
[null,null,null,null,null,null,null,null,null,null,null,null,null,null,null,null,null,null,null,null,null,null,null,null,null,null,null,null,null,"Te-127m"]
[null,null,null,null,null,null,null,null,null,null,null,null,null,null,null,null,null,null,null,null,null,null,null,null,null,null,null,null,null,"Te-129"]
[null,null,null,null,null,null,null,null,null,null,null,null,null,null,null,null,null,null,null,null,null,null,null,null,null,null,null,null,null,"Te-129m"]
[null,null,null,null,null,null,null,null,null,null,null,null,null,null,null,null,null,null,null,null,null,null,null,null,null,null,null,null,null,"Te-131"]
[null,null,null,null,null,null,null,null,null,null,null,null,null,null,null,null,null,null,null,null,null,null,null,null,null,null,null,null,null,"Te-131m"]
[null,null,null,null,null,null,null,null,null,null,null,null,null,null,null,null,null,null,null,null,null,null,null,null,null,null,null,null,null,"Te-132"]
[null,null,null,null,null,null,null,null,null,null,null,null,null,null,null,null,null,null,null,null,null,null,null,null,null,null,null,null,null,"Te-133"]
[null,null,null,null,null,null,null,null,null,null,null,null,null,null,null,null,null,null,null,null,null,null,null,null,null,null,null,null,null,"Te-133m"]
[null,null,null,null,null,null,null,null,null,null,null,null,null,null,null,null,null,null,null,null,null,null,null,null,null,null,null,null,null,"Te-134"]
[null,null,null,null,null,null,null,null,null,null,null,null,null,null,null,null,null,null,null,null,null,null,null,null,null,null,null,null,null,"Th-226"]
[null,null,null,null,null,null,null,null,null,null,null,null,null,null,null,null,null,null,null,null,null,null,null,null,null,null,null,null,null,"Th-227"]
[null,null,null,null,null,null,null,null,null,null,null,null,null,null,null,null,null,null,null,null,null,null,null,null,null,null,null,null,null,"Th-228"]
[null,null,null,null,null,null,null,null,null,null,null,null,null,null,null,null,null,null,null,null,null,null,null,null,null,null,null,null,null,"Th-229"]
[null,null,null,null,null,null,null,null,null,null,null,null,null,null,null,null,null,null,null,null,null,null,null,null,null,null,null,null,null,"Th-230"]
[null,null,null,null,null,null,null,null,null,null,null,null,null,null,null,null,null,null,null,null,null,null,null,null,null,null,null,null,null,"Th-231"]
[null,null,null,null,null,null,null,null,null,null,null,null,null,null,null,null,null,null,null,null,null,null,null,null,null,null,null,null,null,"Th-232"]
[null,null,null,null,null,null,null,null,null,null,null,null,null,null,null,null,null,null,null,null,null,null,null,null,null,null,null,null,null,"Th-234"]
[null,null,null,null,null,null,null,null,null,null,null,null,null,null,null,null,null,null,null,null,null,null,null,null,null,null,null,null,null,"Ti-44"]
[null,null,null,null,null,null,null,null,null,null,null,null,null,null,null,null,null,null,null,null,null,null,null,null,null,null,null,null,null,"Ti-45"]
[null,null,null,null,null,null,null,null,null,null,null,null,null,null,null,null,null,null,null,null,null,null,null,null,null,null,null,null,null,"Tl-194"]
[null,null,null,null,null,null,null,null,null,null,null,null,null,null,null,null,null,null,null,null,null,null,null,null,null,null,null,null,null,"Tl-194m"]
[null,null,null,null,null,null,null,null,null,null,null,null,null,null,null,null,null,null,null,null,null,null,null,null,null,null,null,null,null,"Tl-195"]
[null,null,null,null,null,null,null,null,null,null,null,null,null,null,null,null,null,null,null,null,null,null,null,null,null,null,null,null,null,"Tl-197"]
[null,null,null,null,null,null,null,null,null,null,null,null,null,null,null,null,null,null,null,null,null,null,null,null,null,null,null,null,null,"Tl-198"]
[null,null,null,null,null,null,null,null,null,null,null,null,null,null,null,null,null,null,null,null,null,null,null,null,null,null,null,null,null,"Tl-198m"]
[null,null,null,null,null,null,null,null,null,null,null,null,null,null,null,null,null,null,null,null,null,null,null,null,null,null,null,null,null,"Tl-199"]
[null,null,null,null,null,null,null,null,null,null,null,null,null,null,null,null,null,null,null,null,null,null,null,null,null,null,null,null,null,"Tl-200"]
[null,null,null,null,null,null,null,null,null,null,null,null,null,null,null,null,null,null,null,null,null,null,null,null,null,null,null,null,null,"Tl-201"]
[null,null,null,null,null,null,null,null,null,null,null,null,null,null,null,null,null,null,null,null,null,null,null,null,null,null,null,null,null,"Tl-202"]
[null,null,null,null,null,null,null,null,null,null,null,null,null,null,null,null,null,null,null,null,null,null,null,null,null,null,null,null,null,"Tm-162"]
[null,null,null,null,null,null,null,null,null,null,null,null,null,null,null,null,null,null,null,null,null,null,null,null,null,null,null,null,null,"Tm-166"]
[null,null,null,null,null,null,null,null,null,null,null,null,null,null,null,null,null,null,null,null,null,null,null,null,null,null,null,null,null,"Tm-167"]
[null,null,null,null,null,null,null,null,null,null,null,null,null,null,null,null,null,null,null,null,null,null,null,null,null,null,null,null,null,"Tm-170"]
[null,null,null,null,null,null,null,null,null,null,null,null,null,null,null,null,null,null,null,null,null,null,null,null,null,null,null,null,null,"Tm-171"]
[null,null,null,null,null,null,null,null,null,null,null,null,null,null,null,null,null,null,null,null,null,null,null,null,null,null,null,null,null,"Tm-172"]
[null,null,null,null,null,null,null,null,null,null,null,null,null,null,null,null,null,null,null,null,null,null,null,null,null,null,null,null,null,"Tm-173"]
[null,null,null,null,null,null,null,null,null,null,null,null,null,null,null,null,null,null,null,null,null,null,null,null,null,null,null,null,null,"Tm-175"]
[null,null,null,null,null,null,null,null,null,null,null,null,null,null,null,null,null,null,null,null,null,null,null,null,null,null,null,null,null,"U-230"]
[null,null,null,null,null,null,null,null,null,null,null,null,null,null,null,null,null,null,null,null,null,null,null,null,null,null,null,null,null,"U-231"]
[null,null,null,null,null,null,null,null,null,null,null,null,null,null,null,null,null,null,null,null,null,null,null,null,null,null,null,null,null,"U-232"]
[null,null,null,null,null,null,null,null,null,null,null,null,null,null,null,null,null,null,null,null,null,null,null,null,null,null,null,null,null,"U-233"]
[null,null,null,null,null,null,null,null,null,null,null,null,null,null,null,null,null,null,null,null,null,null,null,null,null,null,null,null,null,"U-234"]
[null,null,null,null,null,null,null,null,null,null,null,null,null,null,null,null,null,null,null,null,null,null,null,null,null,null,null,null,null,"U-235"]
[null,null,null,null,null,null,null,null,null,null,null,null,null,null,null,null,null,null,null,null,null,null,null,null,null,null,null,null,null,"U-236"]
[null,null,null,null,null,null,null,null,null,null,null,null,null,null,null,null,null,null,null,null,null,null,null,null,null,null,null,null,null,"U-237"]
[null,null,null,null,null,null,null,null,null,null,null,null,null,null,null,null,null,null,null,null,null,null,null,null,null,null,null,null,null,"U-238"]
[null,null,null,null,null,null,null,null,null,null,null,null,null,null,null,null,null,null,null,null,null,null,null,null,null,null,null,null,null,"U-239"]
[null,null,null,null,null,null,null,null,null,null,null,null,null,null,null,null,null,null,null,null,null,null,null,null,null,null,null,null,null,"U-240"]
[null,null,null,null,null,null,null,null,null,null,null,null,null,null,null,null,null,null,null,null,null,null,null,null,null,null,null,null,null,"U-Nat"]
[null,null,null,null,null,null,null,null,null,null,null,null,null,null,null,null,null,null,null,null,null,null,null,null,null,null,null,null,null,"V-47"]
[null,null,null,null,null,null,null,null,null,null,null,null,null,null,null,null,null,null,null,null,null,null,null,null,null,null,null,null,null,"V-48"]
[null,null,null,null,null,null,null,null,null,null,null,null,null,null,null,null,null,null,null,null,null,null,null,null,null,null,null,null,null,"V-49"]
[null,null,null,null,null,null,null,null,null,null,null,null,null,null,null,null,null,null,null,null,null,null,null,null,null,null,null,null,null,"W-176"]
[null,null,null,null,null,null,null,null,null,null,null,null,null,null,null,null,null,null,null,null,null,null,null,null,null,null,null,null,null,"W-177"]
[null,null,null,null,null,null,null,null,null,null,null,null,null,null,null,null,null,null,null,null,null,null,null,null,null,null,null,null,null,"W-178"]
[null,null,null,null,null,null,null,null,null,null,null,null,null,null,null,null,null,null,null,null,null,null,null,null,null,null,null,null,null,"W-179"]
[null,null,null,null,null,null,null,null,null,null,null,null,null,null,null,null,null,null,null,null,null,null,null,null,null,null,null,null,null,"W-181"]
[null,null,null,null,null,null,null,null,null,null,null,null,null,null,null,null,null,null,null,null,null,null,null,null,null,null,null,null,null,"W-185"]
[null,null,null,null,null,null,null,null,null,null,null,null,null,null,null,null,null,null,null,null,null,null,null,null,null,null,null,null,null,"W-187"]
[null,null,null,null,null,null,null,null,null,null,null,null,null,null,null,null,null,null,null,null,null,null,null,null,null,null,null,null,null,"W-188"]
[null,null,null,null,null,null,null,null,null,null,null,null,null,null,null,null,null,null,null,null,null,null,null,null,null,null,null,null,null,"Xe-120"]
[null,null,null,null,null,null,null,null,null,null,null,null,null,null,null,null,null,null,null,null,null,null,null,null,null,null,null,null,null,"Xe-121"]
[null,null,null,null,null,null,null,null,null,null,null,null,null,null,null,null,null,null,null,null,null,null,null,null,null,null,null,null,null,"Xe-122"]
[null,null,null,null,null,null,null,null,null,null,null,null,null,null,null,null,null,null,null,null,null,null,null,null,null,null,null,null,null,"Xe-123"]
[null,null,null,null,null,null,null,null,null,null,null,null,null,null,null,null,null,null,null,null,null,null,null,null,null,null,null,null,null,"Xe-125"]
[null,null,null,null,null,null,null,null,null,null,null,null,null,null,null,null,null,null,null,null,null,null,null,null,null,null,null,null,null,"Xe-127"]
[null,null,null,null,null,null,null,null,null,null,null,null,null,null,null,null,null,null,null,null,null,null,null,null,null,null,null,null,null,"Xe-129m"]
[null,null,null,null,null,null,null,null,null,null,null,null,null,null,null,null,null,null,null,null,null,null,null,null,null,null,null,null,null,"Xe-131m"]
[null,null,null,null,null,null,null,null,null,null,null,null,null,null,null,null,null,null,null,null,null,null,null,null,null,null,null,null,null,"Xe-133"]
[null,null,null,null,null,null,null,null,null,null,null,null,null,null,null,null,null,null,null,null,null,null,null,null,null,null,null,null,null,"Xe-133m"]
[null,null,null,null,null,null,null,null,null,null,null,null,null,null,null,null,null,null,null,null,null,null,null,null,null,null,null,null,null,"Xe-135"]
[null,null,null,null,null,null,null,null,null,null,null,null,null,null,null,null,null,null,null,null,null,null,null,null,null,null,null,null,null,"Xe-135m"]
[null,null,null,null,null,null,null,null,null,null,null,null,null,null,null,null,null,null,null,null,null,null,null,null,null,null,null,null,null,"Xe-138"]
[null,null,null,null,null,null,null,null,null,null,null,null,null,null,null,null,null,null,null,null,null,null,null,null,null,null,null,null,null,"Y-86"]
[null,null,null,null,null,null,null,null,null,null,null,null,null,null,null,null,null,null,null,null,null,null,null,null,null,null,null,null,null,"Y-86m"]
[null,null,null,null,null,null,null,null,null,null,null,null,null,null,null,null,null,null,null,null,null,null,null,null,null,null,null,null,null,"Y-87"]
[null,null,null,null,null,null,null,null,null,null,null,null,null,null,null,null,null,null,null,null,null,null,null,null,null,null,null,null,null,"Y-88"]
[null,null,null,null,null,null,null,null,null,null,null,null,null,null,null,null,null,null,null,null,null,null,null,null,null,null,null,null,null,"Y-90"]
[null,null,null,null,null,null,null,null,null,null,null,null,null,null,null,null,null,null,null,null,null,null,null,null,null,null,null,null,null,"Y-90m"]
[null,null,null,null,null,null,null,null,null,null,null,null,null,null,null,null,null,null,null,null,null,null,null,null,null,null,null,null,null,"Y-91"]
[null,null,null,null,null,null,null,null,null,null,null,null,null,null,null,null,null,null,null,null,null,null,null,null,null,null,null,null,null,"Y-91m"]
[null,null,null,null,null,null,null,null,null,null,null,null,null,null,null,null,null,null,null,null,null,null,null,null,null,null,null,null,null,"Y-92"]
[null,null,null,null,null,null,null,null,null,null,null,null,null,null,null,null,null,null,null,null,null,null,null,null,null,null,null,null,null,"Y-93"]
[null,null,null,null,null,null,null,null,null,null,null,null,null,null,null,null,null,null,null,null,null,null,null,null,null,null,null,null,null,"Y-94"]
[null,null,null,null,null,null,null,null,null,null,null,null,null,null,null,null,null,null,null,null,null,null,null,null,null,null,null,null,null,"Y-95"]
[null,null,null,null,null,null,null,null,null,null,null,null,null,null,null,null,null,null,null,null,null,null,null,null,null,null,null,null,null,"Yb-162"]
[null,null,null,null,null,null,null,null,null,null,null,null,null,null,null,null,null,null,null,null,null,null,null,null,null,null,null,null,null,"Yb-166"]
[null,null,null,null,null,null,null,null,null,null,null,null,null,null,null,null,null,null,null,null,null,null,null,null,null,null,null,null,null,"Yb-167"]
[null,null,null,null,null,null,null,null,null,null,null,null,null,null,null,null,null,null,null,null,null,null,null,null,null,null,null,null,null,"Yb-169"]
[null,null,null,null,null,null,null,null,null,null,null,null,null,null,null,null,null,null,null,null,null,null,null,null,null,null,null,null,null,"Yb-175"]
[null,null,null,null,null,null,null,null,null,null,null,null,null,null,null,null,null,null,null,null,null,null,null,null,null,null,null,null,null,"Yb-177"]
[null,null,null,null,null,null,null,null,null,null,null,null,null,null,null,null,null,null,null,null,null,null,null,null,null,null,null,null,null,"Yb-178"]
[null,null,null,null,null,null,null,null,null,null,null,null,null,null,null,null,null,null,null,null,null,null,null,null,null,null,null,null,null,"Zn-62"]
[null,null,null,null,null,null,null,null,null,null,null,null,null,null,null,null,null,null,null,null,null,null,null,null,null,null,null,null,null,"Zn-63"]
[null,null,null,null,null,null,null,null,null,null,null,null,null,null,null,null,null,null,null,null,null,null,null,null,null,null,null,null,null,"Zn-65"]
[null,null,null,null,null,null,null,null,null,null,null,null,null,null,null,null,null,null,null,null,null,null,null,null,null,null,null,null,null,"Zn-69"]
[null,null,null,null,null,null,null,null,null,null,null,null,null,null,null,null,null,null,null,null,null,null,null,null,null,null,null,null,null,"Zn-69m"]
[null,null,null,null,null,null,null,null,null,null,null,null,null,null,null,null,null,null,null,null,null,null,null,null,null,null,null,null,null,"Zn-71m"]
[null,null,null,null,null,null,null,null,null,null,null,null,null,null,null,null,null,null,null,null,null,null,null,null,null,null,null,null,null,"Zn-72"]
[null,null,null,null,null,null,null,null,null,null,null,null,null,null,null,null,null,null,null,null,null,null,null,null,null,null,null,null,null,"Zr-86"]
[null,null,null,null,null,null,null,null,null,null,null,null,null,null,null,null,null,null,null,null,null,null,null,null,null,null,null,null,null,"Zr-88"]
[null,null,null,null,null,null,null,null,null,null,null,null,null,null,null,null,null,null,null,null,null,null,null,null,null,null,null,null,null,"Zr-89"]
[null,null,null,null,null,null,null,null,null,null,null,null,null,null,null,null,null,null,null,null,null,null,null,null,null,null,null,null,null,"Zr-93"]
[null,null,null,null,null,null,null,null,null,null,null,null,null,null,null,null,null,null,null,null,null,null,null,null,null,null,null,null,null,"Zr-95"]
[null,null,null,null,null,null,null,null,null,null,null,null,null,null,null,null,null,null,null,null,null,null,null,null,null,null,null,null,null,"Zr-97"]

{"sheet":"Nuclide Totals","index":1,"n_rows":6,"n_cols":4,"rows_kept":6,"cut":false,"hidden":false,"merged":[]}
[]
[]
[null,"Values"]
["Row Labels","Sum of Mass (g)","Sum of Activity (Bq)","Sum of Activity (Ci)"]
["(blank)",null,0,0]
["Grand Total",null,0,0]

{"sheet":"Example Data","index":2,"n_rows":198,"n_cols":12,"rows_kept":198,"cut":false,"hidden":false,"merged":[]}
["Parameter","Value"]
["Last Name","Smith"]
["First Name","John"]
["Facility Name","SLAC"]
["Address Line 1","2575 Sand Hill Road"]
["Address Line 2","M/S - 48"]
["City","Menlo Park"]
["State","CA"]
["Zip Code",94025]
["Country","U.S.A."]
["Telephone","650-926-1234"]
["Proposal Number",3478]
["Date of Notice","2010-11-01"]
["Beam Line","6-2","*Enter data with a leading apostrophe (e.g., '3-1)"]
["Run Date","2010-12-01","*Required for 1 Day Notice"]
["End Run Date",null,"*Required for 1 Day Notice"]
["RMA Number","1-24789","*Required for 1 Day Notice"]
["Number of Packages",1,"*Required for 1 Day Notice"]
["Number of Holders",3,"*Required for 1 Day Notice"]
[]
["Mouse over column headers for context sensitive help."]
[null,"Totals:",{"$f":"SUM(C24:C214)","v":6.5520000005050001},{"$f":"SUM(D24:D214)","v":2949836.84}]
["Sample Number","Nuclide","Mass (g)","Activity (Bq)","Physical State","Chemical State","Notice Type","Cont Cat No","Shipping Package Number","Activity (Ci)"]
["34578T","U-235",2E-3,{"$f":"IF(Table58[[#This Row],[Mass (g)]]=\"\",\"\",Table58[[#This Row],[Mass (g)]]*VLOOKUP(Table58[[#This Row],[Nuclide]],Doedata,4)*37000000000)","v":159.84},"Solid","Oxide",30,"1b",1,{"$f":"IF(Table58[[#This Row],[Activity (Bq)]]=\"\",\"\",Table58[[#This Row],[Activity (Bq)]]/37000000000)","v":4.32E-9}]
["34578T","U-236",0.5,{"$f":"IF(Table58[[#This Row],[Mass (g)]]=\"\",\"\",Table58[[#This Row],[Mass (g)]]*VLOOKUP(Table58[[#This Row],[Nuclide]],Doedata,4)*37000000000)","v":1196950},"Solid","Oxide",30,"1b",1,{"$f":"IF(Table58[[#This Row],[Activity (Bq)]]=\"\",\"\",Table58[[#This Row],[Activity (Bq)]]/37000000000)","v":3.235E-5},null,"Sample # 34578T"]
["34578T","U-237",5.0000000000000003E-10,{"$f":"IF(Table58[[#This Row],[Mass (g)]]=\"\",\"\",Table58[[#This Row],[Mass (g)]]*VLOOKUP(Table58[[#This Row],[Nuclide]],Doedata,4)*37000000000)","v":1509600},"Solid","Oxide",30,"1b",1,{"$f":"IF(Table58[[#This Row],[Activity (Bq)]]=\"\",\"\",Table58[[#This Row],[Activity (Bq)]]/37000000000)","v":4.0800000000000002E-5}]
["34578T","U-238",0.5,{"$f":"IF(Table58[[#This Row],[Mass (g)]]=\"\",\"\",Table58[[#This Row],[Mass (g)]]*VLOOKUP(Table58[[#This Row],[Nuclide]],Doedata,4)*37000000000)","v":6216},"Solid","Oxide",30,"1b",1,{"$f":"IF(Table58[[#This Row],[Activity (Bq)]]=\"\",\"\",Table58[[#This Row],[Activity (Bq)]]/37000000000)","v":1.68E-7}]
["72478L","U-235",0.5,{"$f":"IF(Table58[[#This Row],[Mass (g)]]=\"\",\"\",Table58[[#This Row],[Mass (g)]]*VLOOKUP(Table58[[#This Row],[Nuclide]],Doedata,4)*37000000000)","v":39960},"Solid","Oxide",30,"1c",1,{"$f":"IF(Table58[[#This Row],[Activity (Bq)]]=\"\",\"\",Table58[[#This Row],[Activity (Bq)]]/37000000000)","v":1.08E-6}]
["72478L","U-236",0.05,{"$f":"IF(Table58[[#This Row],[Mass (g)]]=\"\",\"\",Table58[[#This Row],[Mass (g)]]*VLOOKUP(Table58[[#This Row],[Nuclide]],Doedata,4)*37000000000)","v":119695.00000000001},"Solid","Oxide",30,"1c",1,{"$f":"IF(Table58[[#This Row],[Activity (Bq)]]=\"\",\"\",Table58[[#This Row],[Activity (Bq)]]/37000000000)","v":3.2350000000000004E-6},null,"Sample # 72478L"]
["72478L","U-237",4.9999999999999997E-12,{"$f":"IF(Table58[[#This Row],[Mass (g)]]=\"\",\"\",Table58[[#This Row],[Mass (g)]]*VLOOKUP(Table58[[#This Row],[Nuclide]],Doedata,4)*37000000000)","v":15096},"Solid","Oxide",30,"1c",1,{"$f":"IF(Table58[[#This Row],[Activity (Bq)]]=\"\",\"\",Table58[[#This Row],[Activity (Bq)]]/37000000000)","v":4.08E-7}]
["72478L","U-238",5,{"$f":"IF(Table58[[#This Row],[Mass (g)]]=\"\",\"\",Table58[[#This Row],[Mass (g)]]*VLOOKUP(Table58[[#This Row],[Nuclide]],Doedata,4)*37000000000)","v":62160},"Solid","Oxide",30,"1c",1,{"$f":"IF(Table58[[#This Row],[Activity (Bq)]]=\"\",\"\",Table58[[#This Row],[Activity (Bq)]]/37000000000)","v":1.68E-6}]
[null,null,null,{"$f":"IF(Table58[[#This Row],[Mass (g)]]=\"\",\"\",Table58[[#This Row],[Mass (g)]]*VLOOKUP(Table58[[#This Row],[Nuclide]],Doedata,4)*37000000000)","v":""},null,null,null,null,null,{"$f":"IF(Table58[[#This Row],[Activity (Bq)]]=\"\",\"\",Table58[[#This Row],[Activity (Bq)]]/37000000000)","v":""}]
[null,null,null,{"$f":"IF(Table58[[#This Row],[Mass (g)]]=\"\",\"\",Table58[[#This Row],[Mass (g)]]*VLOOKUP(Table58[[#This Row],[Nuclide]],Doedata,4)*37000000000)","v":""},null,null,null,null,null,{"$f":"IF(Table58[[#This Row],[Activity (Bq)]]=\"\",\"\",Table58[[#This Row],[Activity (Bq)]]/37000000000)","v":""}]
[null,null,null,{"$f":"IF(Table58[[#This Row],[Mass (g)]]=\"\",\"\",Table58[[#This Row],[Mass (g)]]*VLOOKUP(Table58[[#This Row],[Nuclide]],Doedata,4)*37000000000)","v":""},null,null,null,null,null,{"$f":"IF(Table58[[#This Row],[Activity (Bq)]]=\"\",\"\",Table58[[#This Row],[Activity (Bq)]]/37000000000)","v":""}]
[null,null,null,{"$f":"IF(Table58[[#This Row],[Mass (g)]]=\"\",\"\",Table58[[#This Row],[Mass (g)]]*VLOOKUP(Table58[[#This Row],[Nuclide]],Doedata,4)*37000000000)","v":""},null,null,null,null,null,{"$f":"IF(Table58[[#This Row],[Activity (Bq)]]=\"\",\"\",Table58[[#This Row],[Activity (Bq)]]/37000000000)","v":""}]
[null,null,null,{"$f":"IF(Table58[[#This Row],[Mass (g)]]=\"\",\"\",Table58[[#This Row],[Mass (g)]]*VLOOKUP(Table58[[#This Row],[Nuclide]],Doedata,4)*37000000000)","v":""},null,null,null,null,null,{"$f":"IF(Table58[[#This Row],[Activity (Bq)]]=\"\",\"\",Table58[[#This Row],[Activity (Bq)]]/37000000000)","v":""}]
[null,null,null,{"$f":"IF(Table58[[#This Row],[Mass (g)]]=\"\",\"\",Table58[[#This Row],[Mass (g)]]*VLOOKUP(Table58[[#This Row],[Nuclide]],Doedata,4)*37000000000)","v":""},null,null,null,null,null,{"$f":"IF(Table58[[#This Row],[Activity (Bq)]]=\"\",\"\",Table58[[#This Row],[Activity (Bq)]]/37000000000)","v":""}]
[null,null,null,{"$f":"IF(Table58[[#This Row],[Mass (g)]]=\"\",\"\",Table58[[#This Row],[Mass (g)]]*VLOOKUP(Table58[[#This Row],[Nuclide]],Doedata,4)*37000000000)","v":""},null,null,null,null,null,{"$f":"IF(Table58[[#This Row],[Activity (Bq)]]=\"\",\"\",Table58[[#This Row],[Activity (Bq)]]/37000000000)","v":""}]
[null,null,null,{"$f":"IF(Table58[[#This Row],[Mass (g)]]=\"\",\"\",Table58[[#This Row],[Mass (g)]]*VLOOKUP(Table58[[#This Row],[Nuclide]],Doedata,4)*37000000000)","v":""},null,null,null,null,null,{"$f":"IF(Table58[[#This Row],[Activity (Bq)]]=\"\",\"\",Table58[[#This Row],[Activity (Bq)]]/37000000000)","v":""}]
[null,null,null,{"$f":"IF(Table58[[#This Row],[Mass (g)]]=\"\",\"\",Table58[[#This Row],[Mass (g)]]*VLOOKUP(Table58[[#This Row],[Nuclide]],Doedata,4)*37000000000)","v":""},null,null,null,null,null,{"$f":"IF(Table58[[#This Row],[Activity (Bq)]]=\"\",\"\",Table58[[#This Row],[Activity (Bq)]]/37000000000)","v":""}]
[null,null,null,{"$f":"IF(Table58[[#This Row],[Mass (g)]]=\"\",\"\",Table58[[#This Row],[Mass (g)]]*VLOOKUP(Table58[[#This Row],[Nuclide]],Doedata,4)*37000000000)","v":""},null,null,null,null,null,{"$f":"IF(Table58[[#This Row],[Activity (Bq)]]=\"\",\"\",Table58[[#This Row],[Activity (Bq)]]/37000000000)","v":""}]
[null,null,null,{"$f":"IF(Table58[[#This Row],[Mass (g)]]=\"\",\"\",Table58[[#This Row],[Mass (g)]]*VLOOKUP(Table58[[#This Row],[Nuclide]],Doedata,4)*37000000000)","v":""},null,null,null,null,null,{"$f":"IF(Table58[[#This Row],[Activity (Bq)]]=\"\",\"\",Table58[[#This Row],[Activity (Bq)]]/37000000000)","v":""}]
[null,null,null,{"$f":"IF(Table58[[#This Row],[Mass (g)]]=\"\",\"\",Table58[[#This Row],[Mass (g)]]*VLOOKUP(Table58[[#This Row],[Nuclide]],Doedata,4)*37000000000)","v":""},null,null,null,null,null,{"$f":"IF(Table58[[#This Row],[Activity (Bq)]]=\"\",\"\",Table58[[#This Row],[Activity (Bq)]]/37000000000)","v":""}]
[null,null,null,{"$f":"IF(Table58[[#This Row],[Mass (g)]]=\"\",\"\",Table58[[#This Row],[Mass (g)]]*VLOOKUP(Table58[[#This Row],[Nuclide]],Doedata,4)*37000000000)","v":""},null,null,null,null,null,{"$f":"IF(Table58[[#This Row],[Activity (Bq)]]=\"\",\"\",Table58[[#This Row],[Activity (Bq)]]/37000000000)","v":""}]
[null,null,null,{"$f":"IF(Table58[[#This Row],[Mass (g)]]=\"\",\"\",Table58[[#This Row],[Mass (g)]]*VLOOKUP(Table58[[#This Row],[Nuclide]],Doedata,4)*37000000000)","v":""},null,null,null,null,null,{"$f":"IF(Table58[[#This Row],[Activity (Bq)]]=\"\",\"\",Table58[[#This Row],[Activity (Bq)]]/37000000000)","v":""}]
[null,null,null,{"$f":"IF(Table58[[#This Row],[Mass (g)]]=\"\",\"\",Table58[[#This Row],[Mass (g)]]*VLOOKUP(Table58[[#This Row],[Nuclide]],Doedata,4)*37000000000)","v":""},null,null,null,null,null,{"$f":"IF(Table58[[#This Row],[Activity (Bq)]]=\"\",\"\",Table58[[#This Row],[Activity (Bq)]]/37000000000)","v":""}]
[null,null,null,{"$f":"IF(Table58[[#This Row],[Mass (g)]]=\"\",\"\",Table58[[#This Row],[Mass (g)]]*VLOOKUP(Table58[[#This Row],[Nuclide]],Doedata,4)*37000000000)","v":""},null,null,null,null,null,{"$f":"IF(Table58[[#This Row],[Activity (Bq)]]=\"\",\"\",Table58[[#This Row],[Activity (Bq)]]/37000000000)","v":""}]
[null,null,null,{"$f":"IF(Table58[[#This Row],[Mass (g)]]=\"\",\"\",Table58[[#This Row],[Mass (g)]]*VLOOKUP(Table58[[#This Row],[Nuclide]],Doedata,4)*37000000000)","v":""},null,null,null,null,null,{"$f":"IF(Table58[[#This Row],[Activity (Bq)]]=\"\",\"\",Table58[[#This Row],[Activity (Bq)]]/37000000000)","v":""}]
[null,null,null,{"$f":"IF(Table58[[#This Row],[Mass (g)]]=\"\",\"\",Table58[[#This Row],[Mass (g)]]*VLOOKUP(Table58[[#This Row],[Nuclide]],Doedata,4)*37000000000)","v":""},null,null,null,null,null,{"$f":"IF(Table58[[#This Row],[Activity (Bq)]]=\"\",\"\",Table58[[#This Row],[Activity (Bq)]]/37000000000)","v":""}]
[null,null,null,{"$f":"IF(Table58[[#This Row],[Mass (g)]]=\"\",\"\",Table58[[#This Row],[Mass (g)]]*VLOOKUP(Table58[[#This Row],[Nuclide]],Doedata,4)*37000000000)","v":""},null,null,null,null,null,{"$f":"IF(Table58[[#This Row],[Activity (Bq)]]=\"\",\"\",Table58[[#This Row],[Activity (Bq)]]/37000000000)","v":""}]
[null,null,null,{"$f":"IF(Table58[[#This Row],[Mass (g)]]=\"\",\"\",Table58[[#This Row],[Mass (g)]]*VLOOKUP(Table58[[#This Row],[Nuclide]],Doedata,4)*37000000000)","v":""},null,null,null,null,null,{"$f":"IF(Table58[[#This Row],[Activity (Bq)]]=\"\",\"\",Table58[[#This Row],[Activity (Bq)]]/37000000000)","v":""}]
[null,null,null,{"$f":"IF(Table58[[#This Row],[Mass (g)]]=\"\",\"\",Table58[[#This Row],[Mass (g)]]*VLOOKUP(Table58[[#This Row],[Nuclide]],Doedata,4)*37000000000)","v":""},null,null,null,null,null,{"$f":"IF(Table58[[#This Row],[Activity (Bq)]]=\"\",\"\",Table58[[#This Row],[Activity (Bq)]]/37000000000)","v":""}]
[null,null,null,{"$f":"IF(Table58[[#This Row],[Mass (g)]]=\"\",\"\",Table58[[#This Row],[Mass (g)]]*VLOOKUP(Table58[[#This Row],[Nuclide]],Doedata,4)*37000000000)","v":""},null,null,null,null,null,{"$f":"IF(Table58[[#This Row],[Activity (Bq)]]=\"\",\"\",Table58[[#This Row],[Activity (Bq)]]/37000000000)","v":""}]
[null,null,null,{"$f":"IF(Table58[[#This Row],[Mass (g)]]=\"\",\"\",Table58[[#This Row],[Mass (g)]]*VLOOKUP(Table58[[#This Row],[Nuclide]],Doedata,4)*37000000000)","v":""},null,null,null,null,null,{"$f":"IF(Table58[[#This Row],[Activity (Bq)]]=\"\",\"\",Table58[[#This Row],[Activity (Bq)]]/37000000000)","v":""}]
[null,null,null,{"$f":"IF(Table58[[#This Row],[Mass (g)]]=\"\",\"\",Table58[[#This Row],[Mass (g)]]*VLOOKUP(Table58[[#This Row],[Nuclide]],Doedata,4)*37000000000)","v":""},null,null,null,null,null,{"$f":"IF(Table58[[#This Row],[Activity (Bq)]]=\"\",\"\",Table58[[#This Row],[Activity (Bq)]]/37000000000)","v":""}]
[null,null,null,{"$f":"IF(Table58[[#This Row],[Mass (g)]]=\"\",\"\",Table58[[#This Row],[Mass (g)]]*VLOOKUP(Table58[[#This Row],[Nuclide]],Doedata,4)*37000000000)","v":""},null,null,null,null,null,{"$f":"IF(Table58[[#This Row],[Activity (Bq)]]=\"\",\"\",Table58[[#This Row],[Activity (Bq)]]/37000000000)","v":""}]
[null,null,null,{"$f":"IF(Table58[[#This Row],[Mass (g)]]=\"\",\"\",Table58[[#This Row],[Mass (g)]]*VLOOKUP(Table58[[#This Row],[Nuclide]],Doedata,4)*37000000000)","v":""},null,null,null,null,null,{"$f":"IF(Table58[[#This Row],[Activity (Bq)]]=\"\",\"\",Table58[[#This Row],[Activity (Bq)]]/37000000000)","v":""}]
[null,null,null,{"$f":"IF(Table58[[#This Row],[Mass (g)]]=\"\",\"\",Table58[[#This Row],[Mass (g)]]*VLOOKUP(Table58[[#This Row],[Nuclide]],Doedata,4)*37000000000)","v":""},null,null,null,null,null,{"$f":"IF(Table58[[#This Row],[Activity (Bq)]]=\"\",\"\",Table58[[#This Row],[Activity (Bq)]]/37000000000)","v":""}]
[null,null,null,{"$f":"IF(Table58[[#This Row],[Mass (g)]]=\"\",\"\",Table58[[#This Row],[Mass (g)]]*VLOOKUP(Table58[[#This Row],[Nuclide]],Doedata,4)*37000000000)","v":""},null,null,null,null,null,{"$f":"IF(Table58[[#This Row],[Activity (Bq)]]=\"\",\"\",Table58[[#This Row],[Activity (Bq)]]/37000000000)","v":""}]
[null,null,null,{"$f":"IF(Table58[[#This Row],[Mass (g)]]=\"\",\"\",Table58[[#This Row],[Mass (g)]]*VLOOKUP(Table58[[#This Row],[Nuclide]],Doedata,4)*37000000000)","v":""},null,null,null,null,null,{"$f":"IF(Table58[[#This Row],[Activity (Bq)]]=\"\",\"\",Table58[[#This Row],[Activity (Bq)]]/37000000000)","v":""}]
[null,null,null,{"$f":"IF(Table58[[#This Row],[Mass (g)]]=\"\",\"\",Table58[[#This Row],[Mass (g)]]*VLOOKUP(Table58[[#This Row],[Nuclide]],Doedata,4)*37000000000)","v":""},null,null,null,null,null,{"$f":"IF(Table58[[#This Row],[Activity (Bq)]]=\"\",\"\",Table58[[#This Row],[Activity (Bq)]]/37000000000)","v":""}]
[null,null,null,{"$f":"IF(Table58[[#This Row],[Mass (g)]]=\"\",\"\",Table58[[#This Row],[Mass (g)]]*VLOOKUP(Table58[[#This Row],[Nuclide]],Doedata,4)*37000000000)","v":""},null,null,null,null,null,{"$f":"IF(Table58[[#This Row],[Activity (Bq)]]=\"\",\"\",Table58[[#This Row],[Activity (Bq)]]/37000000000)","v":""}]
[null,null,null,{"$f":"IF(Table58[[#This Row],[Mass (g)]]=\"\",\"\",Table58[[#This Row],[Mass (g)]]*VLOOKUP(Table58[[#This Row],[Nuclide]],Doedata,4)*37000000000)","v":""},null,null,null,null,null,{"$f":"IF(Table58[[#This Row],[Activity (Bq)]]=\"\",\"\",Table58[[#This Row],[Activity (Bq)]]/37000000000)","v":""}]
[null,null,null,{"$f":"IF(Table58[[#This Row],[Mass (g)]]=\"\",\"\",Table58[[#This Row],[Mass (g)]]*VLOOKUP(Table58[[#This Row],[Nuclide]],Doedata,4)*37000000000)","v":""},null,null,null,null,null,{"$f":"IF(Table58[[#This Row],[Activity (Bq)]]=\"\",\"\",Table58[[#This Row],[Activity (Bq)]]/37000000000)","v":""}]
[null,null,null,{"$f":"IF(Table58[[#This Row],[Mass (g)]]=\"\",\"\",Table58[[#This Row],[Mass (g)]]*VLOOKUP(Table58[[#This Row],[Nuclide]],Doedata,4)*37000000000)","v":""},null,null,null,null,null,{"$f":"IF(Table58[[#This Row],[Activity (Bq)]]=\"\",\"\",Table58[[#This Row],[Activity (Bq)]]/37000000000)","v":""}]
[null,null,null,{"$f":"IF(Table58[[#This Row],[Mass (g)]]=\"\",\"\",Table58[[#This Row],[Mass (g)]]*VLOOKUP(Table58[[#This Row],[Nuclide]],Doedata,4)*37000000000)","v":""},null,null,null,null,null,{"$f":"IF(Table58[[#This Row],[Activity (Bq)]]=\"\",\"\",Table58[[#This Row],[Activity (Bq)]]/37000000000)","v":""}]
[null,null,null,{"$f":"IF(Table58[[#This Row],[Mass (g)]]=\"\",\"\",Table58[[#This Row],[Mass (g)]]*VLOOKUP(Table58[[#This Row],[Nuclide]],Doedata,4)*37000000000)","v":""},null,null,null,null,null,{"$f":"IF(Table58[[#This Row],[Activity (Bq)]]=\"\",\"\",Table58[[#This Row],[Activity (Bq)]]/37000000000)","v":""}]
[null,null,null,{"$f":"IF(Table58[[#This Row],[Mass (g)]]=\"\",\"\",Table58[[#This Row],[Mass (g)]]*VLOOKUP(Table58[[#This Row],[Nuclide]],Doedata,4)*37000000000)","v":""},null,null,null,null,null,{"$f":"IF(Table58[[#This Row],[Activity (Bq)]]=\"\",\"\",Table58[[#This Row],[Activity (Bq)]]/37000000000)","v":""}]
[null,null,null,{"$f":"IF(Table58[[#This Row],[Mass (g)]]=\"\",\"\",Table58[[#This Row],[Mass (g)]]*VLOOKUP(Table58[[#This Row],[Nuclide]],Doedata,4)*37000000000)","v":""},null,null,null,null,null,{"$f":"IF(Table58[[#This Row],[Activity (Bq)]]=\"\",\"\",Table58[[#This Row],[Activity (Bq)]]/37000000000)","v":""}]
[null,null,null,{"$f":"IF(Table58[[#This Row],[Mass (g)]]=\"\",\"\",Table58[[#This Row],[Mass (g)]]*VLOOKUP(Table58[[#This Row],[Nuclide]],Doedata,4)*37000000000)","v":""},null,null,null,null,null,{"$f":"IF(Table58[[#This Row],[Activity (Bq)]]=\"\",\"\",Table58[[#This Row],[Activity (Bq)]]/37000000000)","v":""}]
[null,null,null,{"$f":"IF(Table58[[#This Row],[Mass (g)]]=\"\",\"\",Table58[[#This Row],[Mass (g)]]*VLOOKUP(Table58[[#This Row],[Nuclide]],Doedata,4)*37000000000)","v":""},null,null,null,null,null,{"$f":"IF(Table58[[#This Row],[Activity (Bq)]]=\"\",\"\",Table58[[#This Row],[Activity (Bq)]]/37000000000)","v":""}]
[null,null,null,{"$f":"IF(Table58[[#This Row],[Mass (g)]]=\"\",\"\",Table58[[#This Row],[Mass (g)]]*VLOOKUP(Table58[[#This Row],[Nuclide]],Doedata,4)*37000000000)","v":""},null,null,null,null,null,{"$f":"IF(Table58[[#This Row],[Activity (Bq)]]=\"\",\"\",Table58[[#This Row],[Activity (Bq)]]/37000000000)","v":""}]
[null,null,null,{"$f":"IF(Table58[[#This Row],[Mass (g)]]=\"\",\"\",Table58[[#This Row],[Mass (g)]]*VLOOKUP(Table58[[#This Row],[Nuclide]],Doedata,4)*37000000000)","v":""},null,null,null,null,null,{"$f":"IF(Table58[[#This Row],[Activity (Bq)]]=\"\",\"\",Table58[[#This Row],[Activity (Bq)]]/37000000000)","v":""}]
[null,null,null,{"$f":"IF(Table58[[#This Row],[Mass (g)]]=\"\",\"\",Table58[[#This Row],[Mass (g)]]*VLOOKUP(Table58[[#This Row],[Nuclide]],Doedata,4)*37000000000)","v":""},null,null,null,null,null,{"$f":"IF(Table58[[#This Row],[Activity (Bq)]]=\"\",\"\",Table58[[#This Row],[Activity (Bq)]]/37000000000)","v":""}]
[null,null,null,{"$f":"IF(Table58[[#This Row],[Mass (g)]]=\"\",\"\",Table58[[#This Row],[Mass (g)]]*VLOOKUP(Table58[[#This Row],[Nuclide]],Doedata,4)*37000000000)","v":""},null,null,null,null,null,{"$f":"IF(Table58[[#This Row],[Activity (Bq)]]=\"\",\"\",Table58[[#This Row],[Activity (Bq)]]/37000000000)","v":""}]
[null,null,null,{"$f":"IF(Table58[[#This Row],[Mass (g)]]=\"\",\"\",Table58[[#This Row],[Mass (g)]]*VLOOKUP(Table58[[#This Row],[Nuclide]],Doedata,4)*37000000000)","v":""},null,null,null,null,null,{"$f":"IF(Table58[[#This Row],[Activity (Bq)]]=\"\",\"\",Table58[[#This Row],[Activity (Bq)]]/37000000000)","v":""}]
[null,null,null,{"$f":"IF(Table58[[#This Row],[Mass (g)]]=\"\",\"\",Table58[[#This Row],[Mass (g)]]*VLOOKUP(Table58[[#This Row],[Nuclide]],Doedata,4)*37000000000)","v":""},null,null,null,null,null,{"$f":"IF(Table58[[#This Row],[Activity (Bq)]]=\"\",\"\",Table58[[#This Row],[Activity (Bq)]]/37000000000)","v":""}]
[null,null,null,{"$f":"IF(Table58[[#This Row],[Mass (g)]]=\"\",\"\",Table58[[#This Row],[Mass (g)]]*VLOOKUP(Table58[[#This Row],[Nuclide]],Doedata,4)*37000000000)","v":""},null,null,null,null,null,{"$f":"IF(Table58[[#This Row],[Activity (Bq)]]=\"\",\"\",Table58[[#This Row],[Activity (Bq)]]/37000000000)","v":""}]
[null,null,null,{"$f":"IF(Table58[[#This Row],[Mass (g)]]=\"\",\"\",Table58[[#This Row],[Mass (g)]]*VLOOKUP(Table58[[#This Row],[Nuclide]],Doedata,4)*37000000000)","v":""},null,null,null,null,null,{"$f":"IF(Table58[[#This Row],[Activity (Bq)]]=\"\",\"\",Table58[[#This Row],[Activity (Bq)]]/37000000000)","v":""}]
[null,null,null,{"$f":"IF(Table58[[#This Row],[Mass (g)]]=\"\",\"\",Table58[[#This Row],[Mass (g)]]*VLOOKUP(Table58[[#This Row],[Nuclide]],Doedata,4)*37000000000)","v":""},null,null,null,null,null,{"$f":"IF(Table58[[#This Row],[Activity (Bq)]]=\"\",\"\",Table58[[#This Row],[Activity (Bq)]]/37000000000)","v":""}]
[null,null,null,{"$f":"IF(Table58[[#This Row],[Mass (g)]]=\"\",\"\",Table58[[#This Row],[Mass (g)]]*VLOOKUP(Table58[[#This Row],[Nuclide]],Doedata,4)*37000000000)","v":""},null,null,null,null,null,{"$f":"IF(Table58[[#This Row],[Activity (Bq)]]=\"\",\"\",Table58[[#This Row],[Activity (Bq)]]/37000000000)","v":""}]
[null,null,null,{"$f":"IF(Table58[[#This Row],[Mass (g)]]=\"\",\"\",Table58[[#This Row],[Mass (g)]]*VLOOKUP(Table58[[#This Row],[Nuclide]],Doedata,4)*37000000000)","v":""},null,null,null,null,null,{"$f":"IF(Table58[[#This Row],[Activity (Bq)]]=\"\",\"\",Table58[[#This Row],[Activity (Bq)]]/37000000000)","v":""}]
[null,null,null,{"$f":"IF(Table58[[#This Row],[Mass (g)]]=\"\",\"\",Table58[[#This Row],[Mass (g)]]*VLOOKUP(Table58[[#This Row],[Nuclide]],Doedata,4)*37000000000)","v":""},null,null,null,null,null,{"$f":"IF(Table58[[#This Row],[Activity (Bq)]]=\"\",\"\",Table58[[#This Row],[Activity (Bq)]]/37000000000)","v":""}]
[null,null,null,{"$f":"IF(Table58[[#This Row],[Mass (g)]]=\"\",\"\",Table58[[#This Row],[Mass (g)]]*VLOOKUP(Table58[[#This Row],[Nuclide]],Doedata,4)*37000000000)","v":""},null,null,null,null,null,{"$f":"IF(Table58[[#This Row],[Activity (Bq)]]=\"\",\"\",Table58[[#This Row],[Activity (Bq)]]/37000000000)","v":""}]
[null,null,null,{"$f":"IF(Table58[[#This Row],[Mass (g)]]=\"\",\"\",Table58[[#This Row],[Mass (g)]]*VLOOKUP(Table58[[#This Row],[Nuclide]],Doedata,4)*37000000000)","v":""},null,null,null,null,null,{"$f":"IF(Table58[[#This Row],[Activity (Bq)]]=\"\",\"\",Table58[[#This Row],[Activity (Bq)]]/37000000000)","v":""}]
[null,null,null,{"$f":"IF(Table58[[#This Row],[Mass (g)]]=\"\",\"\",Table58[[#This Row],[Mass (g)]]*VLOOKUP(Table58[[#This Row],[Nuclide]],Doedata,4)*37000000000)","v":""},null,null,null,null,null,{"$f":"IF(Table58[[#This Row],[Activity (Bq)]]=\"\",\"\",Table58[[#This Row],[Activity (Bq)]]/37000000000)","v":""}]
[null,null,null,{"$f":"IF(Table58[[#This Row],[Mass (g)]]=\"\",\"\",Table58[[#This Row],[Mass (g)]]*VLOOKUP(Table58[[#This Row],[Nuclide]],Doedata,4)*37000000000)","v":""},null,null,null,null,null,{"$f":"IF(Table58[[#This Row],[Activity (Bq)]]=\"\",\"\",Table58[[#This Row],[Activity (Bq)]]/37000000000)","v":""}]
[null,null,null,{"$f":"IF(Table58[[#This Row],[Mass (g)]]=\"\",\"\",Table58[[#This Row],[Mass (g)]]*VLOOKUP(Table58[[#This Row],[Nuclide]],Doedata,4)*37000000000)","v":""},null,null,null,null,null,{"$f":"IF(Table58[[#This Row],[Activity (Bq)]]=\"\",\"\",Table58[[#This Row],[Activity (Bq)]]/37000000000)","v":""}]
[null,null,null,{"$f":"IF(Table58[[#This Row],[Mass (g)]]=\"\",\"\",Table58[[#This Row],[Mass (g)]]*VLOOKUP(Table58[[#This Row],[Nuclide]],Doedata,4)*37000000000)","v":""},null,null,null,null,null,{"$f":"IF(Table58[[#This Row],[Activity (Bq)]]=\"\",\"\",Table58[[#This Row],[Activity (Bq)]]/37000000000)","v":""}]
[null,null,null,{"$f":"IF(Table58[[#This Row],[Mass (g)]]=\"\",\"\",Table58[[#This Row],[Mass (g)]]*VLOOKUP(Table58[[#This Row],[Nuclide]],Doedata,4)*37000000000)","v":""},null,null,null,null,null,{"$f":"IF(Table58[[#This Row],[Activity (Bq)]]=\"\",\"\",Table58[[#This Row],[Activity (Bq)]]/37000000000)","v":""}]
[null,null,null,{"$f":"IF(Table58[[#This Row],[Mass (g)]]=\"\",\"\",Table58[[#This Row],[Mass (g)]]*VLOOKUP(Table58[[#This Row],[Nuclide]],Doedata,4)*37000000000)","v":""},null,null,null,null,null,{"$f":"IF(Table58[[#This Row],[Activity (Bq)]]=\"\",\"\",Table58[[#This Row],[Activity (Bq)]]/37000000000)","v":""}]
[null,null,null,{"$f":"IF(Table58[[#This Row],[Mass (g)]]=\"\",\"\",Table58[[#This Row],[Mass (g)]]*VLOOKUP(Table58[[#This Row],[Nuclide]],Doedata,4)*37000000000)","v":""},null,null,null,null,null,{"$f":"IF(Table58[[#This Row],[Activity (Bq)]]=\"\",\"\",Table58[[#This Row],[Activity (Bq)]]/37000000000)","v":""}]
[null,null,null,{"$f":"IF(Table58[[#This Row],[Mass (g)]]=\"\",\"\",Table58[[#This Row],[Mass (g)]]*VLOOKUP(Table58[[#This Row],[Nuclide]],Doedata,4)*37000000000)","v":""},null,null,null,null,null,{"$f":"IF(Table58[[#This Row],[Activity (Bq)]]=\"\",\"\",Table58[[#This Row],[Activity (Bq)]]/37000000000)","v":""}]
[null,null,null,{"$f":"IF(Table58[[#This Row],[Mass (g)]]=\"\",\"\",Table58[[#This Row],[Mass (g)]]*VLOOKUP(Table58[[#This Row],[Nuclide]],Doedata,4)*37000000000)","v":""},null,null,null,null,null,{"$f":"IF(Table58[[#This Row],[Activity (Bq)]]=\"\",\"\",Table58[[#This Row],[Activity (Bq)]]/37000000000)","v":""}]
[null,null,null,{"$f":"IF(Table58[[#This Row],[Mass (g)]]=\"\",\"\",Table58[[#This Row],[Mass (g)]]*VLOOKUP(Table58[[#This Row],[Nuclide]],Doedata,4)*37000000000)","v":""},null,null,null,null,null,{"$f":"IF(Table58[[#This Row],[Activity (Bq)]]=\"\",\"\",Table58[[#This Row],[Activity (Bq)]]/37000000000)","v":""}]
[null,null,null,{"$f":"IF(Table58[[#This Row],[Mass (g)]]=\"\",\"\",Table58[[#This Row],[Mass (g)]]*VLOOKUP(Table58[[#This Row],[Nuclide]],Doedata,4)*37000000000)","v":""},null,null,null,null,null,{"$f":"IF(Table58[[#This Row],[Activity (Bq)]]=\"\",\"\",Table58[[#This Row],[Activity (Bq)]]/37000000000)","v":""}]
[null,null,null,{"$f":"IF(Table58[[#This Row],[Mass (g)]]=\"\",\"\",Table58[[#This Row],[Mass (g)]]*VLOOKUP(Table58[[#This Row],[Nuclide]],Doedata,4)*37000000000)","v":""},null,null,null,null,null,{"$f":"IF(Table58[[#This Row],[Activity (Bq)]]=\"\",\"\",Table58[[#This Row],[Activity (Bq)]]/37000000000)","v":""}]
[null,null,null,{"$f":"IF(Table58[[#This Row],[Mass (g)]]=\"\",\"\",Table58[[#This Row],[Mass (g)]]*VLOOKUP(Table58[[#This Row],[Nuclide]],Doedata,4)*37000000000)","v":""},null,null,null,null,null,{"$f":"IF(Table58[[#This Row],[Activity (Bq)]]=\"\",\"\",Table58[[#This Row],[Activity (Bq)]]/37000000000)","v":""}]
[null,null,null,{"$f":"IF(Table58[[#This Row],[Mass (g)]]=\"\",\"\",Table58[[#This Row],[Mass (g)]]*VLOOKUP(Table58[[#This Row],[Nuclide]],Doedata,4)*37000000000)","v":""},null,null,null,null,null,{"$f":"IF(Table58[[#This Row],[Activity (Bq)]]=\"\",\"\",Table58[[#This Row],[Activity (Bq)]]/37000000000)","v":""}]
[null,null,null,{"$f":"IF(Table58[[#This Row],[Mass (g)]]=\"\",\"\",Table58[[#This Row],[Mass (g)]]*VLOOKUP(Table58[[#This Row],[Nuclide]],Doedata,4)*37000000000)","v":""},null,null,null,null,null,{"$f":"IF(Table58[[#This Row],[Activity (Bq)]]=\"\",\"\",Table58[[#This Row],[Activity (Bq)]]/37000000000)","v":""}]
[null,null,null,{"$f":"IF(Table58[[#This Row],[Mass (g)]]=\"\",\"\",Table58[[#This Row],[Mass (g)]]*VLOOKUP(Table58[[#This Row],[Nuclide]],Doedata,4)*37000000000)","v":""},null,null,null,null,null,{"$f":"IF(Table58[[#This Row],[Activity (Bq)]]=\"\",\"\",Table58[[#This Row],[Activity (Bq)]]/37000000000)","v":""}]
[null,null,null,{"$f":"IF(Table58[[#This Row],[Mass (g)]]=\"\",\"\",Table58[[#This Row],[Mass (g)]]*VLOOKUP(Table58[[#This Row],[Nuclide]],Doedata,4)*37000000000)","v":""},null,null,null,null,null,{"$f":"IF(Table58[[#This Row],[Activity (Bq)]]=\"\",\"\",Table58[[#This Row],[Activity (Bq)]]/37000000000)","v":""}]
[null,null,null,{"$f":"IF(Table58[[#This Row],[Mass (g)]]=\"\",\"\",Table58[[#This Row],[Mass (g)]]*VLOOKUP(Table58[[#This Row],[Nuclide]],Doedata,4)*37000000000)","v":""},null,null,null,null,null,{"$f":"IF(Table58[[#This Row],[Activity (Bq)]]=\"\",\"\",Table58[[#This Row],[Activity (Bq)]]/37000000000)","v":""}]
[null,null,null,{"$f":"IF(Table58[[#This Row],[Mass (g)]]=\"\",\"\",Table58[[#This Row],[Mass (g)]]*VLOOKUP(Table58[[#This Row],[Nuclide]],Doedata,4)*37000000000)","v":""},null,null,null,null,null,{"$f":"IF(Table58[[#This Row],[Activity (Bq)]]=\"\",\"\",Table58[[#This Row],[Activity (Bq)]]/37000000000)","v":""}]
[null,null,null,{"$f":"IF(Table58[[#This Row],[Mass (g)]]=\"\",\"\",Table58[[#This Row],[Mass (g)]]*VLOOKUP(Table58[[#This Row],[Nuclide]],Doedata,4)*37000000000)","v":""},null,null,null,null,null,{"$f":"IF(Table58[[#This Row],[Activity (Bq)]]=\"\",\"\",Table58[[#This Row],[Activity (Bq)]]/37000000000)","v":""}]
[null,null,null,{"$f":"IF(Table58[[#This Row],[Mass (g)]]=\"\",\"\",Table58[[#This Row],[Mass (g)]]*VLOOKUP(Table58[[#This Row],[Nuclide]],Doedata,4)*37000000000)","v":""},null,null,null,null,null,{"$f":"IF(Table58[[#This Row],[Activity (Bq)]]=\"\",\"\",Table58[[#This Row],[Activity (Bq)]]/37000000000)","v":""}]
[null,null,null,{"$f":"IF(Table58[[#This Row],[Mass (g)]]=\"\",\"\",Table58[[#This Row],[Mass (g)]]*VLOOKUP(Table58[[#This Row],[Nuclide]],Doedata,4)*37000000000)","v":""},null,null,null,null,null,{"$f":"IF(Table58[[#This Row],[Activity (Bq)]]=\"\",\"\",Table58[[#This Row],[Activity (Bq)]]/37000000000)","v":""}]
[null,null,null,{"$f":"IF(Table58[[#This Row],[Mass (g)]]=\"\",\"\",Table58[[#This Row],[Mass (g)]]*VLOOKUP(Table58[[#This Row],[Nuclide]],Doedata,4)*37000000000)","v":""},null,null,null,null,null,{"$f":"IF(Table58[[#This Row],[Activity (Bq)]]=\"\",\"\",Table58[[#This Row],[Activity (Bq)]]/37000000000)","v":""}]
[null,null,null,{"$f":"IF(Table58[[#This Row],[Mass (g)]]=\"\",\"\",Table58[[#This Row],[Mass (g)]]*VLOOKUP(Table58[[#This Row],[Nuclide]],Doedata,4)*37000000000)","v":""},null,null,null,null,null,{"$f":"IF(Table58[[#This Row],[Activity (Bq)]]=\"\",\"\",Table58[[#This Row],[Activity (Bq)]]/37000000000)","v":""}]
[null,null,null,{"$f":"IF(Table58[[#This Row],[Mass (g)]]=\"\",\"\",Table58[[#This Row],[Mass (g)]]*VLOOKUP(Table58[[#This Row],[Nuclide]],Doedata,4)*37000000000)","v":""},null,null,null,null,null,{"$f":"IF(Table58[[#This Row],[Activity (Bq)]]=\"\",\"\",Table58[[#This Row],[Activity (Bq)]]/37000000000)","v":""}]
[null,null,null,{"$f":"IF(Table58[[#This Row],[Mass (g)]]=\"\",\"\",Table58[[#This Row],[Mass (g)]]*VLOOKUP(Table58[[#This Row],[Nuclide]],Doedata,4)*37000000000)","v":""},null,null,null,null,null,{"$f":"IF(Table58[[#This Row],[Activity (Bq)]]=\"\",\"\",Table58[[#This Row],[Activity (Bq)]]/37000000000)","v":""}]
[null,null,null,{"$f":"IF(Table58[[#This Row],[Mass (g)]]=\"\",\"\",Table58[[#This Row],[Mass (g)]]*VLOOKUP(Table58[[#This Row],[Nuclide]],Doedata,4)*37000000000)","v":""},null,null,null,null,null,{"$f":"IF(Table58[[#This Row],[Activity (Bq)]]=\"\",\"\",Table58[[#This Row],[Activity (Bq)]]/37000000000)","v":""}]
[null,null,null,{"$f":"IF(Table58[[#This Row],[Mass (g)]]=\"\",\"\",Table58[[#This Row],[Mass (g)]]*VLOOKUP(Table58[[#This Row],[Nuclide]],Doedata,4)*37000000000)","v":""},null,null,null,null,null,{"$f":"IF(Table58[[#This Row],[Activity (Bq)]]=\"\",\"\",Table58[[#This Row],[Activity (Bq)]]/37000000000)","v":""}]
[null,null,null,{"$f":"IF(Table58[[#This Row],[Mass (g)]]=\"\",\"\",Table58[[#This Row],[Mass (g)]]*VLOOKUP(Table58[[#This Row],[Nuclide]],Doedata,4)*37000000000)","v":""},null,null,null,null,null,{"$f":"IF(Table58[[#This Row],[Activity (Bq)]]=\"\",\"\",Table58[[#This Row],[Activity (Bq)]]/37000000000)","v":""}]
[null,null,null,{"$f":"IF(Table58[[#This Row],[Mass (g)]]=\"\",\"\",Table58[[#This Row],[Mass (g)]]*VLOOKUP(Table58[[#This Row],[Nuclide]],Doedata,4)*37000000000)","v":""},null,null,null,null,null,{"$f":"IF(Table58[[#This Row],[Activity (Bq)]]=\"\",\"\",Table58[[#This Row],[Activity (Bq)]]/37000000000)","v":""}]
[null,null,null,{"$f":"IF(Table58[[#This Row],[Mass (g)]]=\"\",\"\",Table58[[#This Row],[Mass (g)]]*VLOOKUP(Table58[[#This Row],[Nuclide]],Doedata,4)*37000000000)","v":""},null,null,null,null,null,{"$f":"IF(Table58[[#This Row],[Activity (Bq)]]=\"\",\"\",Table58[[#This Row],[Activity (Bq)]]/37000000000)","v":""}]
[null,null,null,{"$f":"IF(Table58[[#This Row],[Mass (g)]]=\"\",\"\",Table58[[#This Row],[Mass (g)]]*VLOOKUP(Table58[[#This Row],[Nuclide]],Doedata,4)*37000000000)","v":""},null,null,null,null,null,{"$f":"IF(Table58[[#This Row],[Activity (Bq)]]=\"\",\"\",Table58[[#This Row],[Activity (Bq)]]/37000000000)","v":""}]
[null,null,null,{"$f":"IF(Table58[[#This Row],[Mass (g)]]=\"\",\"\",Table58[[#This Row],[Mass (g)]]*VLOOKUP(Table58[[#This Row],[Nuclide]],Doedata,4)*37000000000)","v":""},null,null,null,null,null,{"$f":"IF(Table58[[#This Row],[Activity (Bq)]]=\"\",\"\",Table58[[#This Row],[Activity (Bq)]]/37000000000)","v":""}]
[null,null,null,{"$f":"IF(Table58[[#This Row],[Mass (g)]]=\"\",\"\",Table58[[#This Row],[Mass (g)]]*VLOOKUP(Table58[[#This Row],[Nuclide]],Doedata,4)*37000000000)","v":""},null,null,null,null,null,{"$f":"IF(Table58[[#This Row],[Activity (Bq)]]=\"\",\"\",Table58[[#This Row],[Activity (Bq)]]/37000000000)","v":""}]
[null,null,null,{"$f":"IF(Table58[[#This Row],[Mass (g)]]=\"\",\"\",Table58[[#This Row],[Mass (g)]]*VLOOKUP(Table58[[#This Row],[Nuclide]],Doedata,4)*37000000000)","v":""},null,null,null,null,null,{"$f":"IF(Table58[[#This Row],[Activity (Bq)]]=\"\",\"\",Table58[[#This Row],[Activity (Bq)]]/37000000000)","v":""}]
[null,null,null,{"$f":"IF(Table58[[#This Row],[Mass (g)]]=\"\",\"\",Table58[[#This Row],[Mass (g)]]*VLOOKUP(Table58[[#This Row],[Nuclide]],Doedata,4)*37000000000)","v":""},null,null,null,null,null,{"$f":"IF(Table58[[#This Row],[Activity (Bq)]]=\"\",\"\",Table58[[#This Row],[Activity (Bq)]]/37000000000)","v":""}]
[null,null,null,{"$f":"IF(Table58[[#This Row],[Mass (g)]]=\"\",\"\",Table58[[#This Row],[Mass (g)]]*VLOOKUP(Table58[[#This Row],[Nuclide]],Doedata,4)*37000000000)","v":""},null,null,null,null,null,{"$f":"IF(Table58[[#This Row],[Activity (Bq)]]=\"\",\"\",Table58[[#This Row],[Activity (Bq)]]/37000000000)","v":""}]
[null,null,null,{"$f":"IF(Table58[[#This Row],[Mass (g)]]=\"\",\"\",Table58[[#This Row],[Mass (g)]]*VLOOKUP(Table58[[#This Row],[Nuclide]],Doedata,4)*37000000000)","v":""},null,null,null,null,null,{"$f":"IF(Table58[[#This Row],[Activity (Bq)]]=\"\",\"\",Table58[[#This Row],[Activity (Bq)]]/37000000000)","v":""}]
[null,null,null,{"$f":"IF(Table58[[#This Row],[Mass (g)]]=\"\",\"\",Table58[[#This Row],[Mass (g)]]*VLOOKUP(Table58[[#This Row],[Nuclide]],Doedata,4)*37000000000)","v":""},null,null,null,null,null,{"$f":"IF(Table58[[#This Row],[Activity (Bq)]]=\"\",\"\",Table58[[#This Row],[Activity (Bq)]]/37000000000)","v":""}]
[null,null,null,{"$f":"IF(Table58[[#This Row],[Mass (g)]]=\"\",\"\",Table58[[#This Row],[Mass (g)]]*VLOOKUP(Table58[[#This Row],[Nuclide]],Doedata,4)*37000000000)","v":""},null,null,null,null,null,{"$f":"IF(Table58[[#This Row],[Activity (Bq)]]=\"\",\"\",Table58[[#This Row],[Activity (Bq)]]/37000000000)","v":""}]
[null,null,null,{"$f":"IF(Table58[[#This Row],[Mass (g)]]=\"\",\"\",Table58[[#This Row],[Mass (g)]]*VLOOKUP(Table58[[#This Row],[Nuclide]],Doedata,4)*37000000000)","v":""},null,null,null,null,null,{"$f":"IF(Table58[[#This Row],[Activity (Bq)]]=\"\",\"\",Table58[[#This Row],[Activity (Bq)]]/37000000000)","v":""}]
[null,null,null,{"$f":"IF(Table58[[#This Row],[Mass (g)]]=\"\",\"\",Table58[[#This Row],[Mass (g)]]*VLOOKUP(Table58[[#This Row],[Nuclide]],Doedata,4)*37000000000)","v":""},null,null,null,null,null,{"$f":"IF(Table58[[#This Row],[Activity (Bq)]]=\"\",\"\",Table58[[#This Row],[Activity (Bq)]]/37000000000)","v":""}]
[null,null,null,{"$f":"IF(Table58[[#This Row],[Mass (g)]]=\"\",\"\",Table58[[#This Row],[Mass (g)]]*VLOOKUP(Table58[[#This Row],[Nuclide]],Doedata,4)*37000000000)","v":""},null,null,null,null,null,{"$f":"IF(Table58[[#This Row],[Activity (Bq)]]=\"\",\"\",Table58[[#This Row],[Activity (Bq)]]/37000000000)","v":""}]
[null,null,null,{"$f":"IF(Table58[[#This Row],[Mass (g)]]=\"\",\"\",Table58[[#This Row],[Mass (g)]]*VLOOKUP(Table58[[#This Row],[Nuclide]],Doedata,4)*37000000000)","v":""},null,null,null,null,null,{"$f":"IF(Table58[[#This Row],[Activity (Bq)]]=\"\",\"\",Table58[[#This Row],[Activity (Bq)]]/37000000000)","v":""}]
[null,null,null,{"$f":"IF(Table58[[#This Row],[Mass (g)]]=\"\",\"\",Table58[[#This Row],[Mass (g)]]*VLOOKUP(Table58[[#This Row],[Nuclide]],Doedata,4)*37000000000)","v":""},null,null,null,null,null,{"$f":"IF(Table58[[#This Row],[Activity (Bq)]]=\"\",\"\",Table58[[#This Row],[Activity (Bq)]]/37000000000)","v":""}]
[null,null,null,{"$f":"IF(Table58[[#This Row],[Mass (g)]]=\"\",\"\",Table58[[#This Row],[Mass (g)]]*VLOOKUP(Table58[[#This Row],[Nuclide]],Doedata,4)*37000000000)","v":""},null,null,null,null,null,{"$f":"IF(Table58[[#This Row],[Activity (Bq)]]=\"\",\"\",Table58[[#This Row],[Activity (Bq)]]/37000000000)","v":""}]
[null,null,null,{"$f":"IF(Table58[[#This Row],[Mass (g)]]=\"\",\"\",Table58[[#This Row],[Mass (g)]]*VLOOKUP(Table58[[#This Row],[Nuclide]],Doedata,4)*37000000000)","v":""},null,null,null,null,null,{"$f":"IF(Table58[[#This Row],[Activity (Bq)]]=\"\",\"\",Table58[[#This Row],[Activity (Bq)]]/37000000000)","v":""}]
[null,null,null,{"$f":"IF(Table58[[#This Row],[Mass (g)]]=\"\",\"\",Table58[[#This Row],[Mass (g)]]*VLOOKUP(Table58[[#This Row],[Nuclide]],Doedata,4)*37000000000)","v":""},null,null,null,null,null,{"$f":"IF(Table58[[#This Row],[Activity (Bq)]]=\"\",\"\",Table58[[#This Row],[Activity (Bq)]]/37000000000)","v":""}]
[null,null,null,{"$f":"IF(Table58[[#This Row],[Mass (g)]]=\"\",\"\",Table58[[#This Row],[Mass (g)]]*VLOOKUP(Table58[[#This Row],[Nuclide]],Doedata,4)*37000000000)","v":""},null,null,null,null,null,{"$f":"IF(Table58[[#This Row],[Activity (Bq)]]=\"\",\"\",Table58[[#This Row],[Activity (Bq)]]/37000000000)","v":""}]
[null,null,null,{"$f":"IF(Table58[[#This Row],[Mass (g)]]=\"\",\"\",Table58[[#This Row],[Mass (g)]]*VLOOKUP(Table58[[#This Row],[Nuclide]],Doedata,4)*37000000000)","v":""},null,null,null,null,null,{"$f":"IF(Table58[[#This Row],[Activity (Bq)]]=\"\",\"\",Table58[[#This Row],[Activity (Bq)]]/37000000000)","v":""}]
[null,null,null,{"$f":"IF(Table58[[#This Row],[Mass (g)]]=\"\",\"\",Table58[[#This Row],[Mass (g)]]*VLOOKUP(Table58[[#This Row],[Nuclide]],Doedata,4)*37000000000)","v":""},null,null,null,null,null,{"$f":"IF(Table58[[#This Row],[Activity (Bq)]]=\"\",\"\",Table58[[#This Row],[Activity (Bq)]]/37000000000)","v":""}]
[null,null,null,{"$f":"IF(Table58[[#This Row],[Mass (g)]]=\"\",\"\",Table58[[#This Row],[Mass (g)]]*VLOOKUP(Table58[[#This Row],[Nuclide]],Doedata,4)*37000000000)","v":""},null,null,null,null,null,{"$f":"IF(Table58[[#This Row],[Activity (Bq)]]=\"\",\"\",Table58[[#This Row],[Activity (Bq)]]/37000000000)","v":""}]
[null,null,null,{"$f":"IF(Table58[[#This Row],[Mass (g)]]=\"\",\"\",Table58[[#This Row],[Mass (g)]]*VLOOKUP(Table58[[#This Row],[Nuclide]],Doedata,4)*37000000000)","v":""},null,null,null,null,null,{"$f":"IF(Table58[[#This Row],[Activity (Bq)]]=\"\",\"\",Table58[[#This Row],[Activity (Bq)]]/37000000000)","v":""}]
[null,null,null,{"$f":"IF(Table58[[#This Row],[Mass (g)]]=\"\",\"\",Table58[[#This Row],[Mass (g)]]*VLOOKUP(Table58[[#This Row],[Nuclide]],Doedata,4)*37000000000)","v":""},null,null,null,null,null,{"$f":"IF(Table58[[#This Row],[Activity (Bq)]]=\"\",\"\",Table58[[#This Row],[Activity (Bq)]]/37000000000)","v":""}]
[null,null,null,{"$f":"IF(Table58[[#This Row],[Mass (g)]]=\"\",\"\",Table58[[#This Row],[Mass (g)]]*VLOOKUP(Table58[[#This Row],[Nuclide]],Doedata,4)*37000000000)","v":""},null,null,null,null,null,{"$f":"IF(Table58[[#This Row],[Activity (Bq)]]=\"\",\"\",Table58[[#This Row],[Activity (Bq)]]/37000000000)","v":""}]
[null,null,null,{"$f":"IF(Table58[[#This Row],[Mass (g)]]=\"\",\"\",Table58[[#This Row],[Mass (g)]]*VLOOKUP(Table58[[#This Row],[Nuclide]],Doedata,4)*37000000000)","v":""},null,null,null,null,null,{"$f":"IF(Table58[[#This Row],[Activity (Bq)]]=\"\",\"\",Table58[[#This Row],[Activity (Bq)]]/37000000000)","v":""}]
[null,null,null,{"$f":"IF(Table58[[#This Row],[Mass (g)]]=\"\",\"\",Table58[[#This Row],[Mass (g)]]*VLOOKUP(Table58[[#This Row],[Nuclide]],Doedata,4)*37000000000)","v":""},null,null,null,null,null,{"$f":"IF(Table58[[#This Row],[Activity (Bq)]]=\"\",\"\",Table58[[#This Row],[Activity (Bq)]]/37000000000)","v":""}]
[null,null,null,{"$f":"IF(Table58[[#This Row],[Mass (g)]]=\"\",\"\",Table58[[#This Row],[Mass (g)]]*VLOOKUP(Table58[[#This Row],[Nuclide]],Doedata,4)*37000000000)","v":""},null,null,null,null,null,{"$f":"IF(Table58[[#This Row],[Activity (Bq)]]=\"\",\"\",Table58[[#This Row],[Activity (Bq)]]/37000000000)","v":""}]
[null,null,null,{"$f":"IF(Table58[[#This Row],[Mass (g)]]=\"\",\"\",Table58[[#This Row],[Mass (g)]]*VLOOKUP(Table58[[#This Row],[Nuclide]],Doedata,4)*37000000000)","v":""},null,null,null,null,null,{"$f":"IF(Table58[[#This Row],[Activity (Bq)]]=\"\",\"\",Table58[[#This Row],[Activity (Bq)]]/37000000000)","v":""}]
[null,null,null,{"$f":"IF(Table58[[#This Row],[Mass (g)]]=\"\",\"\",Table58[[#This Row],[Mass (g)]]*VLOOKUP(Table58[[#This Row],[Nuclide]],Doedata,4)*37000000000)","v":""},null,null,null,null,null,{"$f":"IF(Table58[[#This Row],[Activity (Bq)]]=\"\",\"\",Table58[[#This Row],[Activity (Bq)]]/37000000000)","v":""}]
[null,null,null,{"$f":"IF(Table58[[#This Row],[Mass (g)]]=\"\",\"\",Table58[[#This Row],[Mass (g)]]*VLOOKUP(Table58[[#This Row],[Nuclide]],Doedata,4)*37000000000)","v":""},null,null,null,null,null,{"$f":"IF(Table58[[#This Row],[Activity (Bq)]]=\"\",\"\",Table58[[#This Row],[Activity (Bq)]]/37000000000)","v":""}]
[null,null,null,{"$f":"IF(Table58[[#This Row],[Mass (g)]]=\"\",\"\",Table58[[#This Row],[Mass (g)]]*VLOOKUP(Table58[[#This Row],[Nuclide]],Doedata,4)*37000000000)","v":""},null,null,null,null,null,{"$f":"IF(Table58[[#This Row],[Activity (Bq)]]=\"\",\"\",Table58[[#This Row],[Activity (Bq)]]/37000000000)","v":""}]
[null,null,null,{"$f":"IF(Table58[[#This Row],[Mass (g)]]=\"\",\"\",Table58[[#This Row],[Mass (g)]]*VLOOKUP(Table58[[#This Row],[Nuclide]],Doedata,4)*37000000000)","v":""},null,null,null,null,null,{"$f":"IF(Table58[[#This Row],[Activity (Bq)]]=\"\",\"\",Table58[[#This Row],[Activity (Bq)]]/37000000000)","v":""}]
[null,null,null,{"$f":"IF(Table58[[#This Row],[Mass (g)]]=\"\",\"\",Table58[[#This Row],[Mass (g)]]*VLOOKUP(Table58[[#This Row],[Nuclide]],Doedata,4)*37000000000)","v":""},null,null,null,null,null,{"$f":"IF(Table58[[#This Row],[Activity (Bq)]]=\"\",\"\",Table58[[#This Row],[Activity (Bq)]]/37000000000)","v":""}]
[null,null,null,{"$f":"IF(Table58[[#This Row],[Mass (g)]]=\"\",\"\",Table58[[#This Row],[Mass (g)]]*VLOOKUP(Table58[[#This Row],[Nuclide]],Doedata,4)*37000000000)","v":""},null,null,null,null,null,{"$f":"IF(Table58[[#This Row],[Activity (Bq)]]=\"\",\"\",Table58[[#This Row],[Activity (Bq)]]/37000000000)","v":""}]
[null,null,null,{"$f":"IF(Table58[[#This Row],[Mass (g)]]=\"\",\"\",Table58[[#This Row],[Mass (g)]]*VLOOKUP(Table58[[#This Row],[Nuclide]],Doedata,4)*37000000000)","v":""},null,null,null,null,null,{"$f":"IF(Table58[[#This Row],[Activity (Bq)]]=\"\",\"\",Table58[[#This Row],[Activity (Bq)]]/37000000000)","v":""}]
[null,null,null,{"$f":"IF(Table58[[#This Row],[Mass (g)]]=\"\",\"\",Table58[[#This Row],[Mass (g)]]*VLOOKUP(Table58[[#This Row],[Nuclide]],Doedata,4)*37000000000)","v":""},null,null,null,null,null,{"$f":"IF(Table58[[#This Row],[Activity (Bq)]]=\"\",\"\",Table58[[#This Row],[Activity (Bq)]]/37000000000)","v":""}]
[null,null,null,{"$f":"IF(Table58[[#This Row],[Mass (g)]]=\"\",\"\",Table58[[#This Row],[Mass (g)]]*VLOOKUP(Table58[[#This Row],[Nuclide]],Doedata,4)*37000000000)","v":""},null,null,null,null,null,{"$f":"IF(Table58[[#This Row],[Activity (Bq)]]=\"\",\"\",Table58[[#This Row],[Activity (Bq)]]/37000000000)","v":""}]
[null,null,null,{"$f":"IF(Table58[[#This Row],[Mass (g)]]=\"\",\"\",Table58[[#This Row],[Mass (g)]]*VLOOKUP(Table58[[#This Row],[Nuclide]],Doedata,4)*37000000000)","v":""},null,null,null,null,null,{"$f":"IF(Table58[[#This Row],[Activity (Bq)]]=\"\",\"\",Table58[[#This Row],[Activity (Bq)]]/37000000000)","v":""}]
[null,null,null,{"$f":"IF(Table58[[#This Row],[Mass (g)]]=\"\",\"\",Table58[[#This Row],[Mass (g)]]*VLOOKUP(Table58[[#This Row],[Nuclide]],Doedata,4)*37000000000)","v":""},null,null,null,null,null,{"$f":"IF(Table58[[#This Row],[Activity (Bq)]]=\"\",\"\",Table58[[#This Row],[Activity (Bq)]]/37000000000)","v":""}]
[null,null,null,{"$f":"IF(Table58[[#This Row],[Mass (g)]]=\"\",\"\",Table58[[#This Row],[Mass (g)]]*VLOOKUP(Table58[[#This Row],[Nuclide]],Doedata,4)*37000000000)","v":""},null,null,null,null,null,{"$f":"IF(Table58[[#This Row],[Activity (Bq)]]=\"\",\"\",Table58[[#This Row],[Activity (Bq)]]/37000000000)","v":""}]
[null,null,null,{"$f":"IF(Table58[[#This Row],[Mass (g)]]=\"\",\"\",Table58[[#This Row],[Mass (g)]]*VLOOKUP(Table58[[#This Row],[Nuclide]],Doedata,4)*37000000000)","v":""},null,null,null,null,null,{"$f":"IF(Table58[[#This Row],[Activity (Bq)]]=\"\",\"\",Table58[[#This Row],[Activity (Bq)]]/37000000000)","v":""}]
[null,null,null,{"$f":"IF(Table58[[#This Row],[Mass (g)]]=\"\",\"\",Table58[[#This Row],[Mass (g)]]*VLOOKUP(Table58[[#This Row],[Nuclide]],Doedata,4)*37000000000)","v":""},null,null,null,null,null,{"$f":"IF(Table58[[#This Row],[Activity (Bq)]]=\"\",\"\",Table58[[#This Row],[Activity (Bq)]]/37000000000)","v":""}]
[null,null,null,{"$f":"IF(Table58[[#This Row],[Mass (g)]]=\"\",\"\",Table58[[#This Row],[Mass (g)]]*VLOOKUP(Table58[[#This Row],[Nuclide]],Doedata,4)*37000000000)","v":""},null,null,null,null,null,{"$f":"IF(Table58[[#This Row],[Activity (Bq)]]=\"\",\"\",Table58[[#This Row],[Activity (Bq)]]/37000000000)","v":""}]
[null,null,null,{"$f":"IF(Table58[[#This Row],[Mass (g)]]=\"\",\"\",Table58[[#This Row],[Mass (g)]]*VLOOKUP(Table58[[#This Row],[Nuclide]],Doedata,4)*37000000000)","v":""},null,null,null,null,null,{"$f":"IF(Table58[[#This Row],[Activity (Bq)]]=\"\",\"\",Table58[[#This Row],[Activity (Bq)]]/37000000000)","v":""}]
[null,null,null,{"$f":"IF(Table58[[#This Row],[Mass (g)]]=\"\",\"\",Table58[[#This Row],[Mass (g)]]*VLOOKUP(Table58[[#This Row],[Nuclide]],Doedata,4)*37000000000)","v":""},null,null,null,null,null,{"$f":"IF(Table58[[#This Row],[Activity (Bq)]]=\"\",\"\",Table58[[#This Row],[Activity (Bq)]]/37000000000)","v":""}]
[null,null,null,{"$f":"IF(Table58[[#This Row],[Mass (g)]]=\"\",\"\",Table58[[#This Row],[Mass (g)]]*VLOOKUP(Table58[[#This Row],[Nuclide]],Doedata,4)*37000000000)","v":""},null,null,null,null,null,{"$f":"IF(Table58[[#This Row],[Activity (Bq)]]=\"\",\"\",Table58[[#This Row],[Activity (Bq)]]/37000000000)","v":""}]
[null,null,null,{"$f":"IF(Table58[[#This Row],[Mass (g)]]=\"\",\"\",Table58[[#This Row],[Mass (g)]]*VLOOKUP(Table58[[#This Row],[Nuclide]],Doedata,4)*37000000000)","v":""},null,null,null,null,null,{"$f":"IF(Table58[[#This Row],[Activity (Bq)]]=\"\",\"\",Table58[[#This Row],[Activity (Bq)]]/37000000000)","v":""}]
[null,null,null,{"$f":"IF(Table58[[#This Row],[Mass (g)]]=\"\",\"\",Table58[[#This Row],[Mass (g)]]*VLOOKUP(Table58[[#This Row],[Nuclide]],Doedata,4)*37000000000)","v":""},null,null,null,null,null,{"$f":"IF(Table58[[#This Row],[Activity (Bq)]]=\"\",\"\",Table58[[#This Row],[Activity (Bq)]]/37000000000)","v":""}]
[null,null,null,{"$f":"IF(Table58[[#This Row],[Mass (g)]]=\"\",\"\",Table58[[#This Row],[Mass (g)]]*VLOOKUP(Table58[[#This Row],[Nuclide]],Doedata,4)*37000000000)","v":""},null,null,null,null,null,{"$f":"IF(Table58[[#This Row],[Activity (Bq)]]=\"\",\"\",Table58[[#This Row],[Activity (Bq)]]/37000000000)","v":""}]
[null,null,null,{"$f":"IF(Table58[[#This Row],[Mass (g)]]=\"\",\"\",Table58[[#This Row],[Mass (g)]]*VLOOKUP(Table58[[#This Row],[Nuclide]],Doedata,4)*37000000000)","v":""},null,null,null,null,null,{"$f":"IF(Table58[[#This Row],[Activity (Bq)]]=\"\",\"\",Table58[[#This Row],[Activity (Bq)]]/37000000000)","v":""}]
[null,null,null,{"$f":"IF(Table58[[#This Row],[Mass (g)]]=\"\",\"\",Table58[[#This Row],[Mass (g)]]*VLOOKUP(Table58[[#This Row],[Nuclide]],Doedata,4)*37000000000)","v":""},null,null,null,null,null,{"$f":"IF(Table58[[#This Row],[Activity (Bq)]]=\"\",\"\",Table58[[#This Row],[Activity (Bq)]]/37000000000)","v":""}]
[null,null,null,{"$f":"IF(Table58[[#This Row],[Mass (g)]]=\"\",\"\",Table58[[#This Row],[Mass (g)]]*VLOOKUP(Table58[[#This Row],[Nuclide]],Doedata,4)*37000000000)","v":""},null,null,null,null,null,{"$f":"IF(Table58[[#This Row],[Activity (Bq)]]=\"\",\"\",Table58[[#This Row],[Activity (Bq)]]/37000000000)","v":""}]
[null,null,null,{"$f":"IF(Table58[[#This Row],[Mass (g)]]=\"\",\"\",Table58[[#This Row],[Mass (g)]]*VLOOKUP(Table58[[#This Row],[Nuclide]],Doedata,4)*37000000000)","v":""},null,null,null,null,null,{"$f":"IF(Table58[[#This Row],[Activity (Bq)]]=\"\",\"\",Table58[[#This Row],[Activity (Bq)]]/37000000000)","v":""}]
[null,null,null,{"$f":"IF(Table58[[#This Row],[Mass (g)]]=\"\",\"\",Table58[[#This Row],[Mass (g)]]*VLOOKUP(Table58[[#This Row],[Nuclide]],Doedata,4)*37000000000)","v":""},null,null,null,null,null,{"$f":"IF(Table58[[#This Row],[Activity (Bq)]]=\"\",\"\",Table58[[#This Row],[Activity (Bq)]]/37000000000)","v":""}]
[null,null,null,{"$f":"IF(Table58[[#This Row],[Mass (g)]]=\"\",\"\",Table58[[#This Row],[Mass (g)]]*VLOOKUP(Table58[[#This Row],[Nuclide]],Doedata,4)*37000000000)","v":""},null,null,null,null,null,{"$f":"IF(Table58[[#This Row],[Activity (Bq)]]=\"\",\"\",Table58[[#This Row],[Activity (Bq)]]/37000000000)","v":""}]
[null,null,null,{"$f":"IF(Table58[[#This Row],[Mass (g)]]=\"\",\"\",Table58[[#This Row],[Mass (g)]]*VLOOKUP(Table58[[#This Row],[Nuclide]],Doedata,4)*37000000000)","v":""},null,null,null,null,null,{"$f":"IF(Table58[[#This Row],[Activity (Bq)]]=\"\",\"\",Table58[[#This Row],[Activity (Bq)]]/37000000000)","v":""}]
[null,null,null,{"$f":"IF(Table58[[#This Row],[Mass (g)]]=\"\",\"\",Table58[[#This Row],[Mass (g)]]*VLOOKUP(Table58[[#This Row],[Nuclide]],Doedata,4)*37000000000)","v":""},null,null,null,null,null,{"$f":"IF(Table58[[#This Row],[Activity (Bq)]]=\"\",\"\",Table58[[#This Row],[Activity (Bq)]]/37000000000)","v":""}]
[null,null,null,{"$f":"IF(Table58[[#This Row],[Mass (g)]]=\"\",\"\",Table58[[#This Row],[Mass (g)]]*VLOOKUP(Table58[[#This Row],[Nuclide]],Doedata,4)*37000000000)","v":""},null,null,null,null,null,{"$f":"IF(Table58[[#This Row],[Activity (Bq)]]=\"\",\"\",Table58[[#This Row],[Activity (Bq)]]/37000000000)","v":""}]
[null,null,null,{"$f":"IF(Table58[[#This Row],[Mass (g)]]=\"\",\"\",Table58[[#This Row],[Mass (g)]]*VLOOKUP(Table58[[#This Row],[Nuclide]],Doedata,4)*37000000000)","v":""},null,null,null,null,null,{"$f":"IF(Table58[[#This Row],[Activity (Bq)]]=\"\",\"\",Table58[[#This Row],[Activity (Bq)]]/37000000000)","v":""}]
[null,null,null,{"$f":"IF(Table58[[#This Row],[Mass (g)]]=\"\",\"\",Table58[[#This Row],[Mass (g)]]*VLOOKUP(Table58[[#This Row],[Nuclide]],Doedata,4)*37000000000)","v":""},null,null,null,null,null,{"$f":"IF(Table58[[#This Row],[Activity (Bq)]]=\"\",\"\",Table58[[#This Row],[Activity (Bq)]]/37000000000)","v":""}]
[null,null,null,{"$f":"IF(Table58[[#This Row],[Mass (g)]]=\"\",\"\",Table58[[#This Row],[Mass (g)]]*VLOOKUP(Table58[[#This Row],[Nuclide]],Doedata,4)*37000000000)","v":""},null,null,null,null,null,{"$f":"IF(Table58[[#This Row],[Activity (Bq)]]=\"\",\"\",Table58[[#This Row],[Activity (Bq)]]/37000000000)","v":""}]
[null,null,null,{"$f":"IF(Table58[[#This Row],[Mass (g)]]=\"\",\"\",Table58[[#This Row],[Mass (g)]]*VLOOKUP(Table58[[#This Row],[Nuclide]],Doedata,4)*37000000000)","v":""},null,null,null,null,null,{"$f":"IF(Table58[[#This Row],[Activity (Bq)]]=\"\",\"\",Table58[[#This Row],[Activity (Bq)]]/37000000000)","v":""}]
[null,null,null,{"$f":"IF(Table58[[#This Row],[Mass (g)]]=\"\",\"\",Table58[[#This Row],[Mass (g)]]*VLOOKUP(Table58[[#This Row],[Nuclide]],Doedata,4)*37000000000)","v":""},null,null,null,null,null,{"$f":"IF(Table58[[#This Row],[Activity (Bq)]]=\"\",\"\",Table58[[#This Row],[Activity (Bq)]]/37000000000)","v":""}]
[null,null,null,{"$f":"IF(Table58[[#This Row],[Mass (g)]]=\"\",\"\",Table58[[#This Row],[Mass (g)]]*VLOOKUP(Table58[[#This Row],[Nuclide]],Doedata,4)*37000000000)","v":""},null,null,null,null,null,{"$f":"IF(Table58[[#This Row],[Activity (Bq)]]=\"\",\"\",Table58[[#This Row],[Activity (Bq)]]/37000000000)","v":""}]
[null,null,null,{"$f":"IF(Table58[[#This Row],[Mass (g)]]=\"\",\"\",Table58[[#This Row],[Mass (g)]]*VLOOKUP(Table58[[#This Row],[Nuclide]],Doedata,4)*37000000000)","v":""},null,null,null,null,null,{"$f":"IF(Table58[[#This Row],[Activity (Bq)]]=\"\",\"\",Table58[[#This Row],[Activity (Bq)]]/37000000000)","v":""}]
[null,null,null,{"$f":"IF(Table58[[#This Row],[Mass (g)]]=\"\",\"\",Table58[[#This Row],[Mass (g)]]*VLOOKUP(Table58[[#This Row],[Nuclide]],Doedata,4)*37000000000)","v":""},null,null,null,null,null,{"$f":"IF(Table58[[#This Row],[Activity (Bq)]]=\"\",\"\",Table58[[#This Row],[Activity (Bq)]]/37000000000)","v":""}]
[null,null,null,{"$f":"IF(Table58[[#This Row],[Mass (g)]]=\"\",\"\",Table58[[#This Row],[Mass (g)]]*VLOOKUP(Table58[[#This Row],[Nuclide]],Doedata,4)*37000000000)","v":""},null,null,null,null,null,{"$f":"IF(Table58[[#This Row],[Activity (Bq)]]=\"\",\"\",Table58[[#This Row],[Activity (Bq)]]/37000000000)","v":""}]
[null,null,null,{"$f":"IF(Table58[[#This Row],[Mass (g)]]=\"\",\"\",Table58[[#This Row],[Mass (g)]]*VLOOKUP(Table58[[#This Row],[Nuclide]],Doedata,4)*37000000000)","v":""},null,null,null,null,null,{"$f":"IF(Table58[[#This Row],[Activity (Bq)]]=\"\",\"\",Table58[[#This Row],[Activity (Bq)]]/37000000000)","v":""}]
[null,null,null,{"$f":"IF(Table58[[#This Row],[Mass (g)]]=\"\",\"\",Table58[[#This Row],[Mass (g)]]*VLOOKUP(Table58[[#This Row],[Nuclide]],Doedata,4)*37000000000)","v":""},null,null,null,null,null,{"$f":"IF(Table58[[#This Row],[Activity (Bq)]]=\"\",\"\",Table58[[#This Row],[Activity (Bq)]]/37000000000)","v":""}]
[null,null,null,{"$f":"IF(Table58[[#This Row],[Mass (g)]]=\"\",\"\",Table58[[#This Row],[Mass (g)]]*VLOOKUP(Table58[[#This Row],[Nuclide]],Doedata,4)*37000000000)","v":""},null,null,null,null,null,{"$f":"IF(Table58[[#This Row],[Activity (Bq)]]=\"\",\"\",Table58[[#This Row],[Activity (Bq)]]/37000000000)","v":""}]
[null,null,null,{"$f":"IF(Table58[[#This Row],[Mass (g)]]=\"\",\"\",Table58[[#This Row],[Mass (g)]]*VLOOKUP(Table58[[#This Row],[Nuclide]],Doedata,4)*37000000000)","v":""},null,null,null,null,null,{"$f":"IF(Table58[[#This Row],[Activity (Bq)]]=\"\",\"\",Table58[[#This Row],[Activity (Bq)]]/37000000000)","v":""}]
[null,null,null,{"$f":"IF(Table58[[#This Row],[Mass (g)]]=\"\",\"\",Table58[[#This Row],[Mass (g)]]*VLOOKUP(Table58[[#This Row],[Nuclide]],Doedata,4)*37000000000)","v":""},null,null,null,null,null,{"$f":"IF(Table58[[#This Row],[Activity (Bq)]]=\"\",\"\",Table58[[#This Row],[Activity (Bq)]]/37000000000)","v":""}]
[null,null,null,{"$f":"IF(Table58[[#This Row],[Mass (g)]]=\"\",\"\",Table58[[#This Row],[Mass (g)]]*VLOOKUP(Table58[[#This Row],[Nuclide]],Doedata,4)*37000000000)","v":""},null,null,null,null,null,{"$f":"IF(Table58[[#This Row],[Activity (Bq)]]=\"\",\"\",Table58[[#This Row],[Activity (Bq)]]/37000000000)","v":""}]
[null,null,null,{"$f":"IF(Table58[[#This Row],[Mass (g)]]=\"\",\"\",Table58[[#This Row],[Mass (g)]]*VLOOKUP(Table58[[#This Row],[Nuclide]],Doedata,4)*37000000000)","v":""},null,null,null,null,null,{"$f":"IF(Table58[[#This Row],[Activity (Bq)]]=\"\",\"\",Table58[[#This Row],[Activity (Bq)]]/37000000000)","v":""}]
[null,null,null,{"$f":"IF(Table58[[#This Row],[Mass (g)]]=\"\",\"\",Table58[[#This Row],[Mass (g)]]*VLOOKUP(Table58[[#This Row],[Nuclide]],Doedata,4)*37000000000)","v":""},null,null,null,null,null,{"$f":"IF(Table58[[#This Row],[Activity (Bq)]]=\"\",\"\",Table58[[#This Row],[Activity (Bq)]]/37000000000)","v":""}]
[null,null,null,{"$f":"IF(Table58[[#This Row],[Mass (g)]]=\"\",\"\",Table58[[#This Row],[Mass (g)]]*VLOOKUP(Table58[[#This Row],[Nuclide]],Doedata,4)*37000000000)","v":""},null,null,null,null,null,{"$f":"IF(Table58[[#This Row],[Activity (Bq)]]=\"\",\"\",Table58[[#This Row],[Activity (Bq)]]/37000000000)","v":""}]
[null,null,null,{"$f":"IF(Table58[[#This Row],[Mass (g)]]=\"\",\"\",Table58[[#This Row],[Mass (g)]]*VLOOKUP(Table58[[#This Row],[Nuclide]],Doedata,4)*37000000000)","v":""},null,null,null,null,null,{"$f":"IF(Table58[[#This Row],[Activity (Bq)]]=\"\",\"\",Table58[[#This Row],[Activity (Bq)]]/37000000000)","v":""}]
[null,null,null,{"$f":"IF(Table58[[#This Row],[Mass (g)]]=\"\",\"\",Table58[[#This Row],[Mass (g)]]*VLOOKUP(Table58[[#This Row],[Nuclide]],Doedata,4)*37000000000)","v":""},null,null,null,null,null,{"$f":"IF(Table58[[#This Row],[Activity (Bq)]]=\"\",\"\",Table58[[#This Row],[Activity (Bq)]]/37000000000)","v":""}]
[null,null,null,{"$f":"IF(Table58[[#This Row],[Mass (g)]]=\"\",\"\",Table58[[#This Row],[Mass (g)]]*VLOOKUP(Table58[[#This Row],[Nuclide]],Doedata,4)*37000000000)","v":""},null,null,null,null,null,{"$f":"IF(Table58[[#This Row],[Activity (Bq)]]=\"\",\"\",Table58[[#This Row],[Activity (Bq)]]/37000000000)","v":""}]
[null,null,null,{"$f":"IF(Table58[[#This Row],[Mass (g)]]=\"\",\"\",Table58[[#This Row],[Mass (g)]]*VLOOKUP(Table58[[#This Row],[Nuclide]],Doedata,4)*37000000000)","v":""},null,null,null,null,null,{"$f":"IF(Table58[[#This Row],[Activity (Bq)]]=\"\",\"\",Table58[[#This Row],[Activity (Bq)]]/37000000000)","v":""}]
[null,null,null,{"$f":"IF(Table58[[#This Row],[Mass (g)]]=\"\",\"\",Table58[[#This Row],[Mass (g)]]*VLOOKUP(Table58[[#This Row],[Nuclide]],Doedata,4)*37000000000)","v":""},null,null,null,null,null,{"$f":"IF(Table58[[#This Row],[Activity (Bq)]]=\"\",\"\",Table58[[#This Row],[Activity (Bq)]]/37000000000)","v":""}]
[null,null,null,{"$f":"IF(Table58[[#This Row],[Mass (g)]]=\"\",\"\",Table58[[#This Row],[Mass (g)]]*VLOOKUP(Table58[[#This Row],[Nuclide]],Doedata,4)*37000000000)","v":""},null,null,null,null,null,{"$f":"IF(Table58[[#This Row],[Activity (Bq)]]=\"\",\"\",Table58[[#This Row],[Activity (Bq)]]/37000000000)","v":""}]

{"sheet":"DOE-STD-1027-92 Data","index":3,"n_rows":759,"n_cols":11,"rows_kept":759,"cut":false,"hidden":false,"merged":[]}
["NuclideID","Nuclide","CAT3_Ci","CAT3_g","SpecificAct","Pathway","HalfLife","HalfLifeUnits"]
[1027,"Ac-224",3200,6.6299999999999996E-4,4830000,"f",null,""]
[1028,"Ac-225",32,5.5000000000000003E-4,58000,"i",null,""]
[1029,"Ac-226",320,6.69E-4,478000,"i",null,""]
[1030,"Ac-227",4.2000000000000003E-2,5.8E-4,72.400000000000006,"i",null,""]
[1031,"Ac-228",940,4.1899999999999999E-4,2240000,"i",null,""]
[1032,"Ag-102",17600,1.2300000000000001E-4,143000000,"i",null,""]
[1033,"Ag-103",30000,1.08E-3,27800000,"d",null,""]
[1034,"Ag-104",58000,2.2200000000000002E-3,26100000,"d",null,""]
[1035,"Ag-104m",22000,4.08E-4,54000000,"d",null,""]
[1036,"Ag-105",1640,5.4100000000000002E-2,30300,"d",null,""]
[1037,"Ag-106",42000,5.6700000000000001E-4,74000000,"d",null,""]
[1038,"Ag-106m",280,1.91E-3,147000,"d",null,""]
[1039,"Ag-108m",200,7.67,26.1,"d",null,""]
[1040,"Ag-110m",260,5.5E-2,4750,"i",null,""]
[1041,"Ag-111",1440,9.1199999999999996E-3,158000,"d",null,""]
[1042,"Ag-112",7600,8.4699999999999999E-4,8970000,"f",null,""]
[1043,"Ag-115",142000,1.7399999999999999E-5,8180000000,"d",null,""]
[1044,"Al-26",240,12500,1.9199999999999998E-2,"d",null,""]
[1045,"Am-237",42000,3.8600000000000001E-3,10900000,"d",null,""]
[1046,"Am-238",10600,1.31E-3,8060000,"d",null,""]
[1047,"Am-239",16000,1.4500000000000001E-2,1100000,"d",null,""]
[1048,"Am-240",900,3.5000000000000001E-3,257000,"d",null,""]
[1049,"Am-241",0.52,0.15,3.43,"i",null,""]
[1050,"Am-242",8200,1.01E-2,809000,"i",null,""]
[1051,"Am-242m",0.52,5.2999999999999999E-2,9.7200000000000006,"i",null,""]
[1052,"Am-243",0.52,2.6,0.19900000000000001,"i",null,""]
[1053,"Am-244",1880,1.48E-3,1270000,"d",null,""]
[1054,"Am-244m",420000,1.4200000000000001E-2,29600000,"i",null,""]
[1055,"Am-245",340000,5.45E-2,6240000,"d",null,""]
[1056,"Am-246",30000,1.5299999999999999E-3,19600000,"d",null,""]
[1057,"Am-246m",34000,1.1100000000000001E-3,30600000,"d",null,""]
[1058,"Ar-39",40000,1170,34.1,"d",null,""]
[1059,"Ar-41",600,1.43E-5,41800000,"d",null,""]
[1060,"As-69",1040000,5.7999999999999996E-3,179000000,"i",null,""]
[1061,"As-70",5800,1.1400000000000001E-4,51100000,"d",null,""]
[1062,"As-71",3800,5.5799999999999999E-3,681000,"d",null,""]
[1063,"As-72",1120,6.69E-4,1670000,"d",null,""]
[1064,"As-73",5400,0.24199999999999999,22300,"f",null,""]
[1065,"As-74",1020,1.03E-2,99400,"f",null,""]
[1066,"As-76",2600,1.66E-3,1570000,"d",null,""]
[1067,"As-77",22000,2.1000000000000001E-2,1050000,"f",null,""]
[1068,"As-78",7800,2.9300000000000002E-4,26600000,"d",null,""]
[1069,"At-207",7400,8.8000000000000003E-4,8410000,"d",null,""]
[1070,"At-211",5200,2.5200000000000001E-3,2060000,"i",null,""]
[1071,"Au-193",17200,1.8700000000000001E-2,920000,"d",null,""]
[1072,"Au-194",1160,2.8400000000000001E-3,409000,"d",null,""]
[1073,"Au-195",3200,0.874,3660,"f",null,""]
[1074,"Au-198",2000,8.2000000000000007E-3,245000,"d",null,""]
[1075,"Au-198m",1760,6.1399999999999996E-3,287000,"d",null,""]
[1076,"Au-199",9200,4.3999999999999997E-2,209000,"f",null,""]
[1077,"Au-200",62000,3.1900000000000001E-3,19400000,"d",null,""]
[1078,"Au-200m",560,6.6799999999999997E-4,838000,"d",null,""]
[1079,"Au-201",840000,2.3699999999999999E-2,35400000,"d",null,""]
[1080,"Ba-126",20000,1.2899999999999999E-3,15500000,"d",null,""]
[1081,"Ba-128",1900,4.5300000000000002E-3,420000,"f",null,""]
[1082,"Ba-131",1860,2.1999999999999999E-2,84500,"d",null,""]
[1083,"Ba-131m",820000,8.3400000000000002E-3,98300000,"d",null,""]
[1084,"Ba-133",1100,4.3,250,"f",null,""]
[1085,"Ba-133m",10800,1.78E-2,606000,"f",null,""]
[1086,"Ba-135m",22000,2.7199999999999998E-2,809000,"d",null,""]
[1087,"Ba-139",198000,1.21E-2,16400000,"d",null,""]
[1088,"Ba-140",600,8.2000000000000007E-3,73200,"f",null,""]
[1089,"Ba-141",72000,9.859999999999999E-4,73000000,"d",null,""]
[1090,"Ba-142",68000,5.44E-4,125000000,"d",null,""]
[1091,"Be-10",104,4650,2.24E-2,"i",null,""]
[1092,"Be-7",14800,4.2299999999999997E-2,350000,"d",null,""]
[1093,"Bi-200",9400,3.6400000000000001E-4,25800000,"d",null,""]
[1094,"Bi-201",9400,1.09E-3,8660000,"d",null,""]
[1095,"Bi-202",20000,2.15E-3,9290000,"d",null,""]
[1096,"Bi-203",840,6.4000000000000005E-4,1310000,"d",null,""]
[1097,"Bi-205",880,2.1100000000000001E-2,41600,"d",null,""]
[1098,"Bi-206",240,2.3600000000000001E-3,102000,"d",null,""]
[1099,"Bi-207",500,11,45.5,"d",null,""]
[1100,"Bi-210",320,2.5999999999999999E-3,124000,"i",null,""]
[1101,"Bi-210m",7.2,12700,5.6800000000000004E-4,"i",null,""]
[1102,"Bi-212",2000,1.37E-4,14600000,"i",null,""]
[1103,"Bi-213",3200,1.65E-4,19300000,"i",null,""]
[1104,"Bi-214",8200,1.8599999999999999E-4,44200000,"i",null,""]
[1105,"Bk-245",9200,8.5300000000000001E-2,108000,"d",null,""]
[1106,"Bk-246",1200,4.1399999999999996E-3,290000,"d",null,""]
[1107,"Bk-247",0.52,0.496,1.05,"i",null,""]
[1108,"Bk-249",20,1.2200000000000001E-2,1640,"i",null,""]
[1109,"Bk-250",4200,1.08E-3,3890000,"d,i",null,""]
[1110,"Br-74",19200,1.9100000000000001E-4,100000000,"d",null,""]
[1111,"Br-74m",6400,1.05E-4,61200000,"d",null,""]
[1112,"Br-75",6600,2.5799999999999998E-4,25600000,"d",null,""]
[1113,"Br-76",560,2.2000000000000001E-4,2550000,"d",null,""]
[1114,"Br-77",3000,4.13E-3,727000,"d",null,""]
[1115,"Br-80",800000,5.9199999999999999E-3,135000000,"d",null,""]
[1116,"Br-80m",104000,1.17E-2,8870000,"i",null,""]
[1117,"Br-82",340,3.1399999999999999E-4,1080000,"d",null,""]
[1118,"Br-83",620000,3.9199999999999999E-2,15800000,"i",null,""]
[1119,"Br-84",13800,1.9599999999999999E-4,70400000,"d",null,""]
[1120,"C-11",36000,4.2899999999999999E-5,839000000,"d",null,""]
[1121,"C1-36",340,10000,3.3000000000000002E-2,"f",null,""]
[1122,"C1-38",13800,1.0399999999999999E-4,133000000,"d",null,""]
[1123,"C1-39",9000,1.06E-4,85200000,"d",null,""]
[1124,"C-14",420,94,4.46,"i",null,""]
[1125,"Ca-41",1600,25700,6.2300000000000001E-2,"f",null,""]
[1126,"Ca-45",1100,6.2E-2,17800,"f",null,""]
[1127,"Ca-47",700,1.1000000000000001E-3,613000,"d",null,""]
[1128,"Cd-104",54000,1.72E-3,31400000,"d",null,""]
[1129,"Cd-107",320000,7.0900000000000005E-2,4510000,"d",null,""]
[1130,"Cd-109",180,7.0000000000000007E-2,2580,"f",null,""]
[1131,"Cd-113",11,32000000000000,3.4000000000000002E-13,"f",null,""]
[1132,"Cd-113m",11.8,5.0700000000000002E-2,233,"f",null,""]
[1133,"Cd-115",2200,4.3099999999999996E-3,510000,"d",null,""]
[1134,"Cd-115m",220,8.6400000000000001E-3,25500,"f",null,""]
[1135,"Cd-117",5600,5.1999999999999995E-4,10800000,"d",null,""]
[1136,"Cd-117m",1400,1.76E-4,7970000,"d",null,""]
[1137,"Ce-134",1540,4.7400000000000003E-3,325000,"f",null,""]
[1138,"Ce-135",1580,1.1999999999999999E-3,1320000,"d",null,""]
[1139,"Ce-137",138000,5.4300000000000001E-2,2540000,"d",null,""]
[1140,"Ce-137m",12200,1.83E-2,665000,"f",null,""]
[1141,"Ce-139",3200,0.46899999999999997,6820,"f",null,""]
[1142,"Ce-141",1000,3.5000000000000003E-2,28500,"i",null,""]
[1143,"Ce-143",3800,5.7200000000000003E-3,664000,"d",null,""]
[1144,"Ce-144",100,3.1E-2,3190,"i",null,""]
[1145,"Cf-244",62000,1.56E-3,39700000,"i",null,""]
[1146,"Cf-246",940,2.63E-3,357000,"i",null,""]
[1147,"Cf-248",9.4,5.9500000000000004E-3,1580,"i",null,""]
[1148,"Cf-249",0.52,0.127,4.0999999999999996,"i",null,""]
[1149,"Cf-250",1.04,9.5099999999999994E-3,109,"i",null,""]
[1150,"Cf-251",0.52,0.32800000000000001,1.59,"i",null,""]
[1151,"Cf-252",3.2,5.9500000000000004E-3,538,"i",null,""]
[1152,"Cf-253",200,6.8999999999999999E-3,29000,"i",null,""]
[1153,"Cf-254",2,2.3499999999999999E-4,8500,"i",null,""]
[1154,"Cm-238",104000,1.89E-2,5490000,"i",null,""]
[1155,"Cm-240",52,2.5799999999999998E-3,20200,"i",null,""]
[1156,"Cm-241",1900,0.115,16500,"d",null,""]
[1157,"Cm-242",32,9.7000000000000003E-3,3310,"i",null,""]
[1158,"Cm-243",0.82,1.5900000000000001E-2,51.6,"i",null,""]
[1159,"Cm-244",1.04,1.2800000000000001E-2,80.900000000000006,"i",null,""]
[1160,"Cm-245",0.52,3,0.17199999999999999,"i",null,""]
[1161,"Cm-246",0.52,1.69,0.307,"i",null,""]
[1162,"Cm-247",0.62,6680,9.2800000000000006E-5,"i",null,""]
[1163,"Cm-248",0.104,24.4,4.2500000000000003E-3,"i",null,""]
[1164,"Cm-249",620000,5.2699999999999997E-2,11800000,"d",null,""]
[1165,"Co-55",980,3.0200000000000002E-4,3250000,"d",null,""]
[1166,"Co-56",220,7.43E-3,29600,"d",null,""]
[1167,"Co-57",6000,0.70899999999999996,8460,"d",null,""]
[1168,"Co-58",900,2.8299999999999999E-2,31800,"d",null,""]
[1169,"Co-58m",6200000,1.05,5910000,"i",null,""]
[1170,"Co-60",280,0.25,1130,"d",null,""]
[1171,"Co-60m",58000000,0.19400000000000001,299000000,"d",null,""]
[1172,"Co-61",80000,2.5699999999999998E-3,31100000,"d",null,""]
[1173,"Co-62m",20000,9.1700000000000006E-5,218000000,"d",null,""]
[1174,"Cr-48",2600,9.1399999999999999E-4,2840000,"d",null,""]
[1175,"Cr-49",196000,2.15E-3,91200000,"d",null,""]
[1176,"Cr-51",22000,0.24,92400,"d",null,""]
[1177,"Cs-125",62000,1.8500000000000001E-3,33400000,"d",null,""]
[1178,"Cs-127",6600,1.67E-3,3950000,"d",null,""]
[1179,"Cs-129",3800,5.0099999999999997E-3,758000,"d",null,""]
[1180,"Cs-130",600000,1.24E-2,48400000,"d",null,""]
[1181,"Cs-131",28000,0.27200000000000002,103000,"f",null,""]
[1182,"Cs-132",1140,7.4599999999999996E-3,153000,"d",null,""]
[1183,"Cs-134",42,3.3000000000000002E-2,1290,"f",null,""]
[1184,"Cs-134m",260000,3.2199999999999999E-2,8070000,"d",null,""]
[1185,"Cs-135",420,365000,1.15E-3,"f",null,""]
[1186,"Cs-135m",8600,3.2699999999999998E-4,26300000,"d",null,""]
[1187,"Cs-136",400,5.4599999999999996E-3,73300,"d",null,""]
[1188,"Cs-137",60,0.69,87,"f",null,""]
[1189,"Cs-138",10000,2.3599999999999999E-4,42300000,"d",null,""]
[1190,"Cu-60",19800,1.47E-4,135000000,"d",null,""]
[1191,"Cu-61",16400,1.09E-3,15100000,"d",null,""]
[1192,"Cu-64",154000,3.9899999999999998E-2,3860000,"f",null,""]
[1193,"Cu-67",7200,9.5200000000000007E-3,756000,"d",null,""]
[1194,"Dy-155",4000,1.98E-3,2020000,"d",null,""]
[1195,"Dy-157",5600,2.2699999999999999E-3,2460000,"d",null,""]
[1196,"Dy-159",2400,0.42199999999999999,5690,"d",null,""]
[1197,"Dy-165",320000,3.9300000000000002E-2,8140000,"d",null,""]
[1198,"Dy-166",1740,7.5199999999999998E-3,231000,"f",null,""]
[1199,"Er-161",6600,1.1000000000000001E-3,6010000,"d",null,""]
[1200,"Er-165",1140000,0.622,1830000,"f",null,""]
[1201,"Er-169",4200,5.0500000000000003E-2,83100,"f",null,""]
[1202,"Er-171",5400,2.2200000000000002E-3,2440000,"d",null,""]
[1203,"Er-172",1700,4.5999999999999999E-3,370000,"d",null,""]
[1204,"Es-250",1640,2.7500000000000002E-4,5970000,"d",null,""]
[1205,"Es-251",104000,0.27500000000000002,378000,"i",null,""]
[1206,"Es-253",200,7.9299999999999995E-3,25200,"i",null,""]
[1207,"Es-254",10.4,5.5799999999999999E-3,1860,"i",null,""]
[1208,"Es-254m",104,3.3100000000000002E-4,314000,"i",null,""]
[1209,"Eu-145",640,4.2199999999999998E-3,152000,"d",null,""]
[1210,"Eu-146",400,2.0600000000000002E-3,194000,"d",null,""]
[1211,"Eu-147",1760,4.7600000000000003E-2,37000,"d",null,""]
[1212,"Eu-148",380,2.35E-2,16200,"d",null,""]
[1213,"Eu-149",6800,0.72199999999999998,9410,"f",null,""]
[1214,"Eu-150",40000,2.41E-2,1660000,"d",12.6,"hours"]
[1215,"Eu-150",200,2.87,69.7,"i",34.200000000000003,"years"]
[1216,"Eu-152",200,1.2,177,"i",null,""]
[1217,"Eu-152m",5600,2.5300000000000001E-3,2210000,"d",null,""]
[1218,"Eu-154",200,0.76,264,"i",null,""]
[1219,"Eu-155",940,2,465,"i",null,""]
[1220,"Eu-156",460,8.3499999999999998E-3,55100,"d",null,""]
[1221,"Eu-157",980,7.4399999999999998E-4,1320000,"d",null,""]
[1222,"Eu-158",20000,7.7099999999999998E-4,25900000,"d",null,""]
[1223,"F-18",720000,7.5700000000000003E-3,95200000,"i",null,""]
[1224,"Fe-52",10000,1.3699999999999999E-3,7280000,"d",null,""]
[1225,"Fe-55",5400,2.2000000000000002,2410,"f",null,""]
[1226,"Fe-59",600,1.21E-2,49700,"f",null,""]
[1227,"Fe-60",17.8,299,5.96E-2,"f",null,""]
[1228,"Fm-252",1040,1.9E-3,548000,"i",null,""]
[1229,"Fm-253",1040,6.0400000000000002E-3,172000,"i",null,""]
[1230,"Fm-254",10400,2.7299999999999998E-3,3810000,"i",null,""]
[1231,"Fm-255",2000,3.2699999999999999E-3,613000,"i",null,""]
[1232,"Fm-257",20,3.96E-3,5060,"i",null,""]
[1233,"Fr-222",5200,8.8399999999999994E-5,58800000,"i",null,""]
[1234,"Fr-223",8200,2.12E-4,38700000,"i",null,""]
[1235,"Ga-65",114000,5.9900000000000003E-4,190000000,"d",null,""]
[1236,"Ga-66",1100,2.1800000000000001E-4,5050000,"d",null,""]
[1237,"Ga-67",4800,8.0300000000000007E-3,598000,"d",null,""]
[1238,"Ga-68",320000,7.8700000000000003E-3,40700000,"d",null,""]
[1239,"Ga-70",2000000,1.5699999999999999E-2,127000000,"i",null,""]
[1240,"Ga-72",720,2.33E-4,3090000,"d",null,""]
[1241,"Ga-73",14400,1.65E-3,8750000,"d",null,""]
[1242,"Gd-145",16600,2.9300000000000002E-4,56600000,"d",null,""]
[1243,"Gd-146",740,0.04,18500,"f",null,""]
[1244,"Gd-147",860,1.5399999999999999E-3,560000,"d",null,""]
[1245,"Gd-148",8.2000000000000003E-2,3.16E-3,26,"i",null,""]
[1246,"Gd-149",2200,2.3599999999999999E-2,93200,"d",null,""]
[1247,"Gd-151",4000,0.55500000000000005,7210,"f",null,""]
[1248,"Gd-152",0.104,4770000000,2.1799999999999998E-11,"i",null,""]
[1249,"Gd-153",1000,0.28000000000000003,3530,"i",null,""]
[1250,"Gd-159",28000,2.64E-2,1060000,"d",null,""]
[1251,"Ge-66",16800,8.03E-4,20900000,"d",null,""]
[1252,"Ge-67",108000,7.2000000000000005E-4,150000000,"d",null,""]
[1253,"Ge-68",1000,0.15,6670,"i",null,""]
[1254,"Ge-69",1020,8.7699999999999996E-4,1160000,"d",null,""]
[1255,"Ge-71",420000,2.69,156000,"i",null,""]
[1256,"Ge-75",300000,9.9000000000000008E-3,30300000,"d",null,""]
[1257,"Ge-77",1920,5.3300000000000005E-4,3600000,"d",null,""]
[1258,"Ge-78",30000,1.08E-3,27700000,"d",null,""]
[1259,"H-3",16600,1.72,9650,"i",null,""]
[1260,"Hf-170",2800,2.4299999999999999E-3,1150000,"d",null,""]
[1261,"Hf-172",94,8.4500000000000006E-2,1110,"i",null,""]
[1262,"Hf-173",3200,4.2399999999999998E-3,755000,"d",null,""]
[1263,"Hf-175",2000,0.188,10700,"f",null,""]
[1264,"Hf-177m",620000,0.03,20700000,"i",null,""]
[1265,"Hf-178m",10.4,0.16,64.8,"i",null,""]
[1266,"Hf-179m",3200,0.11,29100,"i",null,""]
[1267,"Hf-180m",2400,7.5799999999999999E-4,3170000,"d",null,""]
[1268,"Hf-181",760,4.4999999999999998E-2,17000,"f",null,""]
[1269,"Hf-182",8.1999999999999993,37600,2.1800000000000001E-4,"i",null,""]
[1270,"Hf-182m",13400,7.9799999999999999E-4,16800000,"d",null,""]
[1271,"Hf-183",15800,9.8400000000000007E-4,16100000,"d",null,""]
[1272,"Hf-184",13400,3.2399999999999998E-3,4130000,"d",null,""]
[1273,"Hg-193",4400,9.4799999999999995E-4,4640000,"d",null,""]
[1274,"Hg-193m",1080,7.3800000000000005E-4,1460000,"d",null,""]
[1275,"Hg-194",11.6,1.64,7.09,"f",null,""]
[1276,"Hg-195",12800,7.8899999999999994E-3,1620000,"d",null,""]
[1277,"Hg-195m",5000,1.29E-2,386000,"d",null,""]
[1278,"Hg-197",20000,8.0600000000000005E-2,248000,"f",null,""]
[1279,"Hg-197m",22000,3.2899999999999999E-2,668000,"f",null,""]
[1280,"Hg-199m",126000,5.6800000000000002E-3,22200000,"d",null,""]
[1281,"Hg-203",360,2.6100000000000002E-2,13800,"f",null,""]
[1282,"Ho-155",156000,6.1700000000000001E-3,25300000,"d",null,""]
[1283,"Ho-157",182000,1.91E-3,95000000,"d",null,""]
[1284,"Ho-159",108000,3.0100000000000001E-3,35800000,"d",null,""]
[1285,"Ho-161",900000,0.11600000000000001,7790000,"d",null,""]
[1286,"Ho-162",720000,9.2999999999999992E-3,77400000,"d",null,""]
[1287,"Ho-162m",22000,1.2899999999999999E-3,17100000,"d",null,""]
[1288,"Ho-164",6200000,0.157,39500000,"i",null,""]
[1289,"Ho-164m",3200000,0.105,30600000,"i",null,""]
[1290,"Ho-166",6800,9.6500000000000006E-3,705000,"f",null,""]
[1291,"Ho-166m",72,40,1.8,"i",null,""]
[1292,"Ho-167",12200,2.0100000000000001E-3,6060000,"d",null,""]
[1293,"I-120",1860,9.6199999999999994E-5,19300000,"i",null,""]
[1294,"I-120m",4200,1.4200000000000001E-4,29600000,"i",null,""]
[1295,"I-121",4200,3.4400000000000001E-4,12200000,"i",null,""]
[1296,"I-123",900,4.66E-4,1930000,"f",null,""]
[1297,"I-124",2.4,9.5300000000000002E-6,252000,"f",null,""]
[1298,"I-125",0.56000000000000005,3.1999999999999999E-5,17400,"f",null,""]
[1299,"I-126",0.46,5.7799999999999997E-6,79600,"f",null,""]
[1300,"I-128",20000,3.4000000000000002E-4,58800000,"i",null,""]
[1301,"I-129",0.06,340,1.76E-4,"f",null,""]
[1302,"I-130",126,6.4599999999999998E-5,1950000,"f",null,""]
[1303,"I-131",0.92,7.4000000000000003E-6,124000,"f",null,""]
[1304,"I-132",1660,1.6100000000000001E-4,10300000,"i",null,""]
[1305,"I-132m",1660,9.7399999999999996E-5,17000000,"i",null,""]
[1306,"I-133",19.399999999999999,1.7099999999999999E-5,1130000,"f",null,""]
[1307,"I-134",5800,2.1699999999999999E-4,26700000,"d",null,""]
[1308,"I-135",420,1.2E-4,3510000,"i",null,""]
[1309,"In-109",9000,1.31E-3,6850000,"d",null,""]
[1310,"In-110",13600,5.5000000000000003E-4,24700000,"d",69.099999999999994,"minutes"]
[1311,"In-110",900,1.55E-4,5820000,"d",4.9000000000000004,"hours"]
[1312,"In-111",2200,5.2900000000000004E-3,416000,"d",null,""]
[1313,"In-112",1180000,1.01E-2,117000000,"d",null,""]
[1314,"In-113m",30000,1.7899999999999999E-3,16700000,"d",null,""]
[1315,"In-114m",220,9.4999999999999998E-3,23100,"f",null,""]
[1316,"In-115",10.4,17100000000000,6.1000000000000003E-13,"i",null,""]
[1317,"In-115m",17800,2.9299999999999999E-3,6080000,"d",null,""]
[1318,"In-116m",6400,2.14E-4,29900000,"d",null,""]
[1319,"In-117",24000,6.5399999999999996E-4,36700000,"d",null,""]
[1320,"In-117m",10400,7.54E-4,13800000,"d",null,""]
[1321,"In-119m",1040000,1.18E-2,87800000,"i",null,""]
[1322,"Ir-182",94000,1.3600000000000001E-3,68900000,"d",null,""]
[1323,"Ir-184",3200,5.6700000000000001E-4,5640000,"d",null,""]
[1324,"Ir-185",2600,2.15E-3,1210000,"d",null,""]
[1325,"Ir-186",1080,1.01E-3,1070000,"d",null,""]
[1326,"Ir-187",7400,4.6299999999999996E-3,1600000,"d",null,""]
[1327,"Ir-188",540,1.34E-3,402000,"d",null,""]
[1328,"Ir-189",12600,0.24299999999999999,51900,"w",null,""]
[1329,"Ir-190",680,1.2E-2,56800,"d",null,""]
[1330,"Ir-190m",20000000,1.45,13800000,"i",null,""]
[1331,"Ir-192",940,0.1,9190,"d",null,""]
[1332,"Ir-192m",2000,259,7.73,"i",null,""]
[1333,"Ir-194",14200,1.6799999999999999E-2,844000,"d",null,""]
[1334,"Ir-194m",320,8.1299999999999997E-2,3940,"d",null,""]
[1335,"Ir-195",300000,4.6699999999999998E-2,6430000,"d",null,""]
[1336,"Ir-195m",11000,2.5999999999999999E-3,4230000,"d",null,""]
[1337,"K-40",170,24000000,6.99E-6,"f",null,""]
[1338,"K-42",4600,7.6199999999999998E-4,6040000,"d",null,""]
[1339,"K-43",1160,3.6000000000000002E-4,3230000,"d",null,""]
[1340,"K-44",13400,6.9400000000000006E-5,193000000,"d",null,""]
[1341,"K-45",24000,1.15E-4,209000000,"d",null,""]
[1342,"Kr-74",600,2.7099999999999999E-6,221000000,"d",null,""]
[1343,"Kr-76",1800,6.4599999999999998E-4,2790000,"d",null,""]
[1344,"Kr-77",800,2.4499999999999999E-5,32700000,"d",null,""]
[1345,"Kr-79",4000,3.5300000000000002E-3,1130000,"d",null,""]
[1346,"Kr-81",140000,6660000,2.1000000000000001E-2,"d",null,""]
[1347,"Kr-83m",2000000,9.69E-2,20600000,"d",null,""]
[1348,"Kr-85",20000,51,393,"d",null,""]
[1349,"Kr-85m",4000,4.86E-4,8230000,"d",null,""]
[1350,"Kr-87",1000,3.5299999999999997E-5,28300000,"d",null,""]
[1351,"Kr-88",400,3.1900000000000003E-5,12500000,"d",null,""]
[1352,"La-131",50000,2.0500000000000002E-3,24300000,"d",null,""]
[1353,"La-132",2000,4.0400000000000001E-4,4950000,"d",null,""]
[1354,"La-135",116000,9.74E-2,1190000,"d",null,""]
[1355,"La-137",620,14200,4.3499999999999997E-2,"i",null,""]
[1356,"La-138",42,2190000000,1.92E-8,"i",null,""]
[1357,"La-140",400,7.1900000000000002E-4,556000,"d",null,""]
[1358,"La-141",94000,1.66E-2,5660000,"i",null,""]
[1359,"La-142",4600,3.21E-4,14300000,"d",null,""]
[1360,"La-143",940000,1.0200000000000001E-2,92400000,"d,i",null,""]
[1361,"Lu-169",1540,2.8300000000000001E-3,545000,"d",null,""]
[1362,"Lu-170",500,1.2999999999999999E-3,384000,"d",null,""]
[1363,"Lu-171",1400,1.5100000000000001E-2,92900,"d",null,""]
[1364,"Lu-172",480,4.2399999999999998E-3,113000,"d",null,""]
[1365,"Lu-173",3000,1.99,1510,"f",null,""]
[1366,"Lu-174",1040,1.67,621,"i",null,""]
[1367,"Lu-174m",1300,0.246,5290,"f",null,""]
[1368,"Lu-176",52,921000000,5.6500000000000003E-8,"i",null,""]
[1369,"Lu-176m",200000,4.1300000000000003E-2,4840000,"i",null,""]
[1370,"Lu-177",3400,3.09E-2,110000,"f",null,""]
[1371,"Lu-177m",440,9.6000000000000002E-2,4590,"f",null,""]
[1372,"Lu-178",260000,6.9899999999999997E-3,37200000,"d",null,""]
[1373,"Lu-178m",720000,1.55E-2,46500000,"d",null,""]
[1374,"Lu-179",102000,2.6700000000000002E-2,3820000,"d",null,""]
[1375,"Md-257",10400,4.4299999999999999E-3,2350000,"i",null,""]
[1376,"Md-258",32,3.48E-3,9210,"i",null,""]
[1377,"Mg-28",740,1.3799999999999999E-4,5350000,"d",null,""]
[1378,"Mn-51",520000,6.5199999999999998E-3,79800000,"i",null,""]
[1379,"Mn-52",340,7.6000000000000004E-4,449000,"d",null,""]
[1380,"Mn-52m",24000,1.3999999999999999E-4,171000000,"d",null,""]
[1381,"Mn-53",30000,16400000,1.82E-3,"f",null,""]
[1382,"Mn-54",880,0.114,7740,"d",null,""]
[1383,"Mn-56",2800,1.2899999999999999E-4,21700000,"d",null,""]
[1384,"Mo-101",90000,7.0699999999999995E-4,127000000,"d",null,""]
[1385,"Mo-90",2800,4.5600000000000003E-4,6140000,"d",null,""]
[1386,"Mo-93",2000,1820,1.1000000000000001,"i",null,""]
[1387,"Mo-93m",840,1.7100000000000001E-4,4920000,"d",null,""]
[1388,"Mo-99",3400,7.1000000000000004E-3,480000,"d,f",null,""]
[1389,"Na-22",240,3.7999999999999999E-2,6250,"f",null,""]
[1390,"Na-24",300,3.4499999999999998E-5,8700000,"d",null,""]
[1391,"Nb-88",15800,1.06E-4,149000000,"d",null,""]
[1392,"Nb-89",6000,1.8699999999999999E-4,32000000,"d",66,"minutes"]
[1393,"Nb-89",16200,9.3499999999999996E-4,17300000,"d",122,"minutes"]
[1394,"Nb-90",300,1.26E-4,2390000,"d",null,""]
[1395,"Nb-93m",2000,7.07,283,"i",null,""]
[1396,"Nb-94",200,1100,0.187,"i",null,""]
[1397,"Nb-95",960,2.4500000000000001E-2,39100,"d",null,""]
[1398,"Nb-95m",5600,1.47E-2,381000,"f",null,""]
[1399,"Nb-96",440,3.1500000000000001E-4,1400000,"d",null,""]
[1400,"Nb-97",14800,5.5000000000000003E-4,26900000,"d",null,""]
[1401,"Nb-98",520000,1.4E-5,37300000000,"i",null,""]
[1402,"Nd-136",102000,3.7399999999999998E-3,27300000,"d",null,""]
[1403,"Nd-138",52000,1.15E-2,4510000,"i",null,""]
[1404,"Nd-139",260000,5.7099999999999998E-3,45600000,"d",null,""]
[1405,"Nd-139m",2200,5.3700000000000004E-4,4100000,"d",null,""]
[1406,"Nd-141",240000,2.69E-2,8930000,"d",null,""]
[1407,"Nd-147",1280,1.5800000000000002E-2,80900,"f",null,""]
[1408,"Nd-149",15600,1.2800000000000001E-3,12200000,"d",null,""]
[1409,"Nd-151",94000,9.3899999999999995E-4,100000000,"d",null,""]
[1410,"Ni-56",460,1.1999999999999999E-3,382000,"d",null,""]
[1411,"Ni-57",600,3.9399999999999998E-4,1520000,"d",null,""]
[1412,"Ni-59",11800,146000,8.0799999999999997E-2,"f",null,""]
[1413,"Ni-63",5400,95,59.1,"f",null,""]
[1414,"Ni-65",9000,4.6999999999999999E-4,19100000,"d",null,""]
[1415,"Ni-66",1620,1.8600000000000001E-3,870000,"f",null,""]
[1416,"Np-232",50000,9.0700000000000004E-4,55100000,"d",null,""]
[1417,"Np-233",3000000,0.13500000000000001,22300000,"d",null,""]
[1418,"Np-234",780,6.1500000000000001E-3,127000,"d",null,""]
[1419,"Np-235",62000,44.2,1400,"f",null,""]
[1420,"Np-236",2.4,190,1.26E-2,"f",120000,"years"]
[1421,"Np-236",4200,7.11E-3,590000,"i",22.5,"hours"]
[1422,"Np-237",0.42,600,7.0500000000000001E-4,"f",null,""]
[1423,"Np-238",1300,5.0000000000000001E-3,259000,"d",null,""]
[1424,"Np-239",7800,3.3599999999999998E-2,232000,"d",null,""]
[1425,"Np-240",10800,8.9599999999999999E-4,12100000,"d",null,""]
[1426,"Os-180",4200000,8.8400000000000006E-2,47500000,"i",null,""]
[1427,"Os-181",8800,8.8900000000000003E-4,9900000,"d",null,""]
[1428,"Os-182",2800,3.5799999999999998E-3,783000,"d",null,""]
[1429,"Os-185",1100,0.14699999999999999,7510,"d",null,""]
[1430,"Os-189m",2000000,0.72399999999999998,2760000,"i",null,""]
[1431,"Os-191",2200,4.9599999999999998E-2,44400,"f",null,""]
[1432,"Os-191m",150000,0.11899999999999999,1260000,"f",null,""]
[1433,"Os-193",13400,2.4799999999999999E-2,541000,"f",null,""]
[1434,"Os-194",82,0.26700000000000002,307,"i",null,""]
[1435,"P-32",12,4.1999999999999998E-5,286000,"f",null,""]
[1436,"P-33",94,5.9999999999999995E-4,156000,"f",null,""]
[1437,"Pa-227",10400,4.8099999999999998E-4,21600000,"i",null,""]
[1438,"Pa-228",1040,1.66E-3,625000,"i",null,""]
[1439,"Pa-230",420,1.29E-2,32600,"i",null,""]
[1440,"Pa-231",0.2,4.2300000000000004,4.7300000000000002E-2,"i",null,""]
[1441,"Pa-232",1020,2.3700000000000001E-3,430000,"d",null,""]
[1442,"Pa-233",4600,0.222,20800,"d",null,""]
[1443,"Pa-234",1520,7.6000000000000004E-4,2000000,"d",null,""]
[1444,"Pb-195m",44000,7.2099999999999996E-4,61000000,"d",null,""]
[1445,"Pb-198",14600,2.2100000000000002E-3,6600000,"d",null,""]
[1446,"Pb-199",10600,1.01E-3,10500000,"d",null,""]
[1447,"Pb-200",9400,1.29E-2,729000,"d",null,""]
[1448,"Pb-201",2800,1.6900000000000001E-3,1660000,"d",null,""]
[1449,"Pb-202",60,10200,5.8999999999999999E-3,"f",null,""]
[1450,"Pb-202m",1740,4.06E-4,4290000,"d",null,""]
[1451,"Pb-203",3600,1.21E-2,297000,"d",null,""]
[1452,"Pb-205",2400,19700000,1.22E-4,"f",null,""]
[1453,"Pb-209",620000,0.13400000000000001,4610000,"i",null,""]
[1454,"Pb-210",0.36,4.7000000000000002E-3,76.400000000000006,"f",null,""]
[1455,"Pb-211",6200,2.5099999999999998E-4,24700000,"i",null,""]
[1456,"Pb-212",320,2.3000000000000001E-4,1390000,"i",null,""]
[1457,"Pb-214",8200,2.5000000000000001E-4,32800000,"i",null,""]
[1458,"Pd-100",2800,7.7799999999999996E-3,360000,"f",null,""]
[1459,"Pd-101",7400,1.97E-3,3750000,"d",null,""]
[1460,"Pd-103",6200,8.2900000000000001E-2,74800,"f",null,""]
[1461,"Pd-107",4200,8170000,5.1400000000000003E-4,"i",null,""]
[1462,"Pd-109",30000,1.4E-2,2140000,"f",null,""]
[1463,"Pm-141",54000,8.4599999999999996E-4,63800000,"d",null,""]
[1464,"Pm-143",2600,0.754,3450,"d",null,""]
[1465,"Pm-144",480,0.192,2500,"d",null,""]
[1466,"Pm-145",2000,14,139,"i",null,""]
[1467,"Pm-146",420,0.94899999999999995,443,"i",null,""]
[1468,"Pm-147",1000,0.95,927,"i",null,""]
[1469,"Pm-148",820,4.9899999999999996E-3,164000,"f",null,""]
[1470,"Pm-148m",360,1.6799999999999999E-2,21400,"d",null,""]
[1471,"Pm-149",4200,1.06E-2,396000,"f",null,""]
[1472,"Pm-150",3800,4.8700000000000002E-4,7800000,"d",null,""]
[1473,"Pm-151",4200,5.7400000000000003E-3,731000,"d",null,""]
[1474,"Po-203",17600,6.9700000000000003E-4,25200000,"d",null,""]
[1475,"Po-205",5400,6.3599999999999996E-4,8490000,"d",null,""]
[1476,"Po-207",1880,7.2400000000000003E-4,2600000,"d",null,""]
[1477,"Po-210",1.9,4.2000000000000002E-4,4490,"f",null,""]
[1478,"Pr-136",46000,4.3600000000000003E-4,106000000,"d",null,""]
[1479,"Pr-137",300000,1.67E-2,17900000,"d",null,""]
[1480,"Pr-138m",2800,2.5900000000000001E-4,10800000,"d",null,""]
[1481,"Pr-139",30000,6.0000000000000001E-3,5000000,"d",null,""]
[1482,"Pr-142",10600,9.1900000000000003E-3,1150000,"f",null,""]
[1483,"Pr-142m",1040000,1.15E-2,90700000,"i",null,""]
[1484,"Pr-143",1040,1.54E-2,67300,"f",null,""]
[1485,"Pr-144",1040000,1.38E-2,75600000,"i",null,""]
[1486,"Pr-145",82000,2.2700000000000001E-2,3620000,"i",null,""]
[1487,"Pr-147",92000,9.7799999999999992E-4,94100000,"d",null,""]
[1488,"Pt-186",8000,9.4899999999999997E-4,8430000,"d",null,""]
[1489,"Pt-188",2600,3.8199999999999998E-2,68100,"f",null,""]
[1490,"Pt-189",8800,5.77E-3,1530000,"d",null,""]
[1491,"Pt-191",4400,1.8100000000000002E-2,243000,"d",null,""]
[1492,"Pt-193",24000,648,37.1,"f",null,""]
[1493,"Pt-193m",7200,4.6100000000000002E-2,156000,"f",null,""]
[1494,"Pt-195m",5000,0.03,167000,"f",null,""]
[1495,"Pt-197",32000,3.6799999999999999E-2,870000,"f",null,""]
[1496,"Pt-197m",198000,1.9599999999999999E-2,10100000,"d",null,""]
[1497,"Pt-199",134000,4.3699999999999998E-3,30700000,"d",null,""]
[1498,"Pt-200",15800,1.26E-2,1250000,"f",null,""]
[1499,"Pu-234",20000,1.3100000000000001E-2,1520000,"i",null,""]
[1500,"Pu-235",320000000,10.1,31600000,"i",null,""]
[1501,"Pu-236",2,3.7599999999999999E-3,532,"i",null,""]
[1502,"Pu-237",76000,6.25,12200,"f",null,""]
[1503,"Pu-238",0.62,3.5999999999999997E-2,17.100000000000001,"i",null,""]
[1504,"Pu-239",0.52,8.4,6.2199999999999998E-2,"i",null,""]
[1505,"Pu-240",0.52,2.2799999999999998,0.22800000000000001,"i",null,""]
[1506,"Pu-241",32,0.31,103,"i",null,""]
[1507,"Pu-242",0.62,158,3.9300000000000003E-3,"i",null,""]
[1508,"Pu-243",114000,4.3799999999999999E-2,2600000,"d",null,""]
[1509,"Pu-244",0.62,34900,1.77E-5,"i",null,""]
[1510,"Pu-245",6200,5.0899999999999999E-3,1220000,"d",null,""]
[1511,"Ra-223",62,1.1999999999999999E-3,51200,"f",null,""]
[1512,"Ra-224",200,1.1999999999999999E-3,159000,"i",null,""]
[1513,"Ra-225",72,1.8E-3,39200,"i",null,""]
[1514,"Ra-226",12,12.1,0.98899999999999999,"f",null,""]
[1515,"Ra-227",150000,7.6400000000000001E-3,19600000,"d",null,""]
[1516,"Ra-228",12,4.3999999999999997E-2,273,"f",null,""]
[1517,"Rb-79",24000,2.31E-4,104000000,"d",null,""]
[1518,"Rb-81",5800,6.8599999999999998E-4,8450000,"d",null,""]
[1519,"Rb-81m",96000,1.32E-3,72600000,"d",null,""]
[1520,"Rb-82m",780,1.27E-4,6170000,"d",null,""]
[1521,"Rb-83",400,2.1899999999999999E-2,18300,"f",null,""]
[1522,"Rb-84",400,8.43E-3,47400,"f",null,""]
[1523,"Rb-86",500,6.1399999999999996E-3,81400,"f",null,""]
[1524,"Rb-87",600,6860000000,8.7499999999999996E-8,"f",null,""]
[1525,"Rb-88",58000,4.8299999999999998E-4,120000000,"d",null,""]
[1526,"Rb-89",26000,1.8699999999999999E-4,139000000,"d",null,""]
[1527,"Re-177",122000,1.6100000000000001E-3,75900000,"d",null,""]
[1528,"Re-178",92000,1.15E-3,80000000,"d",null,""]
[1529,"Re-181",2200,2.5400000000000002E-3,866000,"d",null,""]
[1530,"Re-182",1380,1.0200000000000001E-3,1360000,"d",12.7,"hours"]
[1531,"Re-182",500,1.8600000000000001E-3,269000,"d",64,"hours"]
[1532,"Re-184",900,4.82E-2,18700,"d",null,""]
[1533,"Re-184m",1220,0.28399999999999997,4300,"f",null,""]
[1534,"Re-186",5000,2.69E-2,186000,"f",null,""]
[1535,"Re-186m",560,58200,9.6100000000000005E-3,"f",null,""]
[1536,"Re-187",340000,8890000000000,3.8299999999999999E-8,"f",null,""]
[1537,"Re-188",22000,2.24E-2,982000,"f",null,""]
[1538,"Re-188m",1040000,1.9300000000000001E-2,53800000,"i",null,""]
[1539,"Re-189",24000,3.5200000000000002E-2,682000,"d",null,""]
[1540,"Rh-100",420,2.7900000000000001E-4,1510000,"d",null,""]
[1541,"Rh-101",1200,1.08,1110,"f",null,""]
[1542,"Rh-101m",2800,9.4000000000000004E-3,298000,"d",null,""]
[1543,"Rh-102",280,0.23200000000000001,1210,"d",null,""]
[1544,"Rh-102m",620,0.1,6180,"f",null,""]
[1545,"Rh-103m",10400000,0.32,32500000,"i",null,""]
[1546,"Rh-105",11800,1.4E-2,844000,"d",null,""]
[1547,"Rh-106m",1960,1.46E-4,13400000,"d",null,""]
[1548,"Rh-107",112000,1.3799999999999999E-3,81000000,"d",null,""]
[1549,"Rh-99",1740,2.1100000000000001E-2,82400,"d",null,""]
[1550,"Rh-99m",4600,6.8300000000000001E-4,6740000,"d",null,""]
[1551,"Rn-220",2,2.1700000000000002E-9,922000000,"i",null,""]
[1552,"Rn-222",10,6.4999999999999994E-5,154000,"i",null,""]
[1553,"Ru-103",1560,4.8300000000000003E-2,32300,"d,f",null,""]
[1554,"Ru-105",4000,5.9500000000000004E-4,6720000,"d",null,""]
[1555,"Ru-106",100,0.03,3350,"i",null,""]
[1556,"Ru-94",28000,7.2499999999999995E-4,38600000,"d",null,""]
[1557,"Ru-97",2400,5.1700000000000001E-3,464000,"d",null,""]
[1558,"S-35",78,1.8E-3,42700,"f",null,""]
[1559,"Sb-115",44000,8.5599999999999999E-4,51400000,"d",null,""]
[1560,"Sb-116",26000,2.5300000000000002E-4,103000000,"d",null,""]
[1561,"Sb-116m",4200,1.56E-4,26900000,"d",null,""]
[1562,"Sb-117",30000,3.14E-3,9570000,"d",null,""]
[1563,"Sb-118m",980,1.84E-4,5310000,"d",null,""]
[1564,"Sb-119",58000,8.3900000000000002E-2,691000,"f",null,""]
[1565,"Sb-120",2200000,2.23E-2,98600000,"d",16,"minutes"]
[1566,"Sb-120",320,1.6900000000000001E-3,189000,"d",5.76,"days"]
[1567,"Sb-122",1860,4.6899999999999997E-3,396000,"d",null,""]
[1568,"Sb-124",360,2.1000000000000001E-2,17500,"f",null,""]
[1569,"Sb-124m",6200000,8.2600000000000007E-2,75100000,"i",null,""]
[1570,"Sb-125",1200,1.1599999999999999,1030,"f",null,""]
[1571,"Sb-126",280,3.3500000000000001E-3,83600,"d",null,""]
[1572,"Sb-126m",24000,3.0600000000000001E-4,78500000,"d",null,""]
[1573,"Sb-127",1320,4.9399999999999999E-3,267000,"d",null,""]
[1574,"Sb-128",38000,2.6899999999999998E-4,141000000,"d",10.4,"minutes"]
[1575,"Sb-128",560,2.0599999999999999E-4,2720000,"d",9.01,"hours"]
[1576,"Sb-129",2200,3.9100000000000002E-4,5630000,"d",null,""]
[1577,"Sb-130",6800,1.8799999999999999E-4,36200000,"d",null,""]
[1578,"Sb-131",24000,3.8499999999999998E-4,62400000,"d",null,""]
[1579,"Sc-43",38000,2.0300000000000001E-3,18700000,"d",null,""]
[1580,"Sc-44",2600,1.4300000000000001E-4,18100000,"d",null,""]
[1581,"Sc-44m",1900,1.56E-3,1220000,"f",null,""]
[1582,"Sc-46",360,1.0999999999999999E-2,33900,"d",null,""]
[1583,"Sc-47",5800,7.0000000000000001E-3,829000,"f",null,""]
[1584,"Sc-48",260,1.74E-4,1490000,"d",null,""]
[1585,"Sc-49",520000,7.7799999999999996E-3,66800000,"i",null,""]
[1586,"Se-70",92000,1.4E-3,65500000,"d",null,""]
[1587,"Se-73",1900,3.1599999999999998E-4,6010000,"d",null,""]
[1588,"Se-73m",3400,5.1499999999999998E-5,66100000,"d",null,""]
[1589,"Se-75",320,2.1999999999999999E-2,14500,"f",null,""]
[1590,"Se-79",360,5170,6.9699999999999998E-2,"f",null,""]
[1591,"Se-81",2000000,1.5900000000000001E-2,125000000,"i",null,""]
[1592,"Se-81m",720000,1.78E-2,40500000,"i",null,""]
[1593,"Se-83",20000,1.9900000000000001E-4,101000000,"d",null,""]
[1594,"Si-31",320000,8.3000000000000001E-3,38600000,"i",null,""]
[1595,"Si-32",52,2.09,24.8,"i",null,""]
[1596,"Sm-141",68000,5.1999999999999995E-4,131000000,"d",null,""]
[1597,"Sm-141m",20000,3.9300000000000001E-4,50800000,"d",null,""]
[1598,"Sm-142",162000,8.8699999999999994E-3,18300000,"d",null,""]
[1599,"Sm-145",3600,1.36,2650,"f",null,""]
[1600,"Sm-146",0.42,17700,2.3799999999999999E-5,"i",null,""]
[1601,"Sm-147",0.42,18300000,2.3000000000000001E-8,"i",null,""]
[1602,"Sm-151",1000,38,26.3,"i",null,""]
[1603,"Sm-153",9200,2.1000000000000001E-2,439000,"f",null,""]
[1604,"Sm-155",360000,6.5599999999999999E-3,54900000,"d",null,""]
[1605,"Sm-156",14000,6.5500000000000003E-3,2140000,"d",null,""]
[1606,"Sn-110",11200,1.57E-3,7120000,"d",null,""]
[1607,"Sn-111",168000,3.5000000000000001E-3,48000000,"d",null,""]
[1608,"Sn-113",1300,0.13,10000,"f",null,""]
[1609,"Sn-117m",2200,2.6800000000000001E-2,82000,"f",null,""]
[1610,"Sn-119m",1860,0.497,3750,"f",null,""]
[1611,"Sn-121",46000,4.8099999999999997E-2,957000,"f",null,""]
[1612,"Sn-121m",1780,33.1,53.7,"f",null,""]
[1613,"Sn-123",320,3.9E-2,8220,"f",null,""]
[1614,"Sn-123m",130000,3.4099999999999998E-3,38100000,"d",null,""]
[1615,"Sn-125",560,5.1700000000000001E-3,108000,"f",null,""]
[1616,"Sn-126",170,6000,2.8400000000000002E-2,"f",null,""]
[1617,"Sn-127",4000,3.4000000000000002E-4,11800000,"d",null,""]
[1618,"Sn-128",22000,8.8500000000000004E-4,24900000,"d",null,""]
[1619,"Sr-80",8200,3.4900000000000003E-4,23500000,"d",null,""]
[1620,"Sr-81",26000,2.8600000000000001E-4,91000000,"d",null,""]
[1621,"Sr-83",2600,2.2300000000000002E-3,1170000,"d",null,""]
[1622,"Sr-85",1440,6.08E-2,23700,"d",null,""]
[1623,"Sr-85m",54000,1.6999999999999999E-3,31800000,"d",null,""]
[1624,"Sr-87m",13600,1.06E-3,12800000,"d",null,""]
[1625,"Sr-89",340,1.2E-2,29100,"f",null,""]
[1626,"Sr-90",16,0.12,136,"f",null,""]
[1627,"Sr-91",1580,4.3600000000000003E-4,3630000,"d",null,""]
[1628,"Sr-92",3400,2.7E-4,12600000,"d",null,""]
[1629,"T1-204",1200,2.59,464,"f",null,""]
[1630,"Ta-172",15800,5.3200000000000003E-4,29700000,"d",null,""]
[1631,"Ta-173",9800,1.97E-3,4960000,"d",null,""]
[1632,"Ta-174",19200,1.2800000000000001E-3,15000000,"d",null,""]
[1633,"Ta-175",3800,2.2300000000000002E-3,1710000,"d",null,""]
[1634,"Ta-176",1200,5.44E-4,2200000,"d",null,""]
[1635,"Ta-177",54000,0.17299999999999999,313000,"d",null,""]
[1636,"Ta-178",1120000,0.14000000000000001,8010000,"d",null,""]
[1637,"Ta-179",30000,27.3,1100,"w",null,""]
[1638,"Ta-180",2000,10100000000000,1.9900000000000001E-10,"i",null,""]
[1639,"Ta-180m",320000,0.14899999999999999,2150000,"d",null,""]
[1640,"Ta-182",620,9.9400000000000002E-2,6240,"d",null,""]
[1641,"Ta-182m",240000,3.6800000000000001E-3,65200000,"d",null,""]
[1642,"Ta-183",3600,2.5700000000000001E-2,140000,"d",null,""]
[1643,"Ta-184",1080,5.5199999999999997E-4,1960000,"d",null,""]
[1644,"Ta-185",134000,6.4599999999999996E-3,20700000,"d",null,""]
[1645,"Ta-186",54000,5.6099999999999998E-4,96300000,"d",null,""]
[1646,"Tb-147",3800,2.9399999999999999E-4,12900000,"d",null,""]
[1647,"Tb-149",3400,6.7100000000000005E-4,5070000,"d",null,""]
[1648,"Tb-150",4400,6.8800000000000003E-4,6390000,"d",null,""]
[1649,"Tb-151",1700,1.4400000000000001E-3,1180000,"d",null,""]
[1650,"Tb-153",6000,1.6400000000000001E-2,365000,"d",null,""]
[1651,"Tb-154",640,6.7299999999999999E-4,951000,"d",null,""]
[1652,"Tb-155",8800,5.5599999999999997E-2,158000,"d",null,""]
[1653,"Tb-156",500,3.1900000000000001E-3,157000,"d",null,""]
[1654,"Tb-156m",320000,7.9600000000000004E-2,4020000,"i",5,"hours"]
[1655,"Tb-156m",60000,7.2900000000000006E-2,824000,"f",24.4,"hours"]
[1656,"Tb-157",3200,211,15.2,"i",null,""]
[1657,"Tb-158",200,13.3,15.1,"i",null,""]
[1658,"Tb-160",560,0.05,11300,"f",null,""]
[1659,"Tb-161",3400,2.9000000000000001E-2,117000,"f",null,""]
[1660,"Tc-101",162000,1.24E-3,131000000,"d",null,""]
[1661,"Tc-104",26000,2.6200000000000003E-4,99300000,"d",null,""]
[1662,"Tc-93",2800,2.2800000000000001E-4,12300000,"d",null,""]
[1663,"Tc-93m",24000,5.1599999999999997E-4,46500000,"d",null,""]
[1664,"Tc-94",960,1.4100000000000001E-4,6830000,"d",null,""]
[1665,"Tc-94m",7400,1.92E-4,38500000,"d",null,""]
[1666,"Tc-96",320,1.01E-3,318000,"d",null,""]
[1667,"Tc-96m",940000,2.47E-2,38000000,"d",null,""]
[1668,"Tc-97",17800,12600000,1.42E-3,"f",null,""]
[1669,"Tc-97m",2600,0.16800000000000001,15500,"f",null,""]
[1670,"Tc-98",440,506000,8.6899999999999998E-4,"f",null,""]
[1671,"Tc-99",1700,100000,1.7000000000000001E-2,"f",null,""]
[1672,"Tc-99m",17000,3.2299999999999998E-3,5260000,"d",null,""]
[1673,"Te-116",80000,7.3699999999999998E-3,10900000,"d",null,""]
[1674,"Te-121",1340,2.1100000000000001E-2,63500,"d",null,""]
[1675,"Te-121m",320,4.5699999999999998E-2,7010,"f",null,""]
[1676,"Te-123",300,1030000000000,2.9099999999999998E-10,"f",null,""]
[1677,"Te-123m",400,4.4900000000000002E-2,8910,"f",null,""]
[1678,"Te-125m",720,0.04,18000,"f",null,""]
[1679,"Te-127",144000,5.4600000000000003E-2,2640000,"f",null,""]
[1680,"Te-127m",400,4.24E-2,9430,"f",null,""]
[1681,"Te-129",220000,1.0500000000000001E-2,20900000,"d",null,""]
[1682,"Te-129m",400,1.2999999999999999E-2,30100,"f",null,""]
[1683,"Te-131",52000,9.0600000000000001E-4,57400000,"i",null,""]
[1684,"Te-131m",800,1E-3,798000,"d",null,""]
[1685,"Te-132",600,1.98E-3,304000,"f",null,""]
[1686,"Te-133",68000,5.9900000000000003E-4,114000000,"d",null,""]
[1687,"Te-133m",52000,2.0400000000000001E-3,25500000,"i",null,""]
[1688,"Te-134",20000,5.9599999999999996E-4,33600000,"d",null,""]
[1689,"Th-226",10400,3.86E-4,26900000,"i",null,""]
[1690,"Th-227",32,1.0399999999999999E-3,30700,"i",null,""]
[1691,"Th-228",1,1.1999999999999999E-3,820,"i",null,""]
[1692,"Th-229",9.4E-2,0.442,0.21299999999999999,"i",null,""]
[1693,"Th-230",0.62,31,2.0199999999999999E-2,"i",null,""]
[1694,"Th-231",12000,2.2599999999999999E-2,532000,"d",null,""]
[1695,"Th-232",0.1,910000,1.09E-7,"i",null,""]
[1696,"Th-234",2800,0.121,23200,"f",null,""]
[1697,"Ti-44",62,0.36,172,"i",null,""]
[1698,"Ti-45",320000,1.41E-2,22600000,"i",null,""]
[1699,"Tl-194",30000,1.0200000000000001E-3,29400000,"d",null,""]
[1700,"Tl-194m",10600,3.59E-4,29600000,"d",null,""]
[1701,"Tl-195",16400,1.1800000000000001E-3,13900000,"d",null,""]
[1702,"Tl-197",16400,2.9299999999999999E-3,5600000,"d",null,""]
[1703,"Tl-198",1660,5.5599999999999996E-4,2990000,"d",null,""]
[1704,"Tl-198m",6200,7.3200000000000001E-4,8460000,"d",null,""]
[1705,"Tl-199",11400,5.3699999999999998E-3,2120000,"d",null,""]
[1706,"Tl-200",920,1.5299999999999999E-3,601000,"d",null,""]
[1707,"Tl-201",42000,0.19700000000000001,213000,"d",null,""]
[1708,"Tl-202",1840,3.4799999999999998E-2,52900,"d",null,""]
[1709,"Tm-162",42000,7.85E-4,53500000,"d",null,""]
[1710,"Tm-166",920,3.7500000000000001E-4,2450000,"d",null,""]
[1711,"Tm-167",2800,3.3099999999999997E-2,84600,"f",null,""]
[1712,"Tm-170",520,8.6999999999999994E-2,5970,"f",null,""]
[1713,"Tm-171",3200,2.94,1090,"i",null,""]
[1714,"Tm-172",2400,8.3800000000000003E-3,287000,"d,f",null,""]
[1715,"Tm-173",4400,2E-3,2200000,"d",null,""]
[1716,"Tm-175",58000,8.1999999999999998E-4,70700000,"d",null,""]
[1717,"U-230",32,1.17E-3,27300,"i",null,""]
[1718,"U-231",98000,0.72799999999999998,135000,"f",null,""]
[1719,"U-232",0.82,3.8100000000000002E-2,21.5,"i",null,""]
[1720,"U-233",4.2,440,9.6799999999999994E-3,"i",null,""]
[1721,"U-234",4.2,670,6.2500000000000003E-3,"i",null,"",null,{"$f":"0.000053*D696","v":3.551E-2},{"$f":"0.000053*E696","v":3.3125E-7}]
[1722,"U-235",4.2,1900000,2.1600000000000001E-6,"i",null,"",null,{"$f":"0.00711*D697","v":13509},{"$f":"0.00711*E697","v":1.5357599999999999E-8}]
[1723,"U-236",4.2,64900,6.4700000000000001E-5,"i",null,""]
[1724,"U-237",14400,0.17599999999999999,81600,"d",null,""]
[1725,"U-238",4.2,13000000,3.3599999999999999E-7,"i",null,"",null,{"$f":"0.99284*D700","v":12906920},{"$f":"0.99284*E700","v":3.3359423999999999E-7}]
[1726,"U-239",7000000,0.20899999999999999,33400000,"d",null,""]
[1727,"U-240",140000,0.151,926000,"f",null,""]
[null,"U-Nat",{"$f":"D703*E703","v":8.7884996035433272},{"$f":"SUM(J696:J700)","v":12920429.03551},{"$f":"SUM(K696:K700)","v":6.8020183999999997E-7}]
[1728,"V-47",820000,6.6800000000000002E-3,123000000,"i",null,""]
[1729,"V-48",640,3.8E-3,168000,"f",null,""]
[1730,"V-49",44000,5.45,8080,"f",null,""]
[1731,"W-176",42000,5.4200000000000003E-3,7740000,"d",null,""]
[1732,"W-177",11400,1.4499999999999999E-3,7870000,"d",null,""]
[1733,"W-178",4600,0.13600000000000001,33800,"f",null,""]
[1734,"W-179",20000000,0.71399999999999997,28000000,"i",null,""]
[1735,"W-181",13000,2.1800000000000002,5950,"f",null,""]
[1736,"W-185",1380,0.14699999999999999,9400,"f",null,""]
[1737,"W-187",2200,3.14E-3,701000,"d",null,""]
[1738,"W-188",280,2.8000000000000001E-2,10000,"f",null,""]
[1739,"Xe-120",2000,5.1100000000000002E-5,39200000,"d",null,""]
[1740,"Xe-121",400,1.03E-5,38800000,"d",null,""]
[1741,"Xe-122",14000,1.09E-2,1280000,"d",null,""]
[1742,"Xe-123",1200,9.7899999999999994E-5,12300000,"d",null,""]
[1743,"Xe-125",4000,2.7100000000000002E-3,1470000,"d",null,""]
[1744,"Xe-127",2000,7.0800000000000002E-2,28200,"d",null,""]
[1745,"Xe-129m",40000,0.316,127000,"d",null,""]
[1746,"Xe-131m",80000,0.95499999999999996,83800,"d",null,""]
[1747,"Xe-133",20000,0.11,187000,"d",null,""]
[1748,"Xe-133m",20000,4.4600000000000001E-2,449000,"d",null,""]
[1749,"Xe-135",2000,7.8299999999999995E-4,2550000,"d",null,""]
[1750,"Xe-135m",1800,1.98E-5,91100000,"d",null,""]
[1751,"Xe-138",800,8.32E-6,96200000,"d",null,""]
[1752,"Y-86",460,1.8599999999999999E-4,2470000,"d",null,""]
[1753,"Y-86m",78000,1.7099999999999999E-3,45600000,"d",null,""]
[1754,"Y-87",1000,2.2300000000000002E-3,449000,"d",null,""]
[1755,"Y-88",280,2.01E-2,13900,"d",null,""]
[1756,"Y-90",1420,2.6099999999999999E-3,544000,"f",null,""]
[1757,"Y-90m",6000,5.5000000000000003E-4,10900000,"d",null,""]
[1758,"Y-91",360,1.4999999999999999E-2,24500,"f",null,""]
[1759,"Y-91m",28000,6.7400000000000001E-4,41600000,"d",null,""]
[1760,"Y-92",14000,1.4499999999999999E-3,9630000,"d",null,""]
[1761,"Y-93",17600,5.2700000000000004E-3,3340000,"d",null,""]
[1762,"Y-94",28000,2.6699999999999998E-4,105000000,"d",null,""]
[1763,"Y-95",62000,3.3500000000000001E-4,185000000,"d",null,""]
[1764,"Yb-162",440000,7.1599999999999997E-3,61400000,"d",null,""]
[1765,"Yb-166",840,2.5200000000000001E-3,333000,"d",null,""]
[1766,"Yb-167",300000,4.6600000000000001E-3,64300000,"d",null,""]
[1767,"Yb-169",1640,6.7900000000000002E-2,24100,"f",null,""]
[1768,"Yb-175",7400,4.1599999999999998E-2,178000,"f",null,""]
[1769,"Yb-177",44000,4.7200000000000002E-3,9320000,"d",null,""]
[1770,"Yb-178",420000,2.9399999999999999E-2,14300000,"i",null,""]
[1771,"Zn-62",5200,9.5299999999999996E-4,5460000,"d",null,""]
[1772,"Zn-63",140000,1.7899999999999999E-3,78300000,"d",null,""]
[1773,"Zn-65",240,2.9000000000000001E-2,8240,"f",null,""]
[1774,"Zn-69",1040000,2.1700000000000001E-2,47800000,"i",null,""]
[1775,"Zn-69m",3000,9.0899999999999998E-4,3300000,"d",null,""]
[1776,"Zn-71m",2200,1.94E-4,11300000,"d",null,""]
[1777,"Zn-72",4600,4.9100000000000003E-3,936000,"f",null,""]
[1778,"Zr-86",4400,1.99E-3,2210000,"d",null,""]
[1779,"Zr-88",1920,0.108,17800,"d",null,""]
[1780,"Zr-89",3200,7.1300000000000001E-3,449000,"d",null,""]
[1781,"Zr-93",62,25000,2.5100000000000001E-3,"i",null,""]
[1782,"Zr-95",700,3.3000000000000002E-2,21500,"f",null,""]
[1783,"Zr-97",1380,7.2199999999999999E-4,1910000,"d",null,""]